{"text_format":"1","workbook":"xlsx","n_sheets":23,"sheets":["Table1A List of required stocks","Table1B Planning of sampling ","Table1C Sampling intensity","Table1D Recreational Fisheries","Table1E Anadromous catadromous","Table1F Incidental by catch","Table1G List of research survey","Table1H Research survey data","Table2A Fishing activity variab","Table3A  Pop segment fisher","Table3B Pop segments aquacultur","Table3C Pop segments proces","Table4A Sampling plan descripti","Table4B Sampling frame descrip","Table4C Data on the fisheries","Table4D Landing locations","Table5A Quality assurance frame","Table5B Quality assurance frame","Table6A_Data_availability","Table7A_Planned Regional_coord","Table7B_Follow up of Recommenda","Table7C_Bi- and multilateral ","Sheet1"],"not_rendered":{"charts":0,"images":0,"macros":0,"external_links":3,"defined_names":237,"comments":0,"pivot_tables":0},"unopened":[],"bounds":{"document_bytes":16777216,"sheet_cells":100000,"rows_first":2000,"rows_last":500,"rows_between":2000,"halvings":0,"cell_chars":16384,"cell_head_chars":4096},"cells_cut":0,"cells_raw":0,"read":"whole","date_system":"1900"}

{"sheet":"Table1A List of required stocks","index":0,"n_rows":46,"n_cols":13,"rows_kept":46,"cut":false,"hidden":false,"merged":[[4,11,29,11],[31,11,44,11]]}
["Table1A: List of required stocks"]
[null,null,null,null,null,null,null,null,null,null,null,"WP  years","2017-2019"]
[null,null,null,null,null,null,null,null,null,null,null,"AR year",2017]
["MS","Reference years","Species","Region","RFMO/RFO/IO","Area / Stock","Selected for sampling  (Y/N)","Average landings in the reference years (tons)","\nEU TAC (if any)\n(%)","Share (%) in EU landings","Threshold  (Y/N)","Comments","Changes in species landings"]
["POL","2013-2015","Anguilla anguilla","Baltic Sea","ICES","22-32","Y","<200",null,8,"N","Shares in EU landings (column J) are based on the EU landings most recently uploaded by MS to the Regional Data Base (FishFrame) hosted by the ICES, which proved to be most reliable data source. Other available potential data source (e.g. FIDES, EUROSTAT) proved to be not reliable at the level of resolution required (stocks and/or areas)."]
["POL","2013-2015","Clupea harengus","Baltic Sea","ICES","22-24","Y",2720,13,null,"N",null,0.2433816176470589]
["POL","2013-2015","Clupea harengus","Baltic Sea","ICES","25-29","Y",27250,25,null,"N",null,0.47850252073394506]
["POL","2013-2015","Coregonus lavaretus","Baltic Sea","ICES","IIId","N","<200",null,3,"Y"]
["POL","2013-2015","Coregonus albula","Baltic Sea","ICES","22-32","N","None",null,"None","Y"]
["POL","2013-2015","Gadus morhua","Baltic Sea","ICES","22-24","Y",780,12,null,"N",null,0.21476885897435882]
["POL","2013-2015","Gadus morhua","Baltic Sea","ICES","25-32","Y",11950,26,null,"N",null,-0.45650359916318073]
["POL","2013-2015","Limanda limanda","Baltic Sea","ICES","22-32","N","None",null,"None","Y"]
["POL","2013-2015","Perca fluviatilis","Baltic Sea","ICES","IIId","Y",990,null,26,"N",null,-6.8344696969696916E-2]
["POL","2013-2015","Platichthys flesus","Baltic Sea","ICES","22-32","Y",11250,null,60,"N",null,0]
["POL","2013-2015","Pleuronectes platessa","Baltic Sea","ICES","22-32","Y","<200",15,null,"N"]
["POL","2013-2015","Psetta maxima","Baltic Sea","ICES","22-32","Y","<200",null,20,"N"]
["POL","2013-2015","Salmo salar","Baltic Sea","ICES","22-31","Y","<200",6,null,"N"]
["POL","2013-2015","Salmo trutta","Baltic Sea","ICES","22-32","Y","<200",null,54,"N"]
["POL","2013-2015","Sander lucioperca","Baltic Sea","ICES","IIId","Y",320,null,29,"N",null,-0.46155762499999997]
["POL","2013-2015","Scophthalmus rhombus","Baltic Sea","ICES","22-32","N","None",null,"None","Y"]
["POL","2013-2015","Sprattus sprattus","Baltic Sea","ICES","22-32","Y",67600,29,null,"N",null,3.5084940828402411E-2]
["POL","2013-2015","Brosme brosme","North Sea and Eastern Arctic","ICES","I, II","N","<200","None",2,"Y"]
["POL","2013-2015","Clupea harengus","North Sea and Eastern Arctic","ICES","I, II","N","None",1.7,"None","Y"]
["POL","2013-2015","Gadus morhua","North Sea and Eastern Arctic","ICES","I, II","Y",5100,8.1999999999999993,14,"N",null,-0.39789790588235296]
["POL","2013-2015","Melanogrammus aeglefinus","North Sea and Eastern Arctic","ICES","I, II","Y",280,"None",15,"N",null,-0.1865925357142858]
["POL","2013-2015","Micromesistius potassou","North Sea and Eastern Arctic","ICES","I, II","N","None","None","None","Y"]
["POL","2013-2015","Pollachius virens","North Sea and Eastern Arctic","ICES","I, II","Y",380,"None",21,"N",null,0.32675052631578949]
["POL","2013-2015","Reinhardtius hippoglossoides","North Sea and Eastern Arctic","ICES","I, II","N","<200","None",4,"Y"]
["POL","2013-2015","Scomber scombrus","North Sea and Eastern Arctic","ICES","II ","N","None","None","None","Y"]
["POL","2013-2015","Sebastes mentella","North Sea and Eastern Arctic","ICES","I, II","N","<200","None",2,"Y"]
["POL","2013-2015","Sebastes marinus","North Sea and Eastern Arctic","ICES","I, II","N","<200","None",null,"Y","Average landing 16 t (as a by-catch only). EU Landing data not available"]
["POL","2013-2015","Brachydeuterus auritus","Other regions","CECAF","34.3.1","N","<200",null,"N.A.","Y","No reliable data source on EU landings available at present (see comments above).  Selection for sampling stemming from international obligations and based on the Multi-lateral agreement for biological data collection of pelagic fisheries in CECAF waters and on the Sampling Protocol -  “Biological Data Collection of pelagic fisheries in CECAF waters in compliance with the DCF, version 28/04/2011”. ( http://dcf.mir.gdynia.pl/?page_id=367 )"]
["POL","2013-2015","Dentex spp.","Other regions","CECAF","34.3.1","N","<200",null,"N.A.","Y"]
["POL","2013-2015","Engraulis encrasicolus","Other regions","CECAF","34.1.3","N","<200",null,"N.A.","Y"]
["POL","2013-2015","Merluccius merluccius","Other regions","CECAF","34.1.3","N","<200",null,"N.A.","Y"]
["POL","2013-2015","Merluccius merluccius","Other regions","CECAF","34.3.1","N","<200",null,"N.A.","Y"]
["POL","2013-2015","Merluccius senegalensis","Other regions","CECAF","34.1.3","N","None",null,"N.A.","Y"]
["POL","2013-2015","Sardinella aurita","Other regions","CECAF","34.1.3","Y",{"$f":"8190/3","v":2730},null,"N.A.","N",null,-0.81597802197802194]
["POL","2013-2015","Sardinella aurita","Other regions","CECAF","34.3.1","Y",3500,null,"N.A.","N",null,-0.97748000000000002]
["POL","2013-2015","Sardina pilchardus","Other regions","CECAF","34.1.3","Y",690,null,"N.A.","N",null,-0.35599999999999998]
["POL","2013-2015","Scomber spp.","Other regions","CECAF","34.1.3","Y",{"$f":"(9681+42)/3","v":3241},null,"N.A.","N",null,0.60075902499228628]
["POL","2013-2015","Scomber spp.","Other regions","CECAF","34.3.1","Y",570,null,"N.A.","N",null,0.97585964912280709]
["POL","2013-2015","Sparus spp.","Other regions","CECAF","34.1.3","N","None",null,"N.A.","Y"]
["POL","2013-2015","Trachurus trachurus","Other regions","CECAF","34.1.3","Y",11230,null,"N.A.","N",null,-0.52540694568121094]
["POL","2013-2015","Trachurus trachurus","Other regions","CECAF","34.3.1","Y",{"$f":"10140/3","v":3380},null,"N.A.","N",null,-0.72005325443786983]
["POL","2013-2015","Trachurus murphyi","Other regions","SPRFMO","SPRFMO Convention Area","Y","None",30,"None","N","Selection for sampling stemming from international obligations and based on Sampling protocol \"Manual for scientific observers on board EU pelagic trawlers in the Pacific\"  in accordance with the SPRFMO Data Standards (Most recent Data Standards available at: https://www.sprfmo.int/assets/Fisheries/Conservation-and-Management-Measures/CMM-4.02-Data-Standards-2016-4Mar2016.pdf or at: http://dcf.mir.gdynia.pl/?page_id=367 )"]

{"sheet":"Table1B Planning of sampling ","index":1,"n_rows":29,"n_cols":25,"rows_kept":29,"cut":false,"hidden":false,"merged":[[5,21,5,23],[3,0,4,0],[2,17,2,23],[1,17,1,23],[3,6,3,8],[3,1,4,1],[3,2,4,2],[3,3,4,3],[3,4,4,4],[3,5,4,5],[3,21,3,23],[3,9,3,11],[3,12,3,14],[3,15,3,17],[3,18,3,20]]}
["Table 1B: Planning of sampling for biological variables"]
[null,null,null,null,null,null,null,null,null,null,null,null,null,null,null,null,null,"WP years",null,null,null,null,null,null,"2017-2019"]
[null,null,null,null,null,null,null,null,null,null,null,null,null,null,null,null,null,"AR  year ",null,null,null,null,null,null,"2017"]
["MS","Species","Region","RFMO/RFO/IO","Area / Stock","Frequency","Length",null,null,"Age",null,null,"Weight",null,null,"Sex ratio",null,null,"Sexual maturity",null,null,"Fecundity",null,null,"Comments"]
[null,null,null,null,null,null,2017,2018,2019,2017,2018,2019,2017,2018,2019,2017,2018,2019,2017,2018,2019,2017,2018,2019]
["POL","Anguilla anguilla","Baltic Sea","ICES","22-32","A","X","X","X","X","X","X","X","X","X","X","X","X"]
["POL","Clupea harengus","Baltic Sea","ICES","22-24","Q","X","X","X","X","X","X","X","X","X","X","X","X","X","X","X"]
["POL","Clupea harengus","Baltic Sea","ICES","25-29","Q","X","X","X","X","X","X","X","X","X","X","X","X","X","X","X"]
["POL","Gadus morhua","Baltic Sea","ICES","22-24","Q","X","X","X","X","X","X","X","X","X","X","X","X","X","X","X"]
["POL","Gadus morhua","Baltic Sea","ICES","25-32","Q","X","X","X","X","X","X","X","X","X","X","X","X","X","X","X"]
["POL","Perca fluviatilis","Baltic Sea","ICES","IIId","A","X","X","X","X","X","X","X","X","X","X","X","X","X","X","X"]
["POL","Platichthys flesus","Baltic Sea","ICES","22-32","Q","X","X","X","X","X","X","X","X","X","X","X","X","X","X","X"]
["POL","Pleuronectes platessa","Baltic Sea","ICES","22-32","Q","X","X","X","X","X","X","X","X","X","X","X","X","X","X","X"]
["POL","Psetta maxima","Baltic Sea","ICES","22-32","Q","X","X","X","X","X","X","X","X","X","X","X","X","X","X","X"]
["POL","Salmo salar","Baltic Sea","ICES","22-31","A","X","X","X","X","X","X","X","X","X","X","X","X"]
["POL","Salmo trutta","Baltic Sea","ICES","22-32","A","X","X","X","X","X","X","X","X","X","X","X","X"]
["POL","Sander lucioperca","Baltic Sea","ICES","IIId","A","X","X","X","X","X","X","X","X","X","X","X","X","X","X","X"]
["POL","Sprattus sprattus","Baltic Sea","ICES","22-32","Q","X","X","X","X","X","X","X","X","X","X","X","X","X","X","X"]
["POL","Gadus morhua","North Sea and Eastern Arctic","ICES","I, II","A","X","X","X","X","X","X","X","X","X","X","X","X","X","X","X"]
["POL","Melanogrammus aeglefinus","North Sea and Eastern Arctic","ICES","I, II","A","X","X","X","X","X","X","X","X","X","X","X","X","X","X","X"]
["POL","Pollachius virens","North Sea and Eastern Arctic","ICES","I, II","A","X","X","X","X","X","X","X","X","X","X","X","X","X","X","X"]
["POL","Sardinella aurita","Other regions","CECAF","34.1.3","Q","X","X","X",null,null,null,"X","X","X","X","X","X","X","X","X"]
["POL","Sardinella aurita","Other regions","CECAF","34.3.1","Q","X","X","X",null,null,null,"X","X","X","X","X","X","X","X","X"]
["POL","Sardina pilchardus","Other regions","CECAF","34.1.3","Q","X","X","X",null,null,null,"X","X","X","X","X","X","X","X","X"]
["POL","Scomber spp.","Other regions","CECAF","34.1.3","Q","X","X","X",null,null,null,"X","X","X","X","X","X","X","X","X"]
["POL","Scomber spp.","Other regions","CECAF","34.3.1","Q","X","X","X",null,null,null,"X","X","X","X","X","X","X","X","X"]
["POL","Trachurus trachurus","Other regions","CECAF","34.1.3","Q","X","X","X",null,null,null,"X","X","X","X","X","X","X","X","X"]
["POL","Trachurus trachurus","Other regions","CECAF","34.3.1","Q","X","X","X",null,null,null,"X","X","X","X","X","X","X","X","X"]
["POL","Trachurus murphyi","Other regions","SPRFMO","SPRFMO Convention Area","A","X","X","X","X","X","X",null,null,null,"X","X","X","X","X","X"]

{"sheet":"Table1C Sampling intensity","index":2,"n_rows":82,"n_cols":17,"rows_kept":82,"cut":false,"hidden":false,"merged":[[66,16,79,16],[80,11,81,11],[12,11,13,11],[18,11,19,11],[24,11,25,11],[30,11,31,11],[38,11,39,11],[40,11,41,11],[42,11,43,11],[44,11,45,11],[46,11,47,11],[58,11,59,11],[66,11,79,11]]}
["Table 1C: Sampling intensity for biological variables"]
[null,null,null,null,null,null,null,null,null,null,null,null,null,null,null,"WP  years","2017-2019"]
[null,null,null,null,null,null,null,null,null,null,null,null,null,null,null,"AR year",2017]
["MS","MS partcipating in sampling","Sampling year","Species","Region","RFMO/RFO/IO","Area / Stock","Variables","Data sources","Planned minimum no of individuals to be measured at the national level","Planned minimum no of individuals to be measured at the regional level","Comments","Achieved number of individuals measured at the national level","% of achievement (100*M/J)","Achieved number of samples ","Sampling protocol","AR  Comments"]
["POL","POL","2017 -2019","Anguilla anguilla","Baltic Sea","ICES","22-32","length","Commercial ","all fish caught per haul","NA",null,330,100,2,"all fish caught per haul"]
["POL","POL","2017 -2019","Anguilla anguilla","Baltic Sea","ICES","22-32","age, weight, sex","Commercial ","200 per eel management unit","NA",null,330,82.5,2,"200 per eel management unit"]
["POL","POL","2017 -2019","Anguilla anguilla","Baltic Sea","ICES","22-32","length","Surveys","all fish caught per haul","NA",null,655,100,"NA"]
["POL","POL","2017 -2019","Anguilla anguilla","Baltic Sea","ICES","22-32","age, weight, sex","Surveys","all fish caught per haul","NA",null,502,76.599999999999994,"NA"]
["POL","POL","2017 -2019","Clupea harengus","Baltic Sea","ICES","22-24","length","Commercial at sea","200 fish per haul","NA",null,3575,119,21,"200 fish per haul","Planned no of fish = 200 * no of samples from trips targeting herring"]
["POL","POL","2017 -2019","Clupea harengus","Baltic Sea","ICES","22-24","age, weight, sex, maturity ","Commercial at sea","4 per 0.5 cm per haul","NA",null,611,103,13,"4 per 0.5 cm per haul","Planned no of fish = 4 individuals or no at length if less than 4, summed up for all trips targeting herring, subdivisions and length classes"]
["POL","POL","2017 -2019","Clupea harengus","Baltic Sea","ICES","22-24","length","Commercial on shore","200 fish from the last haul","NA",null,1222,102,8,"200 fish from the last haul","Planned no of fish = 200 * no of samples from trips targeting herring"]
["POL","POL","2017 -2019","Clupea harengus","Baltic Sea","ICES","22-24","age, weight, sex, maturity ","Commercial on shore","4 per 0.5 cm from the last haul","NA",null,405,115,6,"4 per 0.5 cm from the last haul","Planned no of fish = 4 individuals or no at length if less than 4, summed up for all trips targeting herring, subdivisions and length classes"]
["POL","POL","2017 -2019","Clupea harengus","Baltic Sea","ICES","22-24","length","Surveys","200 fish per haul","NA","According to IBAS & BITS Surveys Manuals ( http://dcf.mir.gdynia.pl/?page_id=367 )",1191,115,11,"200 fish per haul","Planned no of fish = 200 individuals or estimated no of fish in the catch if less than 200, summed up for all samples"]
["POL","POL","2017 -2019","Clupea harengus","Baltic Sea","ICES","22-24","age, weight, sex, maturity ","Surveys","5-10 per 0.5 cm per haul","NA",null,384,97,10,"5-10 per 0.5 cm per haul","Planned no of fish = no of fish aged if between 5 and 10; 5 individuals or no of fish measured if less than 5; 10 individuals if no of fish aged greater than 10, summed up for all trips, subdivisions and length classes"]
["POL","POL","2017 -2019","Clupea harengus","Baltic Sea","ICES","25-29","length","Commercial at sea","200 fish per haul","NA",null,9640,151,62,"200 fish per haul","Planned no of fish = 200 * no of samples from trips targeting herring"]
["POL","POL","2017 -2019","Clupea harengus","Baltic Sea","ICES","25-29","age, weight, sex, maturity ","Commercial at sea","4 per 0.5 cm per haul per ICES Sub-Diivision","NA",null,1306,103,40,"4 per 0.5 cm per haul per ICES Sub-Diivision","Planned no of fish = 4 individuals or no at length if less than 4, summed up for all trips targeting herring, subdivisions and length classes"]
["POL","POL","2017 -2019","Clupea harengus","Baltic Sea","ICES","25-29","length","Commercial on shore","200 fish from the last haul","NA",null,3636,121,21,"200 fish from the last haul","Planned no of fish = 200 * no of samples from trips targeting herring"]
["POL","POL","2017 -2019","Clupea harengus","Baltic Sea","ICES","25-29","age, weight, sex, maturity ","Commercial on shore","4 per 0.5 cm from the last haul","NA",null,1036,106,19,"4 per 0.5 cm from the last haul","Planned no of fish = 4 individuals or no at length if less than 4, summed up for all trips targeting herring, subdivisions and length classes"]
["POL","POL","2017 -2019","Clupea harengus","Baltic Sea","ICES","25-29","length","Surveys","200 fish per haul","NA","According to IBAS & BITS Surveys Manuals (http://dcf.mir.gdynia.pl/?page_id=367 )",28828,95,184,"200 fish per haul","Planned no of fish = 200 individuals or estimated no of fish in the catch if less than 200, summed up for all samples"]
["POL","POL","2017 -2019","Clupea harengus","Baltic Sea","ICES","25-29","age, weight, sex, maturity ","Surveys","5-10 per 0.5 cm per haul","NA",null,3281,141,146,"5-10 per 0.5 cm per haul","Planned no of fish = no of fish aged if between 5 and 10; 5 individuals or no of fish measured if less than 5; 10 individuals if no of fish aged greater than 10, summed up for all trips, subdivisions and length classes"]
["POL","POL","2017 -2019","Gadus morhua","Baltic Sea","ICES","22-24","length","Commercial at sea","5 boxes per haul","NA",null,2054,92,18,"5 boxes per haul","%of achievement = sum of sample weights / no of samples from trips targeting cod * 125kg(5 boxes)"]
["POL","POL","2017 -2019","Gadus morhua","Baltic Sea","ICES","22-24","age, weight, sex, maturity ","Commercial at sea","5 per 1cm ","NA",null,293,68,6,"5 per 1cm ","Planned no of fish = 5 individuals or no at length if less than 5, summed up for all trips targeting cod, subdivisions and length classes"]
["POL","POL","2017 -2019","Gadus morhua","Baltic Sea","ICES","22-24","length","Commercial on shore","2 boxes from the last haul","NA",null,326,100,3,"2 boxes from the last haul","%of achievement = sum of sample weights / no of samples from trips targeting cod * 50kg(2 boxes)"]
["POL","POL","2017 -2019","Gadus morhua","Baltic Sea","ICES","22-24","age, weight, sex, maturity ","Commercial on shore","4 per 1 cm","NA",null,159,117,3,"4 per 1 cm","Planned no of fish = 4 individuals or no at length if less than 4, summed up for all trips targeting cod, subdivisions and length classes"]
["POL","POL","2017 -2019","Gadus morhua","Baltic Sea","ICES","22-24","length","Surveys","5 boxes per haul","NA","According to IBAS & BITS Surveys Manuals (http://dcf.mir.gdynia.pl/?page_id=367 )",2014,104,9,"5 boxes per haul","%of achievement = sum of sample weights / (125kg (5 boxes) or catch weight if less than 125kg summed up for all samples)"]
["POL","POL","2017 -2019","Gadus morhua","Baltic Sea","ICES","22-24","age, weight, sex, maturity ","Surveys","5 per 1cm ","NA",null,313,90,8,"5 per 1cm ","Planned no of fish = 5 individuals or no at length if less than 5, summed up for all trips, subdivisions and length classes"]
["POL","POL","2017 -2019","Gadus morhua","Baltic Sea","ICES","25-32","length","Commercial at sea","5 boxes per haul","NA",null,8803,75,95,"5 boxes per haul","%of achievement = sum of sample weights / no of samples from trips targeting cod * 125kg(5 boxes)"]
["POL","POL","2017 -2019","Gadus morhua","Baltic Sea","ICES","25-32","age, weight, sex, maturity ","Commercial at sea","5 per 1cm ","NA",null,1609,66,42,"5 per 1cm ","Planned no of fish = 5 individuals or no at length if less than 5, summed up for all trips targeting cod, subdivisions and length classes"]
["POL","POL","2017 -2019","Gadus morhua","Baltic Sea","ICES","25-32","length","Commercial on shore","2 boxes from the last haul","NA",null,590,113,8,"2 boxes from the last haul","%of achievement = sum of sample weights / no of samples from trips targeting cod * 50kg(2 boxes)"]
["POL","POL","2017 -2019","Gadus morhua","Baltic Sea","ICES","25-32","age, weight, sex, maturity ","Commercial on shore","4 per 1 cm","NA",null,341,100,7,"4 per 1 cm","Planned no of fish = 4 individuals or no at length if less than 4, summed up for all trips targeting cod, subdivisions and length classes"]
["POL","POL","2017 -2019","Gadus morhua","Baltic Sea","ICES","25-32","length","Surveys","5 boxes per haul","NA","According to IBAS & BITS Surveys Manuals (http://dcf.mir.gdynia.pl/?page_id=367 )",24094,115,155,"5 boxes per haul","%of achievement = sum of sample weights / (125kg (5 boxes) or catch weight if less than 125kg summed up for all samples)"]
["POL","POL","2017 -2019","Gadus morhua","Baltic Sea","ICES","25-32","age, weight, sex, maturity ","Surveys","5 per 1cm per ICES Sub-Division","NA",null,1195,94,120,"5 per 1cm per ICES Sub-Division","Planned no of fish = 5 individuals or no at length if less than 5, summed up for all trips, subdivisions and length classes"]
["POL","POL","2017 -2019","Perca fluviatilis","Baltic Sea","ICES","IIId","length","Commercial ","1 box per haul  ","NA",null,1849,97,15,"1 box per haul  ","%of achievement = sum of sample weights / no of samples from trips targeting perch * 25kg(1 box)"]
["POL","POL","2017 -2019","Perca fluviatilis","Baltic Sea","ICES","IIId","age, weight, sex, maturity ","Commercial ","5 per 1 cm per fishing ground","NA",null,361,205,13,"5 per 1 cm per fishing ground","Planned no of fish = 5 individuals or no at length if less than 5, summed up for all subdivisions and length classes from trips targeting perch"]
["POL","POL","2017 -2019","Platichthys flesus","Baltic Sea","ICES","22-32","length","Commercial at sea","1 box per haul  ","NA",null,4400,110,65,"1 box per haul  ","%of achievement = sum of sample weights / no of samples from trips targeting flounder * 25kg(1 box)"]
["POL","POL","2017 -2019","Platichthys flesus","Baltic Sea","ICES","22-32","age, weight, sex, maturity ","Commercial at sea","5 per 1 cm","NA",null,352,79,9,"5 per 1 cm","Planned no of fish = 5 individuals or no at length if less than 5, summed up for all trips targeting flounder, subdivisions and length classes"]
["POL","POL","2017 -2019","Platichthys flesus","Baltic Sea","ICES","22-32","length","Commercial on shore","1 box from the last haul","NA",null,1513,99,20,"1 box from the last haul","%of achievement = sum of sample weights / no of samples from trips targeting flounder * 25kg(1 box)"]
["POL","POL","2017 -2019","Platichthys flesus","Baltic Sea","ICES","22-32","age, weight, sex, maturity ","Commercial on shore","5 per 1 cm","NA",null,665,98,17,"5 per 1 cm","Planned no of fish = 5 individuals or no at length if less than 5, summed up for all trips targeting flounder, subdivisions and length classes"]
["POL","POL","2017 -2019","Platichthys flesus","Baltic Sea","ICES","22-32","length","Surveys","1 box per haul per ICES Sub-Division","NA","According to BITS Surveys Manual (http://dcf.mir.gdynia.pl/?page_id=367)",13717,111,137,"1 box per haul per ICES Sub-Division","%of achievement = sum of sample weights / (25kg (1 box) or catch weight if less than 25kg summed up for all samples)"]
["POL","POL","2017 -2019","Platichthys flesus","Baltic Sea","ICES","22-32","age, weight, sex, maturity ","Surveys","10 per 1cm per sex per ICES Sub-Division","NA",null,1859,100,117,"10 per 1cm per sex per ICES Sub-Division","Planned no of fish = 10 individuals or no at length if less than 10, summed up for all trips, subdivisions, sex and length classes"]
["POL","POL","2017 -2019","Pleuronectes platessa","Baltic Sea","ICES","22-32","length","Commercial at sea","all fish caught per haul","NA","no directed fishery (bycatch in cod and flounder fisheries)",256,11,24,"all fish caught per haul","%of achievement = sum of sample weights / sum of catch weights of plaice"]
["POL","POL","2017 -2019","Pleuronectes platessa","Baltic Sea","ICES","22-32","age, weight, sex, maturity ","Commercial at sea","all fish caught per haul","NA",null,26,1,6,"all fish caught per haul","%of achievement = no of fish aged / estimated no of fish in the catch"]
["POL","POL","2017 -2019","Pleuronectes platessa","Baltic Sea","ICES","22-32","length","Surveys","all fish caught per haul","NA","According to BITS Surveys Manual (http://dcf.mir.gdynia.pl/?page_id=367)",2927,98,113,"all fish caught per haul","%of achievement = sum of sample weights / sum of catch weights"]
["POL","POL","2017 -2019","Pleuronectes platessa","Baltic Sea","ICES","22-32","age, weight, sex, maturity ","Surveys","all fish caught per haul","NA",null,1234,42,111,"all fish caught per haul","%of achievement = no of fish aged / no of fish measured"]
["POL","POL","2017 -2019","Psetta maxima","Baltic Sea","ICES","22-32","length","Commercial at sea","all fish caught per haul","NA","no directed fishery (bycatch in cod and flounder fisheries)",5,100,3,"all fish caught per haul","%of achievement = sum of sample weights / sum of catch weights of turbot"]
["POL","POL","2017 -2019","Psetta maxima","Baltic Sea","ICES","22-32","age, weight, sex, maturity ","Commercial at sea","all fish caught per haul","NA",null,3,60,1,"all fish caught per haul","%of achievement = no of fish aged / estimated no of fish in the catch"]
["POL","POL","2017 -2019","Psetta maxima","Baltic Sea","ICES","22-32","length","Surveys","all fish caught per haul","NA","According to BITS Surveys Manual (http://dcf.mir.gdynia.pl/?page_id=367)",83,100,40,"all fish caught per haul","%of achievement = sum of sample weights / sum of catch weights"]
["POL","POL","2017 -2019","Psetta maxima","Baltic Sea","ICES","22-32","age, weight, sex, maturity ","Surveys","all fish caught per haul","NA",null,82,99,39,"all fish caught per haul","%of achievement = no of fish aged / no of fish measured"]
["POL","POL","2017 -2019","Salmo salar","Baltic Sea","ICES","22-31","length","Commercial ","all fish caught per haul","NA",null,594,98,25,"all fish caught per haul","%of achievement = sum of sample weights / sum of catch weights of salmon"]
["POL","POL","2017 -2019","Salmo salar","Baltic Sea","ICES","22-31","age, weight, sex","Commercial ","5 per 1 cm per year","NA",null,592,261,24,"5 per 1 cm per year","Planned no of fish = 5 individuals or no at length if less than 5, summed up for whole year and all length classes"]
["POL","POL","2017 -2019","Salmo trutta","Baltic Sea","ICES","22-32","length","Commercial ","all fish caught per haul","NA",null,26,100,19,"all fish caught per haul","%of achievement = sum of sample weights / sum of catch weights of sea trout"]
["POL","POL","2017 -2019","Salmo trutta","Baltic Sea","ICES","22-32","age, weight, sex","Commercial ","5 per 1 cm per year","NA",null,20,77,15,"5 per 1 cm per year","Planned no of fish = 5 individuals or no at length if less than 5, summed up for whole year and all length classes"]
["POL","POL","2017 -2019","Sander lucioperca","Baltic Sea","ICES","IIId","length","Commercial ","5 box per haul  ","NA",null,918,33,22,"5 box per haul  ","%of achievement = sum of sample weights / no of samples from trips targeting pike-perch * 125kg(5 boxes)"]
["POL","POL","2017 -2019","Sander lucioperca","Baltic Sea","ICES","IIId","age, weight, sex, maturity ","Commercial ","5 per 1 cm per fishing ground","NA",null,443,155,19,"5 per 1 cm per fishing ground","Planned no of fish = 5 individuals or no at length if less than 5, summed up for all subdivisions and length classes from trips targeting pike-perch"]
["POL","POL","2017 -2019","Sprattus sprattus","Baltic Sea","ICES","22-32","length","Commercial at sea","200 fish per haul","NA",null,13101,160,77,"200 fish per haul","Planned no of fish = 200 * no of samples from trips targeting sprat"]
["POL","POL","2017 -2019","Sprattus sprattus","Baltic Sea","ICES","22-32","age, weight, sex, maturity ","Commercial at sea","5-10 per 0.5 cm per haul per ICES Sub-Diivision","NA",null,2327,88,43,"5-10 per 0.5 cm per haul per ICES Sub-Diivision","Planned no of fish = no of fish aged if between 5 and 10; 5 individuals or no of fish measured if less than 5; 10 individuals if no of fish aged greater than 10, summed up for all trips targeting sprat, subdivisions and length classes"]
["POL","POL","2017 -2019","Sprattus sprattus","Baltic Sea","ICES","22-32","length","Commercial on shore","200 fish from the last haul","NA",null,3535,147,19,"200 fish from the last haul","Planned no of fish = 200 * no of samples from trips targeting sprat"]
["POL","POL","2017 -2019","Sprattus sprattus","Baltic Sea","ICES","22-32","age, weight, sex, maturity ","Commercial on shore","5-10 per 0.5 cm from the last haul","NA",null,1098,96,16,"5-10 per 0.5 cm from the last haul","Planned no of fish = no of fish aged if between 5 and 10; 5 individuals or no of fish measured if less than 5; 10 individuals if no of fish aged greater than 10, summed up for all trips targeting sprat, subdivisions and length classes"]
["POL","POL","2017 -2019","Sprattus sprattus","Baltic Sea","ICES","22-32","length","Surveys","200 fish per haul","NA","According to BITS Surveys Manual (http://dcf.mir.gdynia.pl/?page_id=367)",27675,94,173,"200 fish per haul","Planned no of fish = 200 individuals or estimated no of fish in the catch if less than 200, summed up for all samples"]
["POL","POL","2017 -2019","Sprattus sprattus","Baltic Sea","ICES","22-32","age, weight, sex, maturity ","Surveys","5-10 per 0.5 cm per haul","NA",null,2605,185,99,"5-10 per 0.5 cm per haul","Planned no of fish = no of fish aged if between 5 and 10; 5 individuals or no of fish measured if less than 5; 10 individuals if no of fish aged greater than 10, summed up for all trips, subdivisions and length classes"]
["POL","POL","2017 -2019","Gadus morhua","North Sea and Eastern Arctic","ICES","I, II","length","Commercial at sea","300 fish per haul","NA",null,9489,69,44,"300 fish per haul","Planned no of fish = 300 * no of samples from trips targeting cod"]
["POL","POL","2017 -2019","Gadus morhua","North Sea and Eastern Arctic","ICES","I, II","age, weight, sex, maturity ","Commercial at sea","5 per 1 cm per trip","NA",null,357,84,7,"5 per 1 cm per trip","Planned no of fish = 5 individuals or no at length if less than 5, summed up for all trips targeting cod, subdivisions and length classes"]
["POL","POL","2017 -2019","Melanogrammus aeglefinus","North Sea and Eastern Arctic","ICES","I, II","length","Commercial at sea","300 fish per haul","NA",null,2378,40,20,"300 fish per haul","Planned no of fish = 300 * no of samples from trips targeting cod (with bycatch of haddock)"]
["POL","POL","2017 -2019","Melanogrammus aeglefinus","North Sea and Eastern Arctic","ICES","I, II","age, weight, sex, maturity ","Commercial at sea","5 per 1 cm per trip","NA",null,104,55,2,"5 per 1 cm per trip","Planned no of fish = 5 individuals or no at length if less than 5, summed up for all trips targeting cod, subdivisions and length classes"]
["POL","POL","2017 -2019","Pollachius virens","North Sea and Eastern Arctic","ICES","I, II","length","Commercial at sea","300 fish per haul","NA",null,490,11,15,"300 fish per haul","Planned no of fish = 300 * no of samples from trips targeting cod (with bycatch of saithe)"]
["POL","POL","2017 -2019","Pollachius virens","North Sea and Eastern Arctic","ICES","I, II","age, weight, sex, maturity ","Commercial at sea","5 per 1 cm per trip","NA",null,0,0,0,"5 per 1 cm per trip","Planned no of fish = 5 individuals or no at length if less than 5, summed up for all trips targeting cod, subdivisions and length classes"]
["POL","DEU - LTU -LVA - NLD - POL","2017 -2019","Sardinella aurita","Other regions","CECAF","34.1.3","length","Commercial at sea","sample of 25 kg per haul","NA","Sampling Protocol - \"Biological Data Collection of pelagic fisheries in CECAF waters in compliance with the DCF\" (http://dcf.mir.gdynia.pl/?page_id=367)",0,null,0,"sample of 25 kg per haul","Joint sampling programme coordinated by NLD - see Table 7C"]
["POL","DEU - LTU -LVA - NLD - POL","2017 -2019","Sardinella aurita","Other regions","CECAF","34.1.3","weight, sex, maturity ","Commercial at sea","100 per quarter","NA",null,0,null,0,"100 per quarter"]
["POL","DEU - LTU -LVA - NLD - POL","2017 -2019","Sardinella aurita","Other regions","CECAF","34.3.1","length","Commercial at sea","sample of 25 kg per haul","NA",null,0,null,0,"sample of 25 kg per haul"]
["POL","DEU - LTU -LVA - NLD - POL","2017 -2019","Sardinella aurita","Other regions","CECAF","34.3.1","weight, sex, maturity ","Commercial at sea","100 per quarter","NA",null,0,null,0,"100 per quarter"]
["POL","DEU - LTU -LVA - NLD - POL","2017 -2019","Sardina pilchardus","Other regions","CECAF","34.1.3","length","Commercial at sea","sample of 25 kg per haul","NA",null,0,null,0,"sample of 25 kg per haul"]
["POL","DEU - LTU -LVA - NLD - POL","2017 -2019","Sardina pilchardus","Other regions","CECAF","34.1.3","weight, sex, maturity ","Commercial at sea","100 per quarter","NA",null,0,null,0,"100 per quarter"]
["POL","DEU - LTU -LVA - NLD - POL","2017 -2019","Scomber spp.","Other regions","CECAF","34.1.3","length","Commercial at sea","sample of 25 kg per haul","NA",null,0,null,0,"sample of 25 kg per haul"]
["POL","DEU - LTU -LVA - NLD - POL","2017 -2019","Scomber spp.","Other regions","CECAF","34.1.3","weight, sex, maturity ","Commercial at sea","100 per quarter","NA",null,0,null,0,"100 per quarter"]
["POL","DEU - LTU -LVA - NLD - POL","2017 -2019","Scomber spp.","Other regions","CECAF","34.3.1","length","Commercial at sea","sample of 25 kg per haul","NA",null,0,null,0,"sample of 25 kg per haul"]
["POL","DEU - LTU -LVA - NLD - POL","2017 -2019","Scomber spp.","Other regions","CECAF","34.3.1","weight, sex, maturity ","Commercial at sea","100 per quarter","NA",null,0,null,0,"100 per quarter"]
["POL","DEU - LTU -LVA - NLD - POL","2017 -2019","Trachurus trachurus","Other regions","CECAF","34.1.3","length","Commercial at sea","sample of 25 kg per haul","NA",null,0,null,0,"sample of 25 kg per haul"]
["POL","DEU - LTU -LVA - NLD - POL","2017 -2019","Trachurus trachurus","Other regions","CECAF","34.1.3","weight, sex, maturity ","Commercial at sea","100 per quarter","NA",null,0,null,0,"100 per quarter"]
["POL","DEU - LTU -LVA - NLD - POL","2017 -2019","Trachurus trachurus","Other regions","CECAF","34.3.1","length","Commercial at sea","sample of 25 kg per haul","NA",null,0,null,0,"sample of 25 kg per haul"]
["POL","DEU - LTU -LVA - NLD - POL","2017 -2019","Trachurus trachurus","Other regions","CECAF","34.3.1","weight, sex, maturity ","Commercial at sea","100 per quarter","NA",null,0,null,0,"100 per quarter"]
["POL","DEU - LTU - NLD - POL","2017 -2019","Trachurus murphyi","Other regions","SPRFMO","SPRFMO Convention Area","length","Commercial at sea","2-3 baskets per haul (ca. 100 fish per haul)","NA","\"Manual for scientific observers on board EU pelagic trawlers in the Pacific\" (in accordance to SPRFMO Data Standards) (http://dcf.mir.gdynia.pl/?page_id=367)",13843,65.8,100,"2-3 baskets per haul (ca. 100 fish per haul)","Planned no of fish = 100 * total no of hauls in observed trips (Two trips observed by single observer. Not possible to observe 100% hauls with single observer onboard)"]
["POL","DEU - LTU - NLD - POL","2017 -2019","Trachurus murphyi","Other regions","SPRFMO","SPRFMO Convention Area","age, sex, maturity ","Commercial at sea","25 fish per day","NA",null,2500,138.9,100,"25 fish per day","Planned no of fish =  25 * total no of fishing days in observed trips"]

{"sheet":"Table1D Recreational Fisheries","index":3,"n_rows":11,"n_cols":25,"rows_kept":11,"cut":false,"hidden":false,"merged":[[6,12,8,12],[9,12,10,12],[6,24,10,24]]}
["Table 1D: Recreational fisheries"]
[null,null,null,null,null,null,null,null,null,null,null,null,null,null,null,null,null,null,null,null,null,null,null,"WP  years","2017-2019"]
[null,null,null,null,null,null,null,null,null,null,null,null,null,null,null,null,null,null,null,null,null,null,null,"AR year",2017]
["MS","Sampling year","Area/EMU","RFMO/RFO/IO","Species","Applicable (Species present in the MS?)","Reasons for not sampling","Threshold (Y/N)","Annual estimate of catch? (Y/N)","Annual percentage of released catch? (Y/N)","Collection of catch composition data? (Y/N)","Type of Survey","Comments","Unique Survey ID or Name of sampling scheme\n(Linked to Table 5A)","Is the survey part of a pilot study or part of an established programme? \n","Frequency","Is the sampling design documented?\n(Linked to Table 5A)","Are non-response and refusal recorded?\n(Linked to Table 5A)","Are the editing and imputation methods documented? (Linked to Table 5A)","Estimation of  the yearly weight and numbers of catch (Y/N)","Estimation of  the yearly percentage release (Y/N)","Collection of catch composition data (Y/N)","Evaluated by external experts/bodies (Y/N)","Conform with accepted standards Y/N","AR Comments "]
["POL","2017-2019","Baltic Sea","ICES","Gadus morhua","Y","NA","N","Y","Y","Y","National estimates of numbers of trips &number of anglers & onsite surveys of catch per unit effort & of catch composition","Planned number of at sea trips: 24","At sea cod recreational fishery","Routine","Annual","Y","Y","N ","Y","Y","Y","Y","Y","The estimation of annual catch and number for the sampling Year (N) is available in the year after (N+1). Survey evaluated by WGRFS. Imputation is not performed at national level. Refusals recorded for questionnaires' survey. At-sea biological sampling not randomized but based on vessels' availability (drawing from vessel list)."]
["POL","2017-2019","Vistula/Oder EMU","ICES","Anguilla anguilla","Y","NA","N","Y","N","N","National estimates of catch based on questionaires and  catch register",null,"NA","NA","NA","NA","NA","NA","NA","NA","NA","NA","NA","Data collected through other program by Inland Fisheries Institute, annually by questionnaires as part of national statistics and based on contract with government. Annual data publicly available (http://www.infish.com.pl/)"]
["POL","2017-2018","Baltic Sea","ICES","Salmo salar","Y","Pilot Sudy planned","N","Y","Y","Y",null,"see Pilot Study 1 in text file","Pilot Study 1","Pilot","Biennial","Y","Y","N ","N","N","N","N","N","See Text Box on Pilot Study 1 for comments"]
["POL","2017-2018","Baltic Sea","ICES","Salmo trutta","Y","Pilot Sudy planned","N","Y","Y","Y",null,null,"Pilot Study 1","Pilot","Biennial","Y","Y","N ","N","N","N","N","N"]
["POL","2017-2018","Baltic Sea","ICES","Anguilla anguilla","Y","Pilot Sudy planned","N","Y","Y","Y",null,null,"Pilot Study 1","Pilot","Biennial","Y","Y","N ","N","N","N","N","N"]
["POL","2017-2018","Baltic Sea inland waters","ICES","Salmo salar","Y","Pilot Sudy planned","N","Y","Y","N",null,"see Pilot Study 1 in text file","Pilot Study 1","Pilot","Biennial","Y","Y","N ","N","N","N","N","N"]
["POL","2017-2018","Baltic Sea inland waters","ICES","Salmo trutta","Y","Pilot Sudy planned","N","Y","Y","N",null,null,"Pilot Study 1","Pilot","Biennial","Y","Y","N ","N","N","N","N","N"]

{"sheet":"Table1E Anadromous catadromous","index":4,"n_rows":21,"n_cols":21,"rows_kept":21,"cut":false,"hidden":false,"merged":[[9,17,12,17],[15,17,18,17],[3,5,4,5],[3,0,4,0],[3,1,4,1],[3,2,4,2],[3,3,4,3],[3,4,4,4],[3,6,4,6],[3,7,4,7],[3,14,4,14],[3,8,4,8],[3,15,4,15],[3,9,4,9],[3,10,4,10],[3,11,4,11],[3,12,4,12],[3,20,4,20],[3,13,4,13],[3,16,4,16],[3,17,4,17],[3,18,4,18],[3,19,4,19]]}
["Table 1E: Anadromous and catadromous species data collection in fresh water "]
[null,null,null,null,null,null,null,null,null,null,null,null,null,null,null,null,null,null,null,"WP  years","2017-2019"]
[null,null,null,null,null,null,null,null,null,null,null,null,null,null,null,null,null,null,null,"AR year",2017]
["MS","Sampling period","Area","RFMO/RFO/IO","Species","Applicable (Y/N)","Reasons for not sampling","Water Body","Life stage","Fishery / Independent data collection","Method","Unit","Planned nos","Frequency","Comments","Achieved numbers","% of achievement (100*P/M)","Reasons for non-conformity","Survey ID","Agreed at RCG level?","AR Comments"]
[]
["POL","2017-2019","ODER EMU","ICES","Anguilla anguilla","Y","NA","Szczecin Lagoon","yellow","F","sampling","n.samples",100,"Y","biological variables ","NA",null,"NA","NA","N","As per Guidance, commercial fisheries in marine waters are defined in tables 1A, 1B, 1C"]
["POL","2017-2019","VISTULA EMU","ICES","Anguilla anguilla","Y","NA","Vistula Lagoon","yellow","F","sampling","n.samples",100,"Y","biological variables ","NA",null,"NA","NA","N","As per Guidance, commercial fisheries in marine waters are defined in tables 1A, 1B, 1C"]
["POL","2017-2019","ODER EMU","ICES","Anguilla anguilla","Y","NA","Szczecin Lagoon","silver","F","sampling","n.samples",100,"Y","biological variables ","NA",null,"NA","NA","N","As per Guidance, commercial fisheries in marine waters are defined in tables 1A, 1B, 1C"]
["POL","2017-2019","VISTULA EMU","ICES","Anguilla anguilla","Y","NA","Vistula Lagoon","silver","F","sampling","n.samples",100,"Y","biological variables ","NA",null,"NA","NA","N","As per Guidance, commercial fisheries in marine waters are defined in tables 1A, 1B, 1C"]
["POL","2017-2019","ODER EMU","ICES","Anguilla anguilla","Y","NA","Inland - lakes","yellow","F","sampling","n.samples",100,"Y","biological variables ",81,{"$f":"P10*100/M10","v":81},"Eels were purchased  from commercial fishery, targeting both stages (yellow and silver)  on fyke nets. For analysis, individuals were chosen after visual observation (based on the coloration), simultaneously measuring all the parameters necessary to determine classification based on Durif et al. 2005. After calculating the Durif index, some individuals were classified to a different stage than those resulting from visual observation. However, this does not affect the results of the stock dynamics model, which does not require separation of stages.  Total number of sampled eels is sufficient for modeling purposes. (DurifC. DufourS. ElieP., 2005. The silvering process of Anguilla anguilla: a new classification from the yellow resident to the silver migrating stage. J. Fish Biol. 66:1025-1043).","POL-ELE-FRW-FYK-commercial fishing","N"]
["POL","2017-2019","VISTULA EMU","ICES","Anguilla anguilla","Y","NA","Inland - lakes","yellow","F","sampling","n.samples",100,"Y","biological variables ",116,116,null,"POL-ELE-FRW-FYK-commercial fishing","N"]
["POL","2017-2019","ODER EMU","ICES","Anguilla anguilla","Y","NA","Inland - lakes","silver","F","sampling","n.samples",150,"Y","biological variables ",195,130,null,"POL-ELE-FRW-FYK-commercial fishing","N"]
["POL","2017-2019","VISTULA EMU","ICES","Anguilla anguilla","Y","NA","Inland - lakes","silver","F","sampling","n.samples",150,"Y","biological variables ",162,108,null,"POL-ELE-FRW-FYK-commercial fishing","N"]
["POL","2017-2019","ODER EMU","ICES","Anguilla anguilla","Y","NA","Szczecin Lagoon","yellow","I","trap","n.sites",2,"Y","yellow eel abundance",1,50,"one site in this area is sufficient for sampling purposes","POL-ELE-FRW-FYK-fishery-independent","N"]
["POL","2017-2019","VISTULA EMU","ICES","Anguilla anguilla","Y","NA","Vistula Lagoon","yellow","I","trap","n.sites",2,"Y","yellow eel abundance",2,100,null,"POL-ELE-FRW-FYK-fishery-independent","N"]
["POL","2017-2019","ODER EMU","ICES","Anguilla anguilla","Y","NA","Inland - lakes","yellow","I","electrofishing","n.sites",10,"Y","yellow eel abundance",18,{"$f":"P16*100/M16","v":180},"In the first year of implementation of this monitoring, more sites were selected than originally planned in WP in order to determine the most representative sites","POL-ELE-FRW-MEL-fishery-independent","N"]
["POL","2017-2019","VISTULA EMU","ICES","Anguilla anguilla","Y","NA","Inland - lakes","yellow","I","electrofishing","n.sites",10,"Y","yellow eel abundance",18,180,null,"POL-ELE-FRW-MEL-fishery-independent","N"]
["POL","2017-2019","ODER EMU","ICES","Anguilla anguilla","Y","NA","Pomeranian rivers","yellow","I","trap","n.sites",5,"Y","abundance of recruits",8,160,null,"POL-ELE-FRW-FIX-fishery independant","N"]
["POL","2017-2019","VISTULA EMU","ICES","Anguilla anguilla","Y","NA","Pomeranian rivers","yellow","I","trap","n.sites",4,"Y","abundance of recruits",5,125,null,"POL-ELE-FRW-FIX-fishery independant","N"]
["POL","2017-2019","Baltic Sea","ICES","Salmo trutta","Y","NA","Oder and Vistula RBD","adult","F","sampling","n.samples",100,"Y","biological variables ",100,100,null,"POL-TRS-FRW-FIX-commercial fishing","N"]
["POL","2017-2019","Baltic Sea","ICES","Salmo trutta","Y","NA","Pomeranian rivers","parr","I","electrofishing","n.sites",30,"Y","parr density",30,100,null,"POL-TRS-FRW-MEL-fishery-independent","N"]

{"sheet":"Table1F Incidental by catch","index":5,"n_rows":26,"n_cols":23,"rows_kept":26,"cut":false,"hidden":false,"merged":[[4,21,5,21],[4,22,5,22],[12,22,16,22],[17,22,18,22],[19,22,20,22],[4,20,5,20],[4,9,5,9],[4,10,5,10],[4,11,5,11],[4,12,5,12],[4,13,5,13],[4,14,5,14],[4,15,5,15],[4,16,5,16],[4,17,5,17],[4,18,5,18],[4,19,5,19],[3,15,3,19],[4,0,5,0],[4,1,5,1],[4,2,5,2],[4,3,5,3],[4,4,5,4],[4,5,5,5],[4,6,5,6],[4,7,5,7],[4,8,5,8]]}
["Table 1F: Incidental by-catch of birds, mammals, reptiles and fish "]
[null,null,null,null,null,null,null,null,null,null,null,null,null,null,null,null,null,null,null,null,null,"WP  years","2017-2019"]
[null,null,null,null,null,null,null,null,null,null,null,null,null,null,null,null,null,null,null,null,null,"AR year",2017]
[null,null,null,null,null,null,null,null,null,null,null,null,null,null,null,"Has there be occurrence of bycatch?"]
["MS","Sampling period/year(s)","Region","RFMO/RFO/IO","Sub-area / Fishing ground","Scheme","Stratum ID code / Name of the survey","Group of vulnerable species","Expected occurence of recordings ","Comments","Total number of PSU in the sampling year","Achieved number of PSU in the sampling year","Number of PSU sampled in which observers have been instructed to look for bycatch","Does your sampling protocol allow for the calculation of observation effort “at haul level” (Y/N)","Is there any mitigation device? (Y/N) ","Fish (Y/N/NA)","Mammals (Y/N/NA)","Birds (Y/N/NA)","Reptiles (Y/N/NA)","Other (Y/N/NA)","Are data stored in a national database?","Are data stored in international database(s)?","AR Comments"]
[]
["POL","2017-2019","Baltic","ICES","22-24","Demersal at sea and on shore","POL DCT1","fish","X",null,152,5,5,"Y","N ","Y","Y","Y","NA","Y","Y","Y","National database: NPZDRpl. International databases: ICES Bycatch DB"]
["POL","2017-2019","Baltic","ICES","22-24","Demersal at sea and on shore","POL GNSC1","fish, birds, mammals","X",null,247,1,1,"Y","Y","Y","Y","Y","NA","Y","Y","Y","Acoustic deterrent devices.  National database: NPZDRpl. International databases: ICES Bycatch DB"]
["POL","2017-2019","Baltic","ICES","25-32","Demersal at sea and on shore","POL DCT2","fish","X",null,1836,13,13,"Y","N","Y","Y","Y","NA","Y","Y","Y","National database: NPZDRpl. International databases: ICES Bycatch DB"]
["POL","2017-2019","Baltic","ICES","25-32","Demersal at sea and on shore","POL GNSC2","fish, birds, mammals","X",null,5589,5,5,"Y","Y","Y","Y","Y","NA","Y","Y","Y","Acoustic deterrent devices.  National database: NPZDRpl. International databases: ICES Bycatch DB"]
["POL","2017-2019","Baltic","ICES","25-32","Demersal at sea and on shore","POL DTF","fish","X",null,1224,6,6,"Y","N","Y","Y","Y","NA","Y","Y","Y","National database: NPZDRpl. International databases: ICES Bycatch DB"]
["POL","2017-2019","Baltic","ICES","25-32","Demersal at sea and on shore","POL GNSF","fish, birds, mammals","X",null,9020,9,9,"Y","Y","Y","Y","Y","NA","Y","Y","Y","Acoustic deterrent devices.  National database: NPZDRpl. International databases: ICES Bycatch DB"]
["POL","2017-2019","Baltic Sea","ICES","22-32","Pelagic at sea and on shore","POL PST","fish","X",null,2675,33,33,"Y","N","Y","Y","Y","NA","Y","Y","Y","National database: NPZDRpl. International databases: ICES Bycatch DB"]
["POL","2017-2019","Baltic Sea","ICES","22-24","Pelagic at sea and on shore","POL PHT1","fish","X",null,91,5,5,"Y","N","Y","Y","Y","NA","Y","Y","Y"]
["POL","2017-2019","Baltic Sea","ICES","22-24","Pelagic at sea and on shore","POL BH1","fish, birds","X",null,235,6,6,"Y","N","Y","Y","Y","NA","Y","Y","Y"]
["POL","2017-2019","Baltic Sea","ICES","25-32","Pelagic at sea and on shore","POL PHT2","fish","X",null,2344,22,22,"Y","N","Y","Y","Y","NA","Y","Y","Y"]
["POL","2017-2019","Baltic Sea","ICES","25-32","Pelagic at sea and on shore","POL BH2","fish, birds","X",null,2366,3,3,"Y","N","Y","Y","Y","NA","Y","Y","Y"]
["POL","2017-2019","Baltic Sea","ICES","22-24","Freshwater at sea and on shore","POL BFWS1","fish, birds, mammals","X",null,3926,9,9,"Y","Y","Y","Y","Y","NA","Y","Y","Y","Escape devise.  National database: NPZDRpl. International databases: ICES Bycatch DB"]
["POL","2017-2019","Baltic Sea","ICES","25-32","Freshwater at sea and on shore","POL BFWS2","fish, birds, mammals","X",null,3429,14,14,"Y","Y","Y","Y","Y","NA","Y","Y","Y"]
["POL","2017-2019","Baltic Sea","ICES","22-32","Salmonids at sea and on shore","POL GNSSAL","birds, mammals","X",null,2093,10,10,"Y","N","Y","Y","Y","NA","Y","Y","Y","National database: NPZDRpl. International databases: ICES Bycatch DB"]
["POL","2017-2019","Baltic Sea","ICES","22-32","Salmonids at sea and on shore","POL LLDSAL","birds, mammals","X",null,543,8,8,"Y","N","Y","Y","Y","NA","Y","Y","Y"]
["POL","2017-2019","North Sea and Eastern Arctic","ICES","I, II","at sea","LDF1","fish, birds, mammals","X",null,4,1,1,"Y","Y","Y","Y","Y","NA","Y","Y","Y","Escape devise.  National database: NPZDRpl. International databases: ICES Bycatch DB"]
["POL","2017-2019","other regions","CECAF","34.1.3; 34.3.1","at sea","LDF2","fish, mammals","X",null,7,0,0,"Y","N","Y","Y","Y","NA","Y","Y","N","No international database. Data are reported to CECAF Working Group. National database under re-development to incorporate data from Other Regions."]
["POL","2017-2019","other regions","SPRFMO","SPRFMO Convention Area","at sea","LDF3","fish, birds, mammals","X",null,10,3,3,"Y","Y","Y","Y","Y","Y","Y","Y","Y","Bird Baffler -obligatory birds mitigation device in SPRFMO area. Data reported to SPRFMO Secretariat and Scientific Council. National database under re-development to incorporate data from Other Regions."]
["POL","2017-2019","Baltic","ICES","22-32","Demersal at sea and on shore","POL SAN","fish","x",null,22,1,1,"Y","N","Y","Y","Y","NA","Y","Y","Y","Sandeel fishery was not selected as a sampling frame in the WP"]
["POL","2017-2019","Baltic","ICES","25-23","Demersal at sea and on shore","POL COD LLS","fish, birds","x",null,601,1,1,"Y","N","Y","Y","Y","NA","Y","Y","Y","Cod fishery using set longlines was not selected as a sampling frame in the WP"]

{"sheet":"Table1G List of research survey","index":6,"n_rows":10,"n_cols":27,"rows_kept":10,"cut":false,"hidden":false,"merged":[[6,22,7,22],[8,22,9,22],[6,23,7,23],[8,23,9,23],[6,26,7,26],[8,26,9,26],[6,18,7,18],[8,18,9,18],[6,19,7,19],[8,19,9,19],[6,21,7,21],[8,21,9,21],[8,14,9,14],[8,15,9,15],[6,17,7,17],[8,17,9,17],[4,16,9,16],[6,10,7,10],[6,13,7,13],[6,14,7,14],[6,15,7,15],[8,0,9,0],[8,1,9,1],[8,2,9,2],[8,3,9,3],[8,4,9,4],[8,5,9,5],[8,6,9,6],[8,7,9,7],[8,8,9,8],[8,9,9,9],[8,10,9,10],[8,13,9,13],[6,5,7,5],[6,6,7,6],[6,7,7,7],[6,8,7,8],[6,9,7,9],[6,0,7,0],[6,1,7,1],[6,2,7,2],[6,3,7,3],[6,4,7,4],[1,17,1,19],[1,20,1,22],[2,17,2,19],[1,7,1,8],[1,9,1,10],[1,11,1,12],[1,13,1,14],[1,15,1,16]]}
["Table 1G: List of research surveys at sea"]
[null,null,null,null,null,null,null,null,null,null,null,null,null,null,null,null,null,null,null,null,null,null,null,null,null,"WP  years","2017-2019"]
[null,null,null,null,null,null,null,null,null,null,null,null,null,null,null,null,null,null,null,null,null,null,null,null,null,"AR year",2017]
["MS","Name of survey","Acronym ","Mandatory (Y/N)","Threshold (Y/N)","Agreed at RCG level","MS participation","Area(s)\ncovered","Period (Month)","Frequency","Days at sea planned","Type of sampling activities","Planned target ","Map","Relevant international planning group - RFMO/RFO/IO","International database","Comments","Type of MS participation","In case of financial participation, is payment done? (Y/N)","Days at sea achieved","Achieved target","Other data assimilations (Y/N)","Was the survey carried out within the official time period? (Y/N)","Was the survey carried out within the official survey area? (Y/N)","Indication if AR comments by MS are required concerning effort achieved","Indication if AR comments by MS are required concerning temporal and spatial coverage","AR Comments"]
["POL","Baltic International Trawl Survey","BITS-1Q","Y","N","Y","DEU - E; DNK - E; LTU - E; LVA - E; SWE - E","IIIb-d","February","Annual",28,"Fish Hauls",81,"Fig 1.1","ICES WGBIFS","DATRAS, TowData, ROSCOP","Number of planned days at sea and planned targets (no of hauls, Nm) may change between years according to recommendations from WGBIFS","P",null,28,81,"N","Y","Y"]
["POL","Baltic International Trawl Survey","BITS-4Q","Y","N","Y","DEU - E; DNK - E; EST - E; LTU - E; LVA - E; SWE - E","IIIb-d","November","Annual ",23,"Fish Hauls",60,"Fig 1.2","ICES WGBIFS","DATRAS, TowData, ROSCOP",null,"P",null,23,56,"N","Y","Y",null,null,"Four out of 60 planned  fish hauls could not be performed due to unfavourable weather conditions"]
["POL","Baltic International Acoustic Survey ","BIAS","Y","N","Y","DEU - E; DNK - C; EST - E; FIN - E; LTU - E; LVA - E; SWE - E","IIIb-d","September","Annual ",18,"Echo Nm",830,"Fig 1.3","ICES WGBIFS","BIAS-DB",null,"P",null,18,863,"N","Y","Y"]
[null,null,null,null,null,null,null,null,null,null,null,"Fish Hauls",35,null,null,null,null,null,null,null,39]
["POL","Sprat Acoustic Survey","SPRAS","Y","N","Y","DEU - E; EST - E; LTU - E; LVA - E","IIId","May","Annual ",12,"Echo Nm",830,"Fig 1.3","ICES WGBIFS","BASS-DB",null,"P",null,12,876,"N","Y","Y"]
[null,null,null,null,null,null,null,null,null,null,null,"Fish Hauls",35,null,null,null,null,null,null,null,32]

{"sheet":"Table1H Research survey data","index":7,"n_rows":20,"n_cols":13,"rows_kept":20,"cut":false,"hidden":false,"merged":[[14,0,16,0],[14,1,16,1],[14,2,16,2],[17,0,19,0],[17,1,19,1],[17,2,19,2],[4,0,8,0],[4,1,8,1],[4,2,8,2],[9,0,13,0],[9,1,13,1],[9,2,13,2]]}
["Table 1H: Research survey data collection and dissemination"]
[null,null,null,null,null,null,null,null,null,null,null,"WP  years","2017-2019"]
[null,null,null,null,null,null,null,null,null,null,null,"AR year",2017]
["MS","Name of survey","Acronym ","Type of data collected","Core/ Additional variable","Used as basis for advice (Y/N)","Comments","Was the sampling carried out? (Y/N/P)","Relevant International database","Was the data uploaded to the relevant database? (Y/N)","Other data assimilations? (Y/N)","Indication if AR comments are required by MS","AR comments"]
["POL","Baltic International Trawl Survey","BITS-1Q","Biological data for Cod 25-32 and Flounder 22-32","C","Y",null,"Y","DATRAS, TowData, ROSCOP","Y","N"]
[null,null,null,"Cod stomachs content","A","N",null,"Y","No existing database","N","N"]
[null,null,null,"CTD by haul","A","N",null,"Y","ICES Oceanographic DB; ICES - IROC","Y","N"]
[null,null,null,"Litter by haul","A","N",null,"Y","DATRAS ","Y","N"]
[null,null,null,"Marine mammal observations","A","N",null,"Y","No existing database","N","N"]
["POL","Baltic International Trawl Survey","BITS-4Q","Biological data for Cod 25-32 and Flounder 22-32","C","Y",null,"Y","DATRAS, TowData, ROSCOP","Y","N"]
[null,null,null,"Cod stomachs content","A","N",null,"Y","No existing database","N","N"]
[null,null,null,"CTD by haul","A","N",null,"Y","ICES Oceanographic DB; ICES - IROC","Y","N"]
[null,null,null,"Litter by haul","A","N",null,"Y","DATRAS ","Y","N"]
[null,null,null,"Marine mammal observations","A","N",null,"Y","No existing database","N","N"]
["POL","Baltic International Acoustic Survey ","BIAS","Biological data for Herring 25-29 and Sprat 22-32","C","Y",null,"Y","BIAS-DB","Y","N"]
[null,null,null,"CTD by haul","A","N",null,"Y","ICES Oceanographic DB; ICES - IROC","Y","N"]
[null,null,null,"Marine mammal observations","A","N",null,"Y","No existing database","N","N"]
["POL","Sprat Acoustic Survey","SPRAS","Biological data for Sprat 22-32","C","Y",null,"Y","BASS-DB","Y","N"]
[null,null,null,"CTD by haul","A","N",null,"Y","ICES Oceanographic DB; ICES - IROC","Y","N"]
[null,null,null,"Marine mammal observations","A","N",null,"Y","No existing database","N","N"]

{"sheet":"Table2A Fishing activity variab","index":8,"n_rows":61,"n_cols":20,"rows_kept":61,"cut":false,"hidden":false,"merged":[]}
["Table 2A: Fishing activity variables data collection strategy "]
[null,null,null,null,null,null,null,null,null,null,null,null,null,null,null,null,null,null,"WP  years","2017-2019"]
[null,null,null,null,null,null,null,null,null,null,null,null,null,null,null,null,null,null,"AR year",2017]
["MS","Supra region ","Region","Variable Group ","Variable","Fishing technique ","Length class ","Metiers (level 6)","Data collected  under control regulation appropriate for scientific use (Y/N/I)","Type of data collected under control regulation used to calculate the estimates ","Expected coverage of data collected under control regulation (% of fishing trips)","Additional data collection (Y/N)","Data collection scheme ","Planned coverage of data collected under complementary data collection (% of fishing trips)","Comments","Data collected  under control regulation accessible for scientific use (Y/N/I)","Data source for complementary data collection","Achieved coverage of data collected under complementary data collection ","Response Rate (%)","AR comments"]
["POL","Baltic Sea; North Sea; Eastern Arctic; NAFO; Extended North-Western waters (Ices areas V, VI and VII) and Southern Western waters","Baltic Sea (ICES areas III b-d)","Effort","Days at sea, Hours fished, Fishing days, kW*Fishing days, GT*Fishing days, Number of trips, Number of fishing operations","Demersal trawlers and/or seiners","10-<12","All metiers","Y","Aggregated data from logbooks",100,"N","None","NA",null,"Y","NA","NA","NA"]
["POL","Baltic Sea; North Sea; Eastern Arctic; NAFO; Extended North-Western waters (Ices areas V, VI and VII) and Southern Western waters","Baltic Sea (ICES areas III b-d)","Effort","Days at sea, Hours fished, Fishing days, kW*Fishing days, GT*Fishing days, Number of trips, Number of fishing operations","Demersal trawlers and/or seiners","12-<18","All metiers","Y","Aggregated data from logbooks, VMS data",100,"N","None","NA",null,"Y","NA","NA","NA"]
["POL","Baltic Sea; North Sea; Eastern Arctic; NAFO; Extended North-Western waters (Ices areas V, VI and VII) and Southern Western waters","Baltic Sea (ICES areas III b-d)","Effort","Days at sea, Hours fished, Fishing days, kW*Fishing days, GT*Fishing days, Number of trips, Number of fishing operations","Demersal trawlers and/or seiners","18-<24","All metiers","Y","Aggregated data from logbooks, VMS data",100,"N","None","NA",null,"Y","NA","NA","NA"]
["POL","Baltic Sea; North Sea; Eastern Arctic; NAFO; Extended North-Western waters (Ices areas V, VI and VII) and Southern Western waters","Baltic Sea (ICES areas III b-d)","Effort","Days at sea, Hours fished, Fishing days, kW*Fishing days, GT*Fishing days, Number of trips, Number of fishing operations","Demersal trawlers and/or seiners","24-<40","All metiers","Y","Aggregated data from logbooks, VMS data",100,"N","None","NA",null,"Y","NA","NA","NA"]
["POL","Baltic Sea; North Sea; Eastern Arctic; NAFO; Extended North-Western waters (Ices areas V, VI and VII) and Southern Western waters","Baltic Sea (ICES areas III b-d)","Capacity","Number of vessels, GT, kW, Vessel Age","Demersal trawlers and/or seiners","10-<12","All metiers","Y","Aggregated data from logbooks, Fleet register",100,"N","None","NA",null,"Y","NA","NA","NA"]
["POL","Baltic Sea; North Sea; Eastern Arctic; NAFO; Extended North-Western waters (Ices areas V, VI and VII) and Southern Western waters","Baltic Sea (ICES areas III b-d)","Capacity","Number of vessels, GT, kW, Vessel Age","Demersal trawlers and/or seiners","12-<18","All metiers","Y","Aggregated data from logbooks, Fleet register",100,"N","None","NA",null,"Y","NA","NA","NA"]
["POL","Baltic Sea; North Sea; Eastern Arctic; NAFO; Extended North-Western waters (Ices areas V, VI and VII) and Southern Western waters","Baltic Sea (ICES areas III b-d)","Capacity","Number of vessels, GT, kW, Vessel Age","Demersal trawlers and/or seiners","18-<24","All metiers","Y","Aggregated data from logbooks, Fleet register",100,"N","None","NA",null,"Y","NA","NA","NA"]
["POL","Baltic Sea; North Sea; Eastern Arctic; NAFO; Extended North-Western waters (Ices areas V, VI and VII) and Southern Western waters","Baltic Sea (ICES areas III b-d)","Capacity","Number of vessels, GT, kW, Vessel Age","Demersal trawlers and/or seiners","24-<40","All metiers","Y","Aggregated data from logbooks, Fleet register",100,"N","None","NA",null,"Y","NA","NA","NA"]
["POL","Baltic Sea; North Sea; Eastern Arctic; NAFO; Extended North-Western waters (Ices areas V, VI and VII) and Southern Western waters","Baltic Sea (ICES areas III b-d)","Landings","Value of landings total and per commercial species, Live Weight of landings total and per species, Prices by commercial species","Demersal trawlers and/or seiners","10-<12","All metiers","Y","Aggregated data from logbooks and sales notes",100,"N","None","NA",null,"Y","NA","NA","NA"]
["POL","Baltic Sea; North Sea; Eastern Arctic; NAFO; Extended North-Western waters (Ices areas V, VI and VII) and Southern Western waters","Baltic Sea (ICES areas III b-d)","Landings","Value of landings total and per commercial species, Live Weight of landings total and per species, Prices by commercial species","Demersal trawlers and/or seiners","12-<18","All metiers","Y","Aggregated data from logbooks and sales notes, VMS data",100,"N","None","NA",null,"Y","NA","NA","NA"]
["POL","Baltic Sea; North Sea; Eastern Arctic; NAFO; Extended North-Western waters (Ices areas V, VI and VII) and Southern Western waters","Baltic Sea (ICES areas III b-d)","Landings","Value of landings total and per commercial species, Live Weight of landings total and per species, Prices by commercial species","Demersal trawlers and/or seiners","18-<24","All metiers","Y","Aggregated data from logbooks and sales notes, VMS data",100,"N","None","NA",null,"Y","NA","NA","NA"]
["POL","Baltic Sea; North Sea; Eastern Arctic; NAFO; Extended North-Western waters (Ices areas V, VI and VII) and Southern Western waters","Baltic Sea (ICES areas III b-d)","Landings","Value of landings total and per commercial species, Live Weight of landings total and per species, Prices by commercial species","Demersal trawlers and/or seiners","24-<40","All metiers","Y","Aggregated data from logbooks and sales notes, VMS data",100,"N","None","NA",null,"Y","NA","NA","NA"]
["POL","Baltic Sea; North Sea; Eastern Arctic; NAFO; Extended North-Western waters (Ices areas V, VI and VII) and Southern Western waters","Baltic Sea (ICES areas III b-d)","Effort","Days at sea, Hours fished, Fishing days, kW*Fishing days, GT*Fishing days, Number of trips, Number of fishing operations","Pelagic trawlers","12-<18","All metiers","Y","Aggregated data from logbooks, VMS data",100,"N","None","NA",null,"Y","NA","NA","NA"]
["POL","Baltic Sea; North Sea; Eastern Arctic; NAFO; Extended North-Western waters (Ices areas V, VI and VII) and Southern Western waters","Baltic Sea (ICES areas III b-d)","Effort","Days at sea, Hours fished, Fishing days, kW*Fishing days, GT*Fishing days, Number of trips, Number of fishing operations","Pelagic trawlers","18-<24","All metiers","Y","Aggregated data from logbooks, VMS data",100,"N","None","NA",null,"Y","NA","NA","NA"]
["POL","Baltic Sea; North Sea; Eastern Arctic; NAFO; Extended North-Western waters (Ices areas V, VI and VII) and Southern Western waters","Baltic Sea (ICES areas III b-d)","Effort","Days at sea, Hours fished, Fishing days, kW*Fishing days, GT*Fishing days, Number of trips, Number of fishing operations","Pelagic trawlers","24-<40","All metiers","Y","Aggregated data from logbooks, VMS data",100,"N","None","NA",null,"Y","NA","NA","NA"]
["POL","Baltic Sea; North Sea; Eastern Arctic; NAFO; Extended North-Western waters (Ices areas V, VI and VII) and Southern Western waters","Baltic Sea (ICES areas III b-d)","Capacity","Number of vessels, GT, kW, Vessel Age","Pelagic trawlers","12-<18","All metiers","Y","Aggregated data from logbooks, Fleet register",100,"N","None","NA",null,"Y","NA","NA","NA"]
["POL","Baltic Sea; North Sea; Eastern Arctic; NAFO; Extended North-Western waters (Ices areas V, VI and VII) and Southern Western waters","Baltic Sea (ICES areas III b-d)","Capacity","Number of vessels, GT, kW, Vessel Age","Pelagic trawlers","18-<24","All metiers","Y","Aggregated data from logbooks, Fleet register",100,"N","None","NA",null,"Y","NA","NA","NA"]
["POL","Baltic Sea; North Sea; Eastern Arctic; NAFO; Extended North-Western waters (Ices areas V, VI and VII) and Southern Western waters","Baltic Sea (ICES areas III b-d)","Capacity","Number of vessels, GT, kW, Vessel Age","Pelagic trawlers","24-<40","All metiers","Y","Aggregated data from logbooks, Fleet register",100,"N","None","NA",null,"Y","NA","NA","NA"]
["POL","Baltic Sea; North Sea; Eastern Arctic; NAFO; Extended North-Western waters (Ices areas V, VI and VII) and Southern Western waters","Baltic Sea (ICES areas III b-d)","Landings","Value of landings total and per commercial species, Live Weight of landings total and per species, Prices by commercial species","Pelagic trawlers","12-<18","All metiers","Y","Aggregated data from logbooks and sales notes, VMS data",100,"N","None","NA",null,"Y","NA","NA","NA"]
["POL","Baltic Sea; North Sea; Eastern Arctic; NAFO; Extended North-Western waters (Ices areas V, VI and VII) and Southern Western waters","Baltic Sea (ICES areas III b-d)","Landings","Value of landings total and per commercial species, Live Weight of landings total and per species, Prices by commercial species","Pelagic trawlers","18-<24","All metiers","Y","Aggregated data from logbooks and sales notes, VMS data",100,"N","None","NA",null,"Y","NA","NA","NA"]
["POL","Baltic Sea; North Sea; Eastern Arctic; NAFO; Extended North-Western waters (Ices areas V, VI and VII) and Southern Western waters","Baltic Sea (ICES areas III b-d)","Landings","Value of landings total and per commercial species, Live Weight of landings total and per species, Prices by commercial species","Pelagic trawlers","24-<40","All metiers","Y","Aggregated data from logbooks and sales notes, VMS data",100,"N","None","NA",null,"Y","NA","NA","NA"]
["POL","Baltic Sea; North Sea; Eastern Arctic; NAFO; Extended North-Western waters (Ices areas V, VI and VII) and Southern Western waters","Baltic Sea (ICES areas III b-d)","Effort","Days at sea, Hours fished, Fishing days, kW*Fishing days, GT*Fishing days, Number of trips, Number of nets","Drift and/or fixed netters","0-<10","All metiers","Y","Data from monthly catch reports",100,"N","None","NA","Mesh size information is missing which causes difficulties in metier identification.","Y","NA","NA","NA"]
["POL","Baltic Sea; North Sea; Eastern Arctic; NAFO; Extended North-Western waters (Ices areas V, VI and VII) and Southern Western waters","Baltic Sea (ICES areas III b-d)","Effort","Days at sea, Hours fished, Fishing days, kW*Fishing days, GT*Fishing days, Number of trips, Number of fishing operations, Number of nets","Drift and/or fixed netters","10-<12","All metiers","Y","Aggregated data from logbooks",100,"N","None","NA",null,"Y","NA","NA","NA"]
["POL","Baltic Sea; North Sea; Eastern Arctic; NAFO; Extended North-Western waters (Ices areas V, VI and VII) and Southern Western waters","Baltic Sea (ICES areas III b-d)","Effort","Days at sea, Hours fished, Fishing days, kW*Fishing days, GT*Fishing days, Number of trips, Number of fishing operations, Number of nets","Drift and/or fixed netters","12-<18","All metiers","Y","Aggregated data from logbooks, VMS data",100,"N","None","NA",null,"Y","NA","NA","NA"]
["POL","Baltic Sea; North Sea; Eastern Arctic; NAFO; Extended North-Western waters (Ices areas V, VI and VII) and Southern Western waters","Baltic Sea (ICES areas III b-d)","Capacity","Number of vessels, GT, kW, Vessel Age","Drift and/or fixed netters","0-<10","All metiers","Y","Data from monthly catch reports, Fleet register",100,"N","None","NA","Mesh size information is missing which causes difficulties in metier identification.","Y","NA","NA","NA"]
["POL","Baltic Sea; North Sea; Eastern Arctic; NAFO; Extended North-Western waters (Ices areas V, VI and VII) and Southern Western waters","Baltic Sea (ICES areas III b-d)","Capacity","Number of vessels, GT, kW, Vessel Age","Drift and/or fixed netters","10-<12","All metiers","Y","Aggregated data from logbooks, Fleet register",100,"N","None","NA",null,"Y","NA","NA","NA"]
["POL","Baltic Sea; North Sea; Eastern Arctic; NAFO; Extended North-Western waters (Ices areas V, VI and VII) and Southern Western waters","Baltic Sea (ICES areas III b-d)","Capacity","Number of vessels, GT, kW, Vessel Age","Drift and/or fixed netters","12-<18","All metiers","Y","Aggregated data from logbooks, Fleet register",100,"N","None","NA",null,"Y","NA","NA","NA"]
["POL","Baltic Sea; North Sea; Eastern Arctic; NAFO; Extended North-Western waters (Ices areas V, VI and VII) and Southern Western waters","Baltic Sea (ICES areas III b-d)","Landings","Value of landings total and per commercial species, Live Weight of landings total and per species, Prices by commercial species","Drift and/or fixed netters","0-<10","All metiers","Y","Data from monthly catch reports ad sales notes",100,"N","None","NA","Mesh size information is missing which causes difficulties in metier identification.","Y","NA","NA","NA","Limited access to sales notes which are stored in a paper form. "]
["POL","Baltic Sea; North Sea; Eastern Arctic; NAFO; Extended North-Western waters (Ices areas V, VI and VII) and Southern Western waters","Baltic Sea (ICES areas III b-d)","Landings","Value of landings total and per commercial species, Live Weight of landings total and per species, Prices by commercial species","Drift and/or fixed netters","10-<12","All metiers","Y","Aggregated data from logbooks and sales notes",100,"N","None","NA",null,"Y","NA","NA","NA"]
["POL","Baltic Sea; North Sea; Eastern Arctic; NAFO; Extended North-Western waters (Ices areas V, VI and VII) and Southern Western waters","Baltic Sea (ICES areas III b-d)","Landings","Value of landings total and per commercial species, Live Weight of landings total and per species, Prices by commercial species","Drift and/or fixed netters","12-<18","All metiers","Y","Aggregated data from logbooks and sales notes, VMS data",100,"N","None","NA",null,"Y","NA","NA","NA"]
["POL","Baltic Sea; North Sea; Eastern Arctic; NAFO; Extended North-Western waters (Ices areas V, VI and VII) and Southern Western waters","Baltic Sea (ICES areas III b-d)","Effort","Days at sea, Hours fished, Fishing days, kW*Fishing days, GT*Fishing days, Number of trips, Number of pots/traps","Vessels using Pots and/or traps","0-<10","All metiers","Y","Data from monthly catch reports",100,"N","None","NA","Mesh size information is missing which causes difficulties in metier identification.","Y","NA","NA","NA"]
["POL","Baltic Sea; North Sea; Eastern Arctic; NAFO; Extended North-Western waters (Ices areas V, VI and VII) and Southern Western waters","Baltic Sea (ICES areas III b-d)","Effort","Days at sea, Hours fished, Fishing days, kW*Fishing days, GT*Fishing days, Number of trips, Number of fishing operations, Number of pots/traps","Vessels using Pots and/or traps","10-<12","All metiers","Y","Aggregated data from logbooks",100,"N","None","NA",null,"Y","NA","NA","NA"]
["POL","Baltic Sea; North Sea; Eastern Arctic; NAFO; Extended North-Western waters (Ices areas V, VI and VII) and Southern Western waters","Baltic Sea (ICES areas III b-d)","Capacity","Number of vessels, GT, kW, Vessel Age","Vessels using Pots and/or traps","0-<10","All metiers","Y","Data from monthly catch reports, Fleet register",100,"N","None","NA","Mesh size information is missing which causes difficulties in metier identification.","Y","NA","NA","NA"]
["POL","Baltic Sea; North Sea; Eastern Arctic; NAFO; Extended North-Western waters (Ices areas V, VI and VII) and Southern Western waters","Baltic Sea (ICES areas III b-d)","Capacity","Number of vessels, GT, kW, Vessel Age","Vessels using Pots and/or traps","10-<12","All metiers","Y","Aggregated data from logbooks, Fleet register",100,"N","None","NA",null,"Y","NA","NA","NA"]
["POL","Baltic Sea; North Sea; Eastern Arctic; NAFO; Extended North-Western waters (Ices areas V, VI and VII) and Southern Western waters","Baltic Sea (ICES areas III b-d)","Landings","Value of landings total and per commercial species, Live Weight of landings total and per species, Prices by commercial species","Vessels using Pots and/or traps","0-<10","All metiers","Y","Data from monthly catch reports ad sales notes",100,"N","None","NA","Mesh size information is missing which causes difficulties in metier identification.","Y","NA","NA","NA","Limited access to sales notes which are stored in a paper form."]
["POL","Baltic Sea; North Sea; Eastern Arctic; NAFO; Extended North-Western waters (Ices areas V, VI and VII) and Southern Western waters","Baltic Sea (ICES areas III b-d)","Landings","Value of landings total and per commercial species, Live Weight of landings total and per species, Prices by commercial species","Vessels using Pots and/or traps","10-<12","All metiers","Y","Aggregated data from logbooks and sales notes",100,"N","None","NA",null,"Y","NA","NA","NA"]
["POL","Baltic Sea; North Sea; Eastern Arctic; NAFO; Extended North-Western waters (Ices areas V, VI and VII) and Southern Western waters","Baltic Sea (ICES areas III b-d)","Effort","Days at sea, Hours fished, Fishing days, kW*Fishing days, GT*Fishing days, Number of trips, Number of hooks","Vessels using hooks","0-<10","All metiers","Y","Data from monthly catch reports",100,"N","None","NA","Mesh size information is missing which causes difficulties in metier identification.","Y","NA","NA","NA"]
["POL","Baltic Sea; North Sea; Eastern Arctic; NAFO; Extended North-Western waters (Ices areas V, VI and VII) and Southern Western waters","Baltic Sea (ICES areas III b-d)","Effort","Days at sea, Hours fished, Fishing days, kW*Fishing days, GT*Fishing days, Number of trips, Number of fishing operations, Number of hooks","Vessels using hooks","10-<12","All metiers","Y","Aggregated data from logbooks",100,"N","None","NA",null,"Y","NA","NA","NA"]
["POL","Baltic Sea; North Sea; Eastern Arctic; NAFO; Extended North-Western waters (Ices areas V, VI and VII) and Southern Western waters","Baltic Sea (ICES areas III b-d)","Effort","Days at sea, Hours fished, Fishing days, kW*Fishing days, GT*Fishing days, Number of trips, Number of fishing operations, Number of hooks","Vessels using hooks","12-<18","All metiers","Y","Aggregated data from logbooks, VMS data",100,"N","None","NA",null,"Y","NA","NA","NA"]
["POL","Baltic Sea; North Sea; Eastern Arctic; NAFO; Extended North-Western waters (Ices areas V, VI and VII) and Southern Western waters","Baltic Sea (ICES areas III b-d)","Effort","Days at sea, Hours fished, Fishing days, kW*Fishing days, GT*Fishing days, Number of trips, Number of fishing operations, Number of hooks","Vessels using hooks","18-<24","All metiers","Y","Aggregated data from logbooks, VMS data",100,"N","None","NA",null,"Y","NA","NA","NA"]
["POL","Baltic Sea; North Sea; Eastern Arctic; NAFO; Extended North-Western waters (Ices areas V, VI and VII) and Southern Western waters","Baltic Sea (ICES areas III b-d)","Capacity","Number of vessels, GT, kW, Vessel Age","Vessels using hooks","0-<10","All metiers","Y","Data from monthly catch reports, Fleet register",100,"N","None","NA","Mesh size information is missing which causes difficulties in metier identification.","Y","NA","NA","NA"]
["POL","Baltic Sea; North Sea; Eastern Arctic; NAFO; Extended North-Western waters (Ices areas V, VI and VII) and Southern Western waters","Baltic Sea (ICES areas III b-d)","Capacity","Number of vessels, GT, kW, Vessel Age","Vessels using hooks","10-<12","All metiers","Y","Aggregated data from logbooks, Fleet register",100,"N","None","NA",null,"Y","NA","NA","NA"]
["POL","Baltic Sea; North Sea; Eastern Arctic; NAFO; Extended North-Western waters (Ices areas V, VI and VII) and Southern Western waters","Baltic Sea (ICES areas III b-d)","Capacity","Number of vessels, GT, kW, Vessel Age","Vessels using hooks","12-<18","All metiers","Y","Aggregated data from logbooks, Fleet register",100,"N","None","NA",null,"Y","NA","NA","NA"]
["POL","Baltic Sea; North Sea; Eastern Arctic; NAFO; Extended North-Western waters (Ices areas V, VI and VII) and Southern Western waters","Baltic Sea (ICES areas III b-d)","Capacity","Number of vessels, GT, kW, Vessel Age","Vessels using hooks","18-<24","All metiers","Y","Aggregated data from logbooks, Fleet register",100,"N","None","NA",null,"Y","NA","NA","NA"]
["POL","Baltic Sea; North Sea; Eastern Arctic; NAFO; Extended North-Western waters (Ices areas V, VI and VII) and Southern Western waters","Baltic Sea (ICES areas III b-d)","Landings","Value of landings total and per commercial species, Live Weight of landings total and per species, Prices by commercial species","Vessels using hooks","0-<10","All metiers","Y","Data from monthly catch reports ad sales notes",100,"N","None","NA","Mesh size information is missing which causes difficulties in metier identification.","Y","NA","NA","NA","Limited access to sales notes which are stored in a paper form."]
["POL","Baltic Sea; North Sea; Eastern Arctic; NAFO; Extended North-Western waters (Ices areas V, VI and VII) and Southern Western waters","Baltic Sea (ICES areas III b-d)","Landings","Value of landings total and per commercial species, Live Weight of landings total and per species, Prices by commercial species","Vessels using hooks","10-<12","All metiers","Y","Aggregated data from logbooks and sales notes",100,"N","None","NA",null,"Y","NA","NA","NA"]
["POL","Baltic Sea; North Sea; Eastern Arctic; NAFO; Extended North-Western waters (Ices areas V, VI and VII) and Southern Western waters","Baltic Sea (ICES areas III b-d)","Landings","Value of landings total and per commercial species, Live Weight of landings total and per species, Prices by commercial species","Vessels using hooks","12-<18","All metiers","Y","Aggregated data from logbooks and sales notes, VMS data",100,"N","None","NA",null,"Y","NA","NA","NA"]
["POL","Baltic Sea; North Sea; Eastern Arctic; NAFO; Extended North-Western waters (Ices areas V, VI and VII) and Southern Western waters","Baltic Sea (ICES areas III b-d)","Landings","Value of landings total and per commercial species, Live Weight of landings total and per species, Prices by commercial species","Vessels using hooks","18-<24","All metiers","Y","Aggregated data from logbooks and sales notes, VMS data",100,"N","None","NA",null,"Y","NA","NA","NA"]
["POL","Baltic Sea; North Sea; Eastern Arctic; NAFO; Extended North-Western waters (Ices areas V, VI and VII) and Southern Western waters","Eastern Arctic (ICES areas I and II)","Effort","Days at sea, Hours fished, Fishing days, kW*Fishing days, GT*Fishing days, Number of trips, Number of fishing operations","Demersal trawlers and/or seiners","40 m or larger","All metiers","Y","Aggregated data from logbooks, VMS data",100,"N","None","NA",null,"Y","NA","NA","NA"]
["POL","Baltic Sea; North Sea; Eastern Arctic; NAFO; Extended North-Western waters (Ices areas V, VI and VII) and Southern Western waters","Eastern Arctic (ICES areas I and II)","Capacity","Number of vessels, GT, kW, Vessel Age","Demersal trawlers and/or seiners","40 m or larger","All metiers","Y","Aggregated data from logbooks, Fleet register",100,"N","None","NA",null,"Y","NA","NA","NA"]
["POL","Baltic Sea; North Sea; Eastern Arctic; NAFO; Extended North-Western waters (Ices areas V, VI and VII) and Southern Western waters","Eastern Arctic (ICES areas I and II)","Landings","Live Weight of landings total and per species","Demersal trawlers and/or seiners","40 m or larger","All metiers","Y","Aggregated data from logbooks and sales notes, VMS data",100,"N","None","NA",null,"Y","NA","NA","NA"]
["POL","Other regions","CECAF","Effort","Days at sea, Hours fished, Fishing days, kW*Fishing days, GT*Fishing days, Number of trips, Number of fishing operations","Pelagic trawlers","40 m or larger","All metiers","Y","Aggregated data from logbooks, VMS data",100,"N","None","NA",null,"Y","NA","NA","NA"]
["POL","Other regions","CECAF","Capacity","Number of vessels, GT, kW, Vessel Age","Pelagic trawlers","40 m or larger","All metiers","Y","Aggregated data from logbooks, Fleet register",100,"N","None","NA",null,"Y","NA","NA","NA"]
["POL","Other regions","CECAF","Landings","Live Weight of landings total and per species","Pelagic trawlers","40 m or larger","All metiers","Y","Aggregated data from logbooks and sales notes, VMS data",100,"N","None","NA",null,"Y","NA","NA","NA"]
["POL","Other regions","SPRFMO","Effort","Days at sea, Hours fished, Fishing days, kW*Fishing days, GT*Fishing days, Number of trips, Number of fishing operations","Pelagic trawlers","40 m or larger","All metiers","Y","Aggregated data from logbooks, VMS data",100,"N","None","NA",null,"Y","NA","NA","NA"]
["POL","Other regions","SPRFMO","Capacity","Number of vessels, GT, kW, Vessel Age","Pelagic trawlers","40 m or larger","All metiers","Y","Aggregated data from logbooks, Fleet register",100,"N","None","NA",null,"Y","NA","NA","NA"]
["POL","Other regions","SPRFMO","Landings","Live Weight of landings total and per species","Pelagic trawlers","40 m or larger","All metiers","Y","Aggregated data from logbooks and sales notes, VMS data",100,"N","None","NA",null,"Y","NA","NA","NA"]

{"sheet":"Table3A  Pop segment fisher","index":9,"n_rows":404,"n_cols":18,"rows_kept":404,"cut":false,"hidden":false,"merged":[]}
["Table 3A: Population segments for collection of economic and social data for fisheries"]
[null,null,null,null,null,null,null,null,null,null,null,null,null,null,null,null,"WP  years","2017-2019"]
[null,null,null,null,null,null,null,null,null,null,null,null,null,null,null,null,"AR year",2017]
["MS","Supra region ","Fishing technique ","Length class ","Cluster Name","Type of variables (E/S)","Variable","Data Source","Type of data collection scheme ","Frequency","Planned sample rate % ","Comments","Frame population","Achieved sample number","Achieved Sample Rate %","Response Rate %","Achieved Sample no/Planned sample no.","AR Comments"]
["POL","Baltic Sea, North Sea and Eastern Arctic, and North Atlantic","Passive gears","00-<10 m","Passive Gears 0-10 m","E","Gross value of landings","questionnaires/first sale document","A","Every Year",1,null,513,513,{"$f":"N5/M5","v":1},{"$f":"N5/M5","v":1},{"$f":"N5/(M5*K5/100)","v":100}]
["POL","Baltic Sea, North Sea and Eastern Arctic, and North Atlantic","Passive gears","00-<10 m","Passive Gears 0-10 m","E","Income from leasing out quota or other fishing rights","not relevant",null,null,null,null,"N/A","N/A","N/A","N/A","N/A"]
["POL","Baltic Sea, North Sea and Eastern Arctic, and North Atlantic","Passive gears","00-<10 m","Passive Gears 0-10 m","E","Other income","questionnaires","A","Every Year",1,null,513,242,{"$f":"N7/M7","v":0.47173489278752434},{"$f":"N7/M7","v":0.47173489278752434},47.173489278752434]
["POL","Baltic Sea, North Sea and Eastern Arctic, and North Atlantic","Passive gears","00-<10 m","Passive Gears 0-10 m","E","Wages and salaries of crew","questionnaires","A","Every Year",1,null,513,242,0.47173489278752434,{"$f":"N8/M8","v":0.47173489278752434},47.173489278752434]
["POL","Baltic Sea, North Sea and Eastern Arctic, and North Atlantic","Passive gears","00-<10 m","Passive Gears 0-10 m","E","Imputed value of unpaid labour","estimation","D","Every Year",1,null,513,242,0.47173489278752434,0.47173489278752434,47.173489278752434]
["POL","Baltic Sea, North Sea and Eastern Arctic, and North Atlantic","Passive gears","00-<10 m","Passive Gears 0-10 m","E","Energy costs","questionnaires","A","Every Year",1,null,513,242,0.47173489278752434,0.47173489278752434,47.173489278752434]
["POL","Baltic Sea, North Sea and Eastern Arctic, and North Atlantic","Passive gears","00-<10 m","Passive Gears 0-10 m","E","Repair and maintenance costs","questionnaires","A","Every Year",1,null,513,242,0.47173489278752434,0.47173489278752434,47.173489278752434]
["POL","Baltic Sea, North Sea and Eastern Arctic, and North Atlantic","Passive gears","00-<10 m","Passive Gears 0-10 m","E","Variable costs","questionnaires","A","Every Year",1,null,513,242,0.47173489278752434,0.47173489278752434,47.173489278752434]
["POL","Baltic Sea, North Sea and Eastern Arctic, and North Atlantic","Passive gears","00-<10 m","Passive Gears 0-10 m","E","Non-variable costs","questionnaires","A","Every Year",1,null,513,242,0.47173489278752434,0.47173489278752434,47.173489278752434]
["POL","Baltic Sea, North Sea and Eastern Arctic, and North Atlantic","Passive gears","00-<10 m","Passive Gears 0-10 m","E","Lease/rental payments for quota or other fishing rights","questionnaires","A","Every Year",1,null,513,242,0.47173489278752434,0.47173489278752434,47.173489278752434]
["POL","Baltic Sea, North Sea and Eastern Arctic, and North Atlantic","Passive gears","00-<10 m","Passive Gears 0-10 m","E","Operating Subsidies","questionnaires","A","Every Year",1,null,513,242,0.47173489278752434,0.47173489278752434,47.173489278752434]
["POL","Baltic Sea, North Sea and Eastern Arctic, and North Atlantic","Passive gears","00-<10 m","Passive Gears 0-10 m","E","Subsidies on investments","questionnaires","A","Every Year",1,null,513,242,0.47173489278752434,0.47173489278752434,47.173489278752434]
["POL","Baltic Sea, North Sea and Eastern Arctic, and North Atlantic","Passive gears","00-<10 m","Passive Gears 0-10 m","E","Lease/rental payments for quota or other fishing rights","not relevant",null,null,null,null,"N/A","N/A","N/A","N/A","N/A"]
["POL","Baltic Sea, North Sea and Eastern Arctic, and North Atlantic","Passive gears","00-<10 m","Passive Gears 0-10 m","E","Consumption of fixed capital","questionnaires","A","Every Year",1,null,513,242,0.47173489278752434,0.47173489278752434,47.173489278752434]
["POL","Baltic Sea, North Sea and Eastern Arctic, and North Atlantic","Passive gears","00-<10 m","Passive Gears 0-10 m","E","Value of physical capital","questionnaires","A","Every Year",1,null,513,242,0.47173489278752434,0.47173489278752434,47.173489278752434]
["POL","Baltic Sea, North Sea and Eastern Arctic, and North Atlantic","Passive gears","00-<10 m","Passive Gears 0-10 m","E","Value of quota and other fishing rights","not relevant",null,null,null,null,"N/A","N/A","N/A","N/A","N/A"]
["POL","Baltic Sea, North Sea and Eastern Arctic, and North Atlantic","Passive gears","00-<10 m","Passive Gears 0-10 m","E","Investments of tangible assets, net","questionnaires","A","Every Year",1,null,513,242,0.47173489278752434,0.47173489278752434,47.173489278752434]
["POL","Baltic Sea, North Sea and Eastern Arctic, and North Atlantic","Passive gears","00-<10 m","Passive Gears 0-10 m","E","Long/short debts","questionnaires","A","Every Year",1,null,513,242,0.47173489278752434,0.47173489278752434,47.173489278752434]
["POL","Baltic Sea, North Sea and Eastern Arctic, and North Atlantic","Passive gears","00-<10 m","Passive Gears 0-10 m","E","Total assets","questionnaires","A","Every Year",1,null,513,242,0.47173489278752434,0.47173489278752434,47.173489278752434]
["POL","Baltic Sea, North Sea and Eastern Arctic, and North Atlantic","Passive gears","00-<10 m","Passive Gears 0-10 m","E","Engaged crew","questionnaires","A","Every Year",1,null,513,242,0.47173489278752434,0.47173489278752434,47.173489278752434]
["POL","Baltic Sea, North Sea and Eastern Arctic, and North Atlantic","Passive gears","00-<10 m","Passive Gears 0-10 m","E","Unpaid labour","questionnaires","A","Every Year",1,null,513,242,0.47173489278752434,0.47173489278752434,47.173489278752434]
["POL","Baltic Sea, North Sea and Eastern Arctic, and North Atlantic","Passive gears","00-<10 m","Passive Gears 0-10 m","E","Total hours worked per year","questionnaires","A","Every Year",1,null,513,242,0.47173489278752434,0.47173489278752434,47.173489278752434]
["POL","Baltic Sea, North Sea and Eastern Arctic, and North Atlantic","Passive gears","00-<10 m","Passive Gears 0-10 m","E","Number of vessels","questionnaires, Register","A","Every Year",1,null,513,513,1,1,100]
["POL","Baltic Sea, North Sea and Eastern Arctic, and North Atlantic","Passive gears","00-<10 m","Passive Gears 0-10 m","E","Mean LOA of vessels","questionnaires, Register","A","Every Year",1,null,513,513,1,1,100]
["POL","Baltic Sea, North Sea and Eastern Arctic, and North Atlantic","Passive gears","00-<10 m","Passive Gears 0-10 m","E","Total vessels tonnage","questionnaires, Register","A","Every Year",1,null,513,513,1,1,100]
["POL","Baltic Sea, North Sea and Eastern Arctic, and North Atlantic","Passive gears","00-<10 m","Passive Gears 0-10 m","E","Total vessels power","questionnaires, Register","A","Every Year",1,null,513,513,1,1,100]
["POL","Baltic Sea, North Sea and Eastern Arctic, and North Atlantic","Passive gears","00-<10 m","Passive Gears 0-10 m","E","Mean age of vessels","questionnaires, Register","A","Every Year",1,null,513,513,1,1,100]
["POL","Baltic Sea, North Sea and Eastern Arctic, and North Atlantic","Passive gears","00-<10 m","Passive Gears 0-10 m","E","Days at sea","questionnaires, logbooks","A","Every Year",1,null,513,513,1,1,100]
["POL","Baltic Sea, North Sea and Eastern Arctic, and North Atlantic","Passive gears","00-<10 m","Passive Gears 0-10 m","E","Energy consuption","questionnaires","A","Every Year",1,null,513,242,0.47173489278752434,0.47173489278752434,47.173489278752434]
["POL","Baltic Sea, North Sea and Eastern Arctic, and North Atlantic","Passive gears","00-<10 m","Passive Gears 0-10 m","E","Number of fishing enterprises/units","Register","A","Every Year",1,null,513,513,1,1,100]
["POL","Baltic Sea, North Sea and Eastern Arctic, and North Atlantic","Passive gears","00-<10 m","Passive Gears 0-10 m","E","Value of landings per species","First sale document","A","Every Year",1,null,513,513,1,1,100]
["POL","Baltic Sea, North Sea and Eastern Arctic, and North Atlantic","Passive gears","00-<10 m","Passive Gears 0-10 m","E","Average price per spices","First sale document","A","Every Year",1,null,513,513,1,1,100]
["POL","Baltic Sea, North Sea and Eastern Arctic, and North Atlantic","Passive gears","00-<10 m","Passive Gears 0-10 m","S","Employment by gender","questionnaires","A","Every Year",1,null,513,242,0.47173489278752434,0.47173489278752434,47.173489278752434]
["POL","Baltic Sea, North Sea and Eastern Arctic, and North Atlantic","Passive gears","00-<10 m","Passive Gears 0-10 m","S","FTE by gender","questionnaires","A","Every Year",1,null,513,242,0.47173489278752434,0.47173489278752434,47.173489278752434]
["POL","Baltic Sea, North Sea and Eastern Arctic, and North Atlantic","Passive gears","00-<10 m","Passive Gears 0-10 m","S","Unpaid labour by gender","questionnaires","A","Every Year",1,null,513,242,0.47173489278752434,0.47173489278752434,47.173489278752434]
["POL","Baltic Sea, North Sea and Eastern Arctic, and North Atlantic","Passive gears","00-<10 m","Passive Gears 0-10 m","S","Employment by age","questionnaires","A","Every Year",1,null,513,242,0.47173489278752434,0.47173489278752434,47.173489278752434]
["POL","Baltic Sea, North Sea and Eastern Arctic, and North Atlantic","Passive gears","00-<10 m","Passive Gears 0-10 m","S","Employment by education level","questionnaires","A","Every Year",1,null,513,242,0.47173489278752434,0.47173489278752434,47.173489278752434]
["POL","Baltic Sea, North Sea and Eastern Arctic, and North Atlantic","Passive gears","00-<10 m","Passive Gears 0-10 m","S","Employment by nationality","not collected this year",null,null,null,null,"N/A","N/A","N/A","N/A","N/A"]
["POL","Baltic Sea, North Sea and Eastern Arctic, and North Atlantic","Passive gears","00-<10 m","Passive Gears 0-10 m","S","Employment by employment status","questionnaires","A","Every Year",1,null,513,242,0.47173489278752434,0.47173489278752434,47.173489278752434]
["POL","Baltic Sea, North Sea and Eastern Arctic, and North Atlantic","Passive gears","00-<10 m","Passive Gears 0-10 m","S","FTE National","questionnaires","A","Every Year",1,null,513,242,0.47173489278752434,0.47173489278752434,47.173489278752434]
["POL","Baltic Sea, North Sea and Eastern Arctic, and North Atlantic","Passive gears","10-<12 m","Passive Gears 10-12 m","E","Gross value of landings","questionnaires/first sale document","A","Every Year",1,null,106,35,0.330188679245283,{"$f":"N45/M45","v":0.330188679245283},33.018867924528301]
["POL","Baltic Sea, North Sea and Eastern Arctic, and North Atlantic","Passive gears","10-<12 m","Passive Gears 10-12 m","E","Income from leasing out quota or other fishing rights","not relevant",null,null,null,null,"N/A","N/A","N/A","N/A","N/A"]
["POL","Baltic Sea, North Sea and Eastern Arctic, and North Atlantic","Passive gears","10-<12 m","Passive Gears 10-12 m","E","Other income","questionnaires","A","Every Year",1,null,106,35,{"$f":"N47/M47","v":0.330188679245283},{"$f":"N47/M47","v":0.330188679245283},33.018867924528301]
["POL","Baltic Sea, North Sea and Eastern Arctic, and North Atlantic","Passive gears","10-<12 m","Passive Gears 10-12 m","E","Wages and salaries of crew","questionnaires","A","Every Year",1,null,106,35,{"$f":"N48/M48","v":0.330188679245283},{"$f":"N48/M48","v":0.330188679245283},33.018867924528301]
["POL","Baltic Sea, North Sea and Eastern Arctic, and North Atlantic","Passive gears","10-<12 m","Passive Gears 10-12 m","E","Imputed value of unpaid labour","estimation","D","Every Year",1,null,106,35,0.330188679245283,0.330188679245283,33.018867924528301]
["POL","Baltic Sea, North Sea and Eastern Arctic, and North Atlantic","Passive gears","10-<12 m","Passive Gears 10-12 m","E","Energy costs","questionnaires","A","Every Year",1,null,106,35,0.330188679245283,0.330188679245283,33.018867924528301]
["POL","Baltic Sea, North Sea and Eastern Arctic, and North Atlantic","Passive gears","10-<12 m","Passive Gears 10-12 m","E","Repair and maintenance costs","questionnaires","A","Every Year",1,null,106,35,0.330188679245283,0.330188679245283,33.018867924528301]
["POL","Baltic Sea, North Sea and Eastern Arctic, and North Atlantic","Passive gears","10-<12 m","Passive Gears 10-12 m","E","Variable costs","questionnaires","A","Every Year",1,null,106,35,0.330188679245283,0.330188679245283,33.018867924528301]
["POL","Baltic Sea, North Sea and Eastern Arctic, and North Atlantic","Passive gears","10-<12 m","Passive Gears 10-12 m","E","Non-variable costs","questionnaires","A","Every Year",1,null,106,35,0.330188679245283,0.330188679245283,33.018867924528301]
["POL","Baltic Sea, North Sea and Eastern Arctic, and North Atlantic","Passive gears","10-<12 m","Passive Gears 10-12 m","E","Lease/rental payments for quota or other fishing rights","questionnaires","A","Every Year",1,null,106,35,0.330188679245283,0.330188679245283,33.018867924528301]
["POL","Baltic Sea, North Sea and Eastern Arctic, and North Atlantic","Passive gears","10-<12 m","Passive Gears 10-12 m","E","Operating Subsidies","questionnaires","A","Every Year",1,null,106,35,0.330188679245283,0.330188679245283,33.018867924528301]
["POL","Baltic Sea, North Sea and Eastern Arctic, and North Atlantic","Passive gears","10-<12 m","Passive Gears 10-12 m","E","Subsidies on investments","questionnaires","A","Every Year",1,null,106,35,0.330188679245283,0.330188679245283,33.018867924528301]
["POL","Baltic Sea, North Sea and Eastern Arctic, and North Atlantic","Passive gears","10-<12 m","Passive Gears 10-12 m","E","Lease/rental payments for quota or other fishing rights","not relevant",null,null,null,null,"N/A","N/A","N/A","N/A","N/A"]
["POL","Baltic Sea, North Sea and Eastern Arctic, and North Atlantic","Passive gears","10-<12 m","Passive Gears 10-12 m","E","Consumption of fixed capital","questionnaires","A","Every Year",1,null,106,35,{"$f":"N58/M58","v":0.330188679245283},{"$f":"N58/M58","v":0.330188679245283},33.018867924528301]
["POL","Baltic Sea, North Sea and Eastern Arctic, and North Atlantic","Passive gears","10-<12 m","Passive Gears 10-12 m","E","Value of physical capital","questionnaires","A","Every Year",1,null,106,35,{"$f":"N59/M59","v":0.330188679245283},{"$f":"N59/M59","v":0.330188679245283},33.018867924528301]
["POL","Baltic Sea, North Sea and Eastern Arctic, and North Atlantic","Passive gears","10-<12 m","Passive Gears 10-12 m","E","Value of quota and other fishing rights","not relevant",null,null,null,null,"N/A","N/A","N/A","N/A","N/A"]
["POL","Baltic Sea, North Sea and Eastern Arctic, and North Atlantic","Passive gears","10-<12 m","Passive Gears 10-12 m","E","Investments of tangible assets, net","questionnaires","A","Every Year",1,null,106,35,{"$f":"N61/M61","v":0.330188679245283},{"$f":"N61/M61","v":0.330188679245283},{"$f":"N61/(M61*K61/100)","v":33.018867924528301}]
["POL","Baltic Sea, North Sea and Eastern Arctic, and North Atlantic","Passive gears","10-<12 m","Passive Gears 10-12 m","E","Long/short debts","questionnaires","A","Every Year",1,null,106,35,0.330188679245283,0.330188679245283,33.018867924528301]
["POL","Baltic Sea, North Sea and Eastern Arctic, and North Atlantic","Passive gears","10-<12 m","Passive Gears 10-12 m","E","Total assets","questionnaires","A","Every Year",1,null,106,35,0.330188679245283,0.330188679245283,33.018867924528301]
["POL","Baltic Sea, North Sea and Eastern Arctic, and North Atlantic","Passive gears","10-<12 m","Passive Gears 10-12 m","E","Engaged crew","questionnaires","A","Every Year",1,null,106,35,0.330188679245283,0.330188679245283,33.018867924528301]
["POL","Baltic Sea, North Sea and Eastern Arctic, and North Atlantic","Passive gears","10-<12 m","Passive Gears 10-12 m","E","Unpaid labour","questionnaires","A","Every Year",1,null,106,35,0.330188679245283,0.330188679245283,33.018867924528301]
["POL","Baltic Sea, North Sea and Eastern Arctic, and North Atlantic","Passive gears","10-<12 m","Passive Gears 10-12 m","E","Total hours worked per year","questionnaires","A","Every Year",1,null,106,35,0.330188679245283,0.330188679245283,33.018867924528301]
["POL","Baltic Sea, North Sea and Eastern Arctic, and North Atlantic","Passive gears","10-<12 m","Passive Gears 10-12 m","E","Number of vessels","questionnaires, Register","A","Every Year",1,null,106,106,1,1,100]
["POL","Baltic Sea, North Sea and Eastern Arctic, and North Atlantic","Passive gears","10-<12 m","Passive Gears 10-12 m","E","Mean LOA of vessels","questionnaires, Register","A","Every Year",1,null,106,106,1,1,100]
["POL","Baltic Sea, North Sea and Eastern Arctic, and North Atlantic","Passive gears","10-<12 m","Passive Gears 10-12 m","E","Total vessels tonnage","questionnaires, Register","A","Every Year",1,null,106,106,1,1,100]
["POL","Baltic Sea, North Sea and Eastern Arctic, and North Atlantic","Passive gears","10-<12 m","Passive Gears 10-12 m","E","Total vessels power","questionnaires, Register","A","Every Year",1,null,106,106,1,1,100]
["POL","Baltic Sea, North Sea and Eastern Arctic, and North Atlantic","Passive gears","10-<12 m","Passive Gears 10-12 m","E","Mean age of vessels","questionnaires, Register","A","Every Year",1,null,106,106,1,1,100]
["POL","Baltic Sea, North Sea and Eastern Arctic, and North Atlantic","Passive gears","10-<12 m","Passive Gears 10-12 m","E","Days at sea","questionnaires, logbooks","A","Every Year",1,null,106,106,1,1,100]
["POL","Baltic Sea, North Sea and Eastern Arctic, and North Atlantic","Passive gears","10-<12 m","Passive Gears 10-12 m","E","Energy consuption","questionnaires","A","Every Year",1,null,106,35,0.330188679245283,0.330188679245283,33.018867924528301]
["POL","Baltic Sea, North Sea and Eastern Arctic, and North Atlantic","Passive gears","10-<12 m","Passive Gears 10-12 m","E","Number of fishing enterprises/units","Register","A","Every Year",1,null,106,106,1,1,100]
["POL","Baltic Sea, North Sea and Eastern Arctic, and North Atlantic","Passive gears","10-<12 m","Passive Gears 10-12 m","E","Value of landings per species","First sale document","A","Every Year",1,null,106,106,1,1,100]
["POL","Baltic Sea, North Sea and Eastern Arctic, and North Atlantic","Passive gears","10-<12 m","Passive Gears 10-12 m","E","Average price per spices","First sale document","A","Every Year",1,null,106,106,1,1,100]
["POL","Baltic Sea, North Sea and Eastern Arctic, and North Atlantic","Passive gears","10-<12 m","Passive Gears 10-12 m","S","Employment by gender","questionnaires","A","Every Year",1,null,106,35,0.330188679245283,0.330188679245283,33.018867924528301]
["POL","Baltic Sea, North Sea and Eastern Arctic, and North Atlantic","Passive gears","10-<12 m","Passive Gears 10-12 m","S","FTE by gender","questionnaires","A","Every Year",1,null,106,35,0.330188679245283,0.330188679245283,33.018867924528301]
["POL","Baltic Sea, North Sea and Eastern Arctic, and North Atlantic","Passive gears","10-<12 m","Passive Gears 10-12 m","S","Unpaid labour by gender","questionnaires","A","Every Year",1,null,106,35,0.330188679245283,0.330188679245283,33.018867924528301]
["POL","Baltic Sea, North Sea and Eastern Arctic, and North Atlantic","Passive gears","10-<12 m","Passive Gears 10-12 m","S","Employment by age","questionnaires","A","Every Year",1,null,106,35,0.330188679245283,0.330188679245283,33.018867924528301]
["POL","Baltic Sea, North Sea and Eastern Arctic, and North Atlantic","Passive gears","10-<12 m","Passive Gears 10-12 m","S","Employment by education level","questionnaires","A","Every Year",1,null,106,35,0.330188679245283,0.330188679245283,33.018867924528301]
["POL","Baltic Sea, North Sea and Eastern Arctic, and North Atlantic","Passive gears","10-<12 m","Passive Gears 10-12 m","S","Employment by nationality","not collected this year",null,null,null,null,"N/A","N/A","N/A","N/A","N/A"]
["POL","Baltic Sea, North Sea and Eastern Arctic, and North Atlantic","Passive gears","10-<12 m","Passive Gears 10-12 m","S","Employment by employment status","questionnaires","A","Every Year",1,null,106,35,{"$f":"N83/M83","v":0.330188679245283},{"$f":"N83/M83","v":0.330188679245283},33.018867924528301]
["POL","Baltic Sea, North Sea and Eastern Arctic, and North Atlantic","Passive gears","10-<12 m","Passive Gears 10-12 m","S","FTE National","questionnaires","A","Every Year",1,null,106,35,{"$f":"N84/M84","v":0.330188679245283},{"$f":"N84/M84","v":0.330188679245283},33.018867924528301]
["POL","Baltic Sea, North Sea and Eastern Arctic, and North Atlantic","Drift netters and seiners","12-<18 m","Drift netters and seinres 12-18 m","E","Gross value of landings","questionnaires/first sale document","A","Every Year",1,null,27,27,{"$f":"N85/M85","v":1},{"$f":"N85/M85","v":1},100]
["POL","Baltic Sea, North Sea and Eastern Arctic, and North Atlantic","Drift netters and seiners","12-<18 m","Drift netters and seinres 12-18 m","E","Income from leasing out quota or other fishing rights","not relevant",null,null,null,null,"N/A","N/A","N/A","N/A","N/A"]
["POL","Baltic Sea, North Sea and Eastern Arctic, and North Atlantic","Drift netters and seiners","12-<18 m","Drift netters and seinres 12-18 m","E","Other income","questionnaires","A","Every Year",1,null,27,9,{"$f":"N87/M87","v":0.33333333333333331},{"$f":"N87/M87","v":0.33333333333333331},33.333333333333329]
["POL","Baltic Sea, North Sea and Eastern Arctic, and North Atlantic","Drift netters and seiners","12-<18 m","Drift netters and seinres 12-18 m","E","Wages and salaries of crew","questionnaires","A","Every Year",1,null,27,9,{"$f":"N88/M88","v":0.33333333333333331},{"$f":"N88/M88","v":0.33333333333333331},33.333333333333329]
["POL","Baltic Sea, North Sea and Eastern Arctic, and North Atlantic","Drift netters and seiners","12-<18 m","Drift netters and seinres 12-18 m","E","Imputed value of unpaid labour","estimation","D","Every Year",1,null,27,9,0.33333333333333331,0.33333333333333331,33.333333333333329]
["POL","Baltic Sea, North Sea and Eastern Arctic, and North Atlantic","Drift netters and seiners","12-<18 m","Drift netters and seinres 12-18 m","E","Energy costs","questionnaires","A","Every Year",1,null,27,9,0.33333333333333331,0.33333333333333331,33.333333333333329]
["POL","Baltic Sea, North Sea and Eastern Arctic, and North Atlantic","Drift netters and seiners","12-<18 m","Drift netters and seinres 12-18 m","E","Repair and maintenance costs","questionnaires","A","Every Year",1,null,27,9,0.33333333333333331,0.33333333333333331,33.333333333333329]
["POL","Baltic Sea, North Sea and Eastern Arctic, and North Atlantic","Drift netters and seiners","12-<18 m","Drift netters and seinres 12-18 m","E","Variable costs","questionnaires","A","Every Year",1,null,27,9,0.33333333333333331,0.33333333333333331,33.333333333333329]
["POL","Baltic Sea, North Sea and Eastern Arctic, and North Atlantic","Drift netters and seiners","12-<18 m","Drift netters and seinres 12-18 m","E","Non-variable costs","questionnaires","A","Every Year",1,null,27,9,0.33333333333333331,0.33333333333333331,33.333333333333329]
["POL","Baltic Sea, North Sea and Eastern Arctic, and North Atlantic","Drift netters and seiners","12-<18 m","Drift netters and seinres 12-18 m","E","Lease/rental payments for quota or other fishing rights","questionnaires","A","Every Year",1,null,27,9,0.33333333333333331,0.33333333333333331,33.333333333333329]
["POL","Baltic Sea, North Sea and Eastern Arctic, and North Atlantic","Drift netters and seiners","12-<18 m","Drift netters and seinres 12-18 m","E","Operating Subsidies","questionnaires","A","Every Year",1,null,27,9,0.33333333333333331,0.33333333333333331,33.333333333333329]
["POL","Baltic Sea, North Sea and Eastern Arctic, and North Atlantic","Drift netters and seiners","12-<18 m","Drift netters and seinres 12-18 m","E","Subsidies on investments","questionnaires","A","Every Year",1,null,27,9,0.33333333333333331,0.33333333333333331,33.333333333333329]
["POL","Baltic Sea, North Sea and Eastern Arctic, and North Atlantic","Drift netters and seiners","12-<18 m","Drift netters and seinres 12-18 m","E","Lease/rental payments for quota or other fishing rights","not relevant",null,null,null,null,"N/A","N/A","N/A","N/A","N/A"]
["POL","Baltic Sea, North Sea and Eastern Arctic, and North Atlantic","Drift netters and seiners","12-<18 m","Drift netters and seinres 12-18 m","E","Consumption of fixed capital","questionnaires","A","Every Year",1,null,27,9,{"$f":"N98/M98","v":0.33333333333333331},{"$f":"N98/M98","v":0.33333333333333331},33.333333333333329]
["POL","Baltic Sea, North Sea and Eastern Arctic, and North Atlantic","Drift netters and seiners","12-<18 m","Drift netters and seinres 12-18 m","E","Value of physical capital","questionnaires","A","Every Year",1,null,27,9,{"$f":"N99/M99","v":0.33333333333333331},{"$f":"N99/M99","v":0.33333333333333331},33.333333333333329]
["POL","Baltic Sea, North Sea and Eastern Arctic, and North Atlantic","Drift netters and seiners","12-<18 m","Drift netters and seinres 12-18 m","E","Value of quota and other fishing rights","not relevant",null,null,null,null,"N/A","N/A","N/A","N/A","N/A"]
["POL","Baltic Sea, North Sea and Eastern Arctic, and North Atlantic","Drift netters and seiners","12-<18 m","Drift netters and seinres 12-18 m","E","Investments of tangible assets, net","questionnaires","A","Every Year",1,null,27,9,{"$f":"N101/M101","v":0.33333333333333331},{"$f":"N101/M101","v":0.33333333333333331},33.333333333333329]
["POL","Baltic Sea, North Sea and Eastern Arctic, and North Atlantic","Drift netters and seiners","12-<18 m","Drift netters and seinres 12-18 m","E","Long/short debts","questionnaires","A","Every Year",1,null,27,9,0.33333333333333331,0.33333333333333331,33.333333333333329]
["POL","Baltic Sea, North Sea and Eastern Arctic, and North Atlantic","Drift netters and seiners","12-<18 m","Drift netters and seinres 12-18 m","E","Total assets","questionnaires","A","Every Year",1,null,27,9,0.33333333333333331,0.33333333333333331,33.333333333333329]
["POL","Baltic Sea, North Sea and Eastern Arctic, and North Atlantic","Drift netters and seiners","12-<18 m","Drift netters and seinres 12-18 m","E","Engaged crew","questionnaires","A","Every Year",1,null,27,9,0.33333333333333331,0.33333333333333331,33.333333333333329]
["POL","Baltic Sea, North Sea and Eastern Arctic, and North Atlantic","Drift netters and seiners","12-<18 m","Drift netters and seinres 12-18 m","E","Unpaid labour","questionnaires","A","Every Year",1,null,27,9,0.33333333333333331,0.33333333333333331,33.333333333333329]
["POL","Baltic Sea, North Sea and Eastern Arctic, and North Atlantic","Drift netters and seiners","12-<18 m","Drift netters and seinres 12-18 m","E","Total hours worked per year","questionnaires","A","Every Year",1,null,27,9,0.33333333333333331,0.33333333333333331,33.333333333333329]
["POL","Baltic Sea, North Sea and Eastern Arctic, and North Atlantic","Drift netters and seiners","12-<18 m","Drift netters and seinres 12-18 m","E","Number of vessels","questionnaires, Register","A","Every Year",1,null,27,27,1,1,100]
["POL","Baltic Sea, North Sea and Eastern Arctic, and North Atlantic","Drift netters and seiners","12-<18 m","Drift netters and seinres 12-18 m","E","Mean LOA of vessels","questionnaires, Register","A","Every Year",1,null,27,27,1,1,100]
["POL","Baltic Sea, North Sea and Eastern Arctic, and North Atlantic","Drift netters and seiners","12-<18 m","Drift netters and seinres 12-18 m","E","Total vessels tonnage","questionnaires, Register","A","Every Year",1,null,27,27,1,1,100]
["POL","Baltic Sea, North Sea and Eastern Arctic, and North Atlantic","Drift netters and seiners","12-<18 m","Drift netters and seinres 12-18 m","E","Total vessels power","questionnaires, Register","A","Every Year",1,null,27,27,1,1,100]
["POL","Baltic Sea, North Sea and Eastern Arctic, and North Atlantic","Drift netters and seiners","12-<18 m","Drift netters and seinres 12-18 m","E","Mean age of vessels","questionnaires, Register","A","Every Year",1,null,27,27,1,1,100]
["POL","Baltic Sea, North Sea and Eastern Arctic, and North Atlantic","Drift netters and seiners","12-<18 m","Drift netters and seinres 12-18 m","E","Days at sea","questionnaires, logbooks","A","Every Year",1,null,27,27,1,1,100]
["POL","Baltic Sea, North Sea and Eastern Arctic, and North Atlantic","Drift netters and seiners","12-<18 m","Drift netters and seinres 12-18 m","E","Energy consuption","questionnaires","A","Every Year",1,null,27,9,0.33333333333333331,0.33333333333333331,33.333333333333329]
["POL","Baltic Sea, North Sea and Eastern Arctic, and North Atlantic","Drift netters and seiners","12-<18 m","Drift netters and seinres 12-18 m","E","Number of fishing enterprises/units","Register","A","Every Year",1,null,27,27,1,1,100]
["POL","Baltic Sea, North Sea and Eastern Arctic, and North Atlantic","Drift netters and seiners","12-<18 m","Drift netters and seinres 12-18 m","E","Value of landings per species","First sale document","A","Every Year",1,null,27,27,1,1,100]
["POL","Baltic Sea, North Sea and Eastern Arctic, and North Atlantic","Drift netters and seiners","12-<18 m","Drift netters and seinres 12-18 m","E","Average price per spices","First sale document","A","Every Year",1,null,27,27,1,1,100]
["POL","Baltic Sea, North Sea and Eastern Arctic, and North Atlantic","Drift netters and seiners","12-<18 m","Drift netters and seinres 12-18 m","S","Employment by gender","questionnaires","A","Every Year",1,null,27,9,0.33333333333333331,0.33333333333333331,33.333333333333329]
["POL","Baltic Sea, North Sea and Eastern Arctic, and North Atlantic","Drift netters and seiners","12-<18 m","Drift netters and seinres 12-18 m","S","FTE by gender","questionnaires","A","Every Year",1,null,27,9,0.33333333333333331,0.33333333333333331,33.333333333333329]
["POL","Baltic Sea, North Sea and Eastern Arctic, and North Atlantic","Drift netters and seiners","12-<18 m","Drift netters and seinres 12-18 m","S","Unpaid labour by gender","questionnaires","A","Every Year",1,null,27,9,0.33333333333333331,0.33333333333333331,33.333333333333329]
["POL","Baltic Sea, North Sea and Eastern Arctic, and North Atlantic","Drift netters and seiners","12-<18 m","Drift netters and seinres 12-18 m","S","Employment by age","questionnaires","A","Every Year",1,null,27,9,0.33333333333333331,0.33333333333333331,33.333333333333329]
["POL","Baltic Sea, North Sea and Eastern Arctic, and North Atlantic","Drift netters and seiners","12-<18 m","Drift netters and seinres 12-18 m","S","Employment by education level","questionnaires","A","Every Year",1,null,27,9,0.33333333333333331,0.33333333333333331,33.333333333333329]
["POL","Baltic Sea, North Sea and Eastern Arctic, and North Atlantic","Drift netters and seiners","12-<18 m","Drift netters and seinres 12-18 m","S","Employment by nationality","not collected this year",null,null,null,null,"N/A","N/A","N/A","N/A","N/A"]
["POL","Baltic Sea, North Sea and Eastern Arctic, and North Atlantic","Drift netters and seiners","12-<18 m","Drift netters and seinres 12-18 m","S","Employment by employment status","questionnaires","A","Every Year",1,null,27,9,{"$f":"N123/M123","v":0.33333333333333331},{"$f":"N123/M123","v":0.33333333333333331},33.333333333333329]
["POL","Baltic Sea, North Sea and Eastern Arctic, and North Atlantic","Drift netters and seiners","12-<18 m","Drift netters and seinres 12-18 m","S","FTE National","questionnaires","A","Every Year",1,null,27,9,{"$f":"N124/M124","v":0.33333333333333331},{"$f":"N124/M124","v":0.33333333333333331},33.333333333333329]
["POL","Baltic Sea, North Sea and Eastern Arctic, and North Atlantic","Demersal trawlers","12-<18 m","Demersal trawlers 12-18 m","E","Gross value of landings","questionnaires/first sale document","A","Every Year",1,null,67,67,{"$f":"N125/M125","v":1},{"$f":"N125/M125","v":1},{"$f":"N125/(M125*K125/100)","v":100}]
["POL","Baltic Sea, North Sea and Eastern Arctic, and North Atlantic","Demersal trawlers","12-<18 m","Demersal trawlers 12-18 m","E","Income from leasing out quota or other fishing rights","not relevant",null,null,null,null,"N/A","N/A","N/A","N/A","N/A"]
["POL","Baltic Sea, North Sea and Eastern Arctic, and North Atlantic","Demersal trawlers","12-<18 m","Demersal trawlers 12-18 m","E","Other income","questionnaires","A","Every Year",1,null,67,33,{"$f":"N127/M127","v":0.4925373134328358},{"$f":"N127/M127","v":0.4925373134328358},49.253731343283576]
["POL","Baltic Sea, North Sea and Eastern Arctic, and North Atlantic","Demersal trawlers","12-<18 m","Demersal trawlers 12-18 m","E","Wages and salaries of crew","questionnaires","A","Every Year",1,null,67,33,{"$f":"N128/M128","v":0.4925373134328358},{"$f":"N128/M128","v":0.4925373134328358},49.253731343283576]
["POL","Baltic Sea, North Sea and Eastern Arctic, and North Atlantic","Demersal trawlers","12-<18 m","Demersal trawlers 12-18 m","E","Imputed value of unpaid labour","estimation","D","Every Year",1,null,67,33,0.4925373134328358,0.4925373134328358,49.253731343283576]
["POL","Baltic Sea, North Sea and Eastern Arctic, and North Atlantic","Demersal trawlers","12-<18 m","Demersal trawlers 12-18 m","E","Energy costs","questionnaires","A","Every Year",1,null,67,33,0.4925373134328358,0.4925373134328358,49.253731343283576]
["POL","Baltic Sea, North Sea and Eastern Arctic, and North Atlantic","Demersal trawlers","12-<18 m","Demersal trawlers 12-18 m","E","Repair and maintenance costs","questionnaires","A","Every Year",1,null,67,33,0.4925373134328358,0.4925373134328358,49.253731343283576]
["POL","Baltic Sea, North Sea and Eastern Arctic, and North Atlantic","Demersal trawlers","12-<18 m","Demersal trawlers 12-18 m","E","Variable costs","questionnaires","A","Every Year",1,null,67,33,0.4925373134328358,0.4925373134328358,49.253731343283576]
["POL","Baltic Sea, North Sea and Eastern Arctic, and North Atlantic","Demersal trawlers","12-<18 m","Demersal trawlers 12-18 m","E","Non-variable costs","questionnaires","A","Every Year",1,null,67,33,0.4925373134328358,0.4925373134328358,49.253731343283576]
["POL","Baltic Sea, North Sea and Eastern Arctic, and North Atlantic","Demersal trawlers","12-<18 m","Demersal trawlers 12-18 m","E","Lease/rental payments for quota or other fishing rights","questionnaires","A","Every Year",1,null,67,33,0.4925373134328358,0.4925373134328358,49.253731343283576]
["POL","Baltic Sea, North Sea and Eastern Arctic, and North Atlantic","Demersal trawlers","12-<18 m","Demersal trawlers 12-18 m","E","Operating Subsidies","questionnaires","A","Every Year",1,null,67,33,0.4925373134328358,0.4925373134328358,49.253731343283576]
["POL","Baltic Sea, North Sea and Eastern Arctic, and North Atlantic","Demersal trawlers","12-<18 m","Demersal trawlers 12-18 m","E","Subsidies on investments","questionnaires","A","Every Year",1,null,67,33,0.4925373134328358,0.4925373134328358,49.253731343283576]
["POL","Baltic Sea, North Sea and Eastern Arctic, and North Atlantic","Demersal trawlers","12-<18 m","Demersal trawlers 12-18 m","E","Lease/rental payments for quota or other fishing rights","not relevant",null,null,null,null,"N/A","N/A","N/A","N/A","N/A"]
["POL","Baltic Sea, North Sea and Eastern Arctic, and North Atlantic","Demersal trawlers","12-<18 m","Demersal trawlers 12-18 m","E","Consumption of fixed capital","questionnaires","A","Every Year",1,null,67,33,{"$f":"N138/M138","v":0.4925373134328358},{"$f":"N138/M138","v":0.4925373134328358},49.253731343283576]
["POL","Baltic Sea, North Sea and Eastern Arctic, and North Atlantic","Demersal trawlers","12-<18 m","Demersal trawlers 12-18 m","E","Value of physical capital","questionnaires","A","Every Year",1,null,67,33,{"$f":"N139/M139","v":0.4925373134328358},{"$f":"N139/M139","v":0.4925373134328358},49.253731343283576]
["POL","Baltic Sea, North Sea and Eastern Arctic, and North Atlantic","Demersal trawlers","12-<18 m","Demersal trawlers 12-18 m","E","Value of quota and other fishing rights","not relevant",null,null,null,null,"N/A","N/A","N/A","N/A","N/A"]
["POL","Baltic Sea, North Sea and Eastern Arctic, and North Atlantic","Demersal trawlers","12-<18 m","Demersal trawlers 12-18 m","E","Investments of tangible assets, net","questionnaires","A","Every Year",1,null,67,33,{"$f":"N141/M141","v":0.4925373134328358},{"$f":"N141/M141","v":0.4925373134328358},49.253731343283576]
["POL","Baltic Sea, North Sea and Eastern Arctic, and North Atlantic","Demersal trawlers","12-<18 m","Demersal trawlers 12-18 m","E","Long/short debts","questionnaires","A","Every Year",1,null,67,33,0.4925373134328358,0.4925373134328358,49.253731343283576]
["POL","Baltic Sea, North Sea and Eastern Arctic, and North Atlantic","Demersal trawlers","12-<18 m","Demersal trawlers 12-18 m","E","Total assets","questionnaires","A","Every Year",1,null,67,33,0.4925373134328358,0.4925373134328358,49.253731343283576]
["POL","Baltic Sea, North Sea and Eastern Arctic, and North Atlantic","Demersal trawlers","12-<18 m","Demersal trawlers 12-18 m","E","Engaged crew","questionnaires","A","Every Year",1,null,67,33,0.4925373134328358,0.4925373134328358,49.253731343283576]
["POL","Baltic Sea, North Sea and Eastern Arctic, and North Atlantic","Demersal trawlers","12-<18 m","Demersal trawlers 12-18 m","E","Unpaid labour","questionnaires","A","Every Year",1,null,67,33,0.4925373134328358,0.4925373134328358,49.253731343283576]
["POL","Baltic Sea, North Sea and Eastern Arctic, and North Atlantic","Demersal trawlers","12-<18 m","Demersal trawlers 12-18 m","E","Total hours worked per year","questionnaires","A","Every Year",1,null,67,33,0.4925373134328358,0.4925373134328358,49.253731343283576]
["POL","Baltic Sea, North Sea and Eastern Arctic, and North Atlantic","Demersal trawlers","12-<18 m","Demersal trawlers 12-18 m","E","Number of vessels","questionnaires, Register","A","Every Year",1,null,67,67,1,1,100]
["POL","Baltic Sea, North Sea and Eastern Arctic, and North Atlantic","Demersal trawlers","12-<18 m","Demersal trawlers 12-18 m","E","Mean LOA of vessels","questionnaires, Register","A","Every Year",1,null,67,67,1,1,100]
["POL","Baltic Sea, North Sea and Eastern Arctic, and North Atlantic","Demersal trawlers","12-<18 m","Demersal trawlers 12-18 m","E","Total vessels tonnage","questionnaires, Register","A","Every Year",1,null,67,67,1,1,100]
["POL","Baltic Sea, North Sea and Eastern Arctic, and North Atlantic","Demersal trawlers","12-<18 m","Demersal trawlers 12-18 m","E","Total vessels power","questionnaires, Register","A","Every Year",1,null,67,67,1,1,100]
["POL","Baltic Sea, North Sea and Eastern Arctic, and North Atlantic","Demersal trawlers","12-<18 m","Demersal trawlers 12-18 m","E","Mean age of vessels","questionnaires, Register","A","Every Year",1,null,67,67,1,1,100]
["POL","Baltic Sea, North Sea and Eastern Arctic, and North Atlantic","Demersal trawlers","12-<18 m","Demersal trawlers 12-18 m","E","Days at sea","questionnaires, logbooks","A","Every Year",1,null,67,67,1,1,100]
["POL","Baltic Sea, North Sea and Eastern Arctic, and North Atlantic","Demersal trawlers","12-<18 m","Demersal trawlers 12-18 m","E","Energy consuption","questionnaires","A","Every Year",1,null,67,33,0.4925373134328358,0.4925373134328358,49.253731343283576]
["POL","Baltic Sea, North Sea and Eastern Arctic, and North Atlantic","Demersal trawlers","12-<18 m","Demersal trawlers 12-18 m","E","Number of fishing enterprises/units","Register","A","Every Year",1,null,67,67,1,1,100]
["POL","Baltic Sea, North Sea and Eastern Arctic, and North Atlantic","Demersal trawlers","12-<18 m","Demersal trawlers 12-18 m","E","Value of landings per species","First sale document","A","Every Year",1,null,67,67,1,1,100]
["POL","Baltic Sea, North Sea and Eastern Arctic, and North Atlantic","Demersal trawlers","12-<18 m","Demersal trawlers 12-18 m","E","Average price per spices","First sale document","A","Every Year",1,null,67,67,1,1,100]
["POL","Baltic Sea, North Sea and Eastern Arctic, and North Atlantic","Demersal trawlers","12-<18 m","Demersal trawlers 12-18 m","S","Employment by gender","questionnaires","A","Every Year",1,null,67,33,0.4925373134328358,0.4925373134328358,49.253731343283576]
["POL","Baltic Sea, North Sea and Eastern Arctic, and North Atlantic","Demersal trawlers","12-<18 m","Demersal trawlers 12-18 m","S","FTE by gender","questionnaires","A","Every Year",1,null,67,33,0.4925373134328358,0.4925373134328358,49.253731343283576]
["POL","Baltic Sea, North Sea and Eastern Arctic, and North Atlantic","Demersal trawlers","12-<18 m","Demersal trawlers 12-18 m","S","Unpaid labour by gender","questionnaires","A","Every Year",1,null,67,33,0.4925373134328358,0.4925373134328358,49.253731343283576]
["POL","Baltic Sea, North Sea and Eastern Arctic, and North Atlantic","Demersal trawlers","12-<18 m","Demersal trawlers 12-18 m","S","Employment by age","questionnaires","A","Every Year",1,null,67,33,0.4925373134328358,0.4925373134328358,49.253731343283576]
["POL","Baltic Sea, North Sea and Eastern Arctic, and North Atlantic","Demersal trawlers","12-<18 m","Demersal trawlers 12-18 m","S","Employment by education level","questionnaires","A","Every Year",1,null,67,33,0.4925373134328358,0.4925373134328358,49.253731343283576]
["POL","Baltic Sea, North Sea and Eastern Arctic, and North Atlantic","Demersal trawlers","12-<18 m","Demersal trawlers 12-18 m","S","Employment by nationality","not collected this year",null,null,null,null,"N/A","N/A","N/A","N/A","N/A"]
["POL","Baltic Sea, North Sea and Eastern Arctic, and North Atlantic","Demersal trawlers","12-<18 m","Demersal trawlers 12-18 m","S","Employment by employment status","questionnaires","A","Every Year",1,null,67,33,{"$f":"N163/M163","v":0.4925373134328358},{"$f":"N163/M163","v":0.4925373134328358},49.253731343283576]
["POL","Baltic Sea, North Sea and Eastern Arctic, and North Atlantic","Demersal trawlers","12-<18 m","Demersal trawlers 12-18 m","S","FTE National","questionnaires","A","Every Year",1,null,67,33,{"$f":"N164/M164","v":0.4925373134328358},{"$f":"N164/M164","v":0.4925373134328358},49.253731343283576]
["POL","Baltic Sea, North Sea and Eastern Arctic, and North Atlantic","Demersal trawlers","18-<24 m","Demersal trawlers 18-24 m","E","Gross value of landings","questionnaires/first sale document","A","Every Year",1,null,28,28,{"$f":"N165/M165","v":1},{"$f":"N165/M165","v":1},99.999999999999986]
["POL","Baltic Sea, North Sea and Eastern Arctic, and North Atlantic","Demersal trawlers","18-<24 m","Demersal trawlers 18-24 m","E","Income from leasing out quota or other fishing rights","not relevant",null,null,null,null,"N/A","N/A","N/A","N/A","N/A"]
["POL","Baltic Sea, North Sea and Eastern Arctic, and North Atlantic","Demersal trawlers","18-<24 m","Demersal trawlers 18-24 m","E","Other income","questionnaires","A","Every Year",1,null,28,15,{"$f":"N167/M167","v":0.5357142857142857},{"$f":"N167/M167","v":0.5357142857142857},53.571428571428569]
["POL","Baltic Sea, North Sea and Eastern Arctic, and North Atlantic","Demersal trawlers","18-<24 m","Demersal trawlers 18-24 m","E","Wages and salaries of crew","questionnaires","A","Every Year",1,null,28,15,{"$f":"N168/M168","v":0.5357142857142857},{"$f":"N168/M168","v":0.5357142857142857},53.571428571428569]
["POL","Baltic Sea, North Sea and Eastern Arctic, and North Atlantic","Demersal trawlers","18-<24 m","Demersal trawlers 18-24 m","E","Imputed value of unpaid labour","estimation","D","Every Year",1,null,28,15,0.5357142857142857,0.5357142857142857,53.571428571428569]
["POL","Baltic Sea, North Sea and Eastern Arctic, and North Atlantic","Demersal trawlers","18-<24 m","Demersal trawlers 18-24 m","E","Energy costs","questionnaires","A","Every Year",1,null,28,15,0.5357142857142857,0.5357142857142857,53.571428571428569]
["POL","Baltic Sea, North Sea and Eastern Arctic, and North Atlantic","Demersal trawlers","18-<24 m","Demersal trawlers 18-24 m","E","Repair and maintenance costs","questionnaires","A","Every Year",1,null,28,15,0.5357142857142857,0.5357142857142857,53.571428571428569]
["POL","Baltic Sea, North Sea and Eastern Arctic, and North Atlantic","Demersal trawlers","18-<24 m","Demersal trawlers 18-24 m","E","Variable costs","questionnaires","A","Every Year",1,null,28,15,0.5357142857142857,0.5357142857142857,53.571428571428569]
["POL","Baltic Sea, North Sea and Eastern Arctic, and North Atlantic","Demersal trawlers","18-<24 m","Demersal trawlers 18-24 m","E","Non-variable costs","questionnaires","A","Every Year",1,null,28,15,0.5357142857142857,0.5357142857142857,53.571428571428569]
["POL","Baltic Sea, North Sea and Eastern Arctic, and North Atlantic","Demersal trawlers","18-<24 m","Demersal trawlers 18-24 m","E","Lease/rental payments for quota or other fishing rights","questionnaires","A","Every Year",1,null,28,15,0.5357142857142857,0.5357142857142857,53.571428571428569]
["POL","Baltic Sea, North Sea and Eastern Arctic, and North Atlantic","Demersal trawlers","18-<24 m","Demersal trawlers 18-24 m","E","Operating Subsidies","questionnaires","A","Every Year",1,null,28,15,0.5357142857142857,0.5357142857142857,53.571428571428569]
["POL","Baltic Sea, North Sea and Eastern Arctic, and North Atlantic","Demersal trawlers","18-<24 m","Demersal trawlers 18-24 m","E","Subsidies on investments","questionnaires","A","Every Year",1,null,28,15,0.5357142857142857,0.5357142857142857,53.571428571428569]
["POL","Baltic Sea, North Sea and Eastern Arctic, and North Atlantic","Demersal trawlers","18-<24 m","Demersal trawlers 18-24 m","E","Lease/rental payments for quota or other fishing rights","not relevant",null,null,null,null,"N/A","N/A","N/A","N/A","N/A"]
["POL","Baltic Sea, North Sea and Eastern Arctic, and North Atlantic","Demersal trawlers","18-<24 m","Demersal trawlers 18-24 m","E","Consumption of fixed capital","questionnaires","A","Every Year",1,null,28,15,{"$f":"N178/M178","v":0.5357142857142857},{"$f":"N178/M178","v":0.5357142857142857},53.571428571428569]
["POL","Baltic Sea, North Sea and Eastern Arctic, and North Atlantic","Demersal trawlers","18-<24 m","Demersal trawlers 18-24 m","E","Value of physical capital","questionnaires","A","Every Year",1,null,28,15,{"$f":"N179/M179","v":0.5357142857142857},{"$f":"N179/M179","v":0.5357142857142857},53.571428571428569]
["POL","Baltic Sea, North Sea and Eastern Arctic, and North Atlantic","Demersal trawlers","18-<24 m","Demersal trawlers 18-24 m","E","Value of quota and other fishing rights","not relevant",null,null,null,null,"N/A","N/A","N/A","N/A","N/A"]
["POL","Baltic Sea, North Sea and Eastern Arctic, and North Atlantic","Demersal trawlers","18-<24 m","Demersal trawlers 18-24 m","E","Investments of tangible assets, net","questionnaires","A","Every Year",1,null,28,15,{"$f":"N181/M181","v":0.5357142857142857},{"$f":"N181/M181","v":0.5357142857142857},53.571428571428569]
["POL","Baltic Sea, North Sea and Eastern Arctic, and North Atlantic","Demersal trawlers","18-<24 m","Demersal trawlers 18-24 m","E","Long/short debts","questionnaires","A","Every Year",1,null,28,15,0.5357142857142857,0.5357142857142857,53.571428571428569]
["POL","Baltic Sea, North Sea and Eastern Arctic, and North Atlantic","Demersal trawlers","18-<24 m","Demersal trawlers 18-24 m","E","Total assets","questionnaires","A","Every Year",1,null,28,15,0.5357142857142857,0.5357142857142857,53.571428571428569]
["POL","Baltic Sea, North Sea and Eastern Arctic, and North Atlantic","Demersal trawlers","18-<24 m","Demersal trawlers 18-24 m","E","Engaged crew","questionnaires","A","Every Year",1,null,28,15,0.5357142857142857,0.5357142857142857,53.571428571428569]
["POL","Baltic Sea, North Sea and Eastern Arctic, and North Atlantic","Demersal trawlers","18-<24 m","Demersal trawlers 18-24 m","E","Unpaid labour","questionnaires","A","Every Year",1,null,28,15,0.5357142857142857,0.5357142857142857,53.571428571428569]
["POL","Baltic Sea, North Sea and Eastern Arctic, and North Atlantic","Demersal trawlers","18-<24 m","Demersal trawlers 18-24 m","E","Total hours worked per year","questionnaires","A","Every Year",1,null,28,15,0.5357142857142857,0.5357142857142857,53.571428571428569]
["POL","Baltic Sea, North Sea and Eastern Arctic, and North Atlantic","Demersal trawlers","18-<24 m","Demersal trawlers 18-24 m","E","Number of vessels","questionnaires, Register","A","Every Year",1,null,28,28,1,1,99.999999999999986]
["POL","Baltic Sea, North Sea and Eastern Arctic, and North Atlantic","Demersal trawlers","18-<24 m","Demersal trawlers 18-24 m","E","Mean LOA of vessels","questionnaires, Register","A","Every Year",1,null,28,28,1,1,99.999999999999986]
["POL","Baltic Sea, North Sea and Eastern Arctic, and North Atlantic","Demersal trawlers","18-<24 m","Demersal trawlers 18-24 m","E","Total vessels tonnage","questionnaires, Register","A","Every Year",1,null,28,28,1,1,{"$f":"N189/(M189*K189/100)","v":99.999999999999986}]
["POL","Baltic Sea, North Sea and Eastern Arctic, and North Atlantic","Demersal trawlers","18-<24 m","Demersal trawlers 18-24 m","E","Total vessels power","questionnaires, Register","A","Every Year",1,null,28,28,1,1,99.999999999999986]
["POL","Baltic Sea, North Sea and Eastern Arctic, and North Atlantic","Demersal trawlers","18-<24 m","Demersal trawlers 18-24 m","E","Mean age of vessels","questionnaires, Register","A","Every Year",1,null,28,28,1,1,99.999999999999986]
["POL","Baltic Sea, North Sea and Eastern Arctic, and North Atlantic","Demersal trawlers","18-<24 m","Demersal trawlers 18-24 m","E","Days at sea","questionnaires, logbooks","A","Every Year",1,null,28,28,1,1,99.999999999999986]
["POL","Baltic Sea, North Sea and Eastern Arctic, and North Atlantic","Demersal trawlers","18-<24 m","Demersal trawlers 18-24 m","E","Energy consuption","questionnaires","A","Every Year",1,null,28,15,0.5357142857142857,0.5357142857142857,53.571428571428569]
["POL","Baltic Sea, North Sea and Eastern Arctic, and North Atlantic","Demersal trawlers","18-<24 m","Demersal trawlers 18-24 m","E","Number of fishing enterprises/units","Register","A","Every Year",1,null,28,28,1,1,99.999999999999986]
["POL","Baltic Sea, North Sea and Eastern Arctic, and North Atlantic","Demersal trawlers","18-<24 m","Demersal trawlers 18-24 m","E","Value of landings per species","First sale document","A","Every Year",1,null,28,28,1,1,99.999999999999986]
["POL","Baltic Sea, North Sea and Eastern Arctic, and North Atlantic","Demersal trawlers","18-<24 m","Demersal trawlers 18-24 m","E","Average price per spices","First sale document","A","Every Year",1,null,28,28,1,1,99.999999999999986]
["POL","Baltic Sea, North Sea and Eastern Arctic, and North Atlantic","Demersal trawlers","18-<24 m","Demersal trawlers 18-24 m","S","Employment by gender","questionnaires","A","Every Year",1,null,28,15,0.5357142857142857,0.5357142857142857,53.571428571428569]
["POL","Baltic Sea, North Sea and Eastern Arctic, and North Atlantic","Demersal trawlers","18-<24 m","Demersal trawlers 18-24 m","S","FTE by gender","questionnaires","A","Every Year",1,null,28,15,0.5357142857142857,0.5357142857142857,53.571428571428569]
["POL","Baltic Sea, North Sea and Eastern Arctic, and North Atlantic","Demersal trawlers","18-<24 m","Demersal trawlers 18-24 m","S","Unpaid labour by gender","questionnaires","A","Every Year",1,null,28,15,0.5357142857142857,0.5357142857142857,53.571428571428569]
["POL","Baltic Sea, North Sea and Eastern Arctic, and North Atlantic","Demersal trawlers","18-<24 m","Demersal trawlers 18-24 m","S","Employment by age","questionnaires","A","Every Year",1,null,28,15,0.5357142857142857,0.5357142857142857,53.571428571428569]
["POL","Baltic Sea, North Sea and Eastern Arctic, and North Atlantic","Demersal trawlers","18-<24 m","Demersal trawlers 18-24 m","S","Employment by education level","questionnaires","A","Every Year",1,null,28,15,0.5357142857142857,0.5357142857142857,53.571428571428569]
["POL","Baltic Sea, North Sea and Eastern Arctic, and North Atlantic","Demersal trawlers","18-<24 m","Demersal trawlers 18-24 m","S","Employment by nationality","not collected this year",null,null,null,null,"N/A","N/A","N/A","N/A","N/A"]
["POL","Baltic Sea, North Sea and Eastern Arctic, and North Atlantic","Demersal trawlers","18-<24 m","Demersal trawlers 18-24 m","S","Employment by employment status","questionnaires","A","Every Year",1,null,28,15,{"$f":"N203/M203","v":0.5357142857142857},{"$f":"N203/M203","v":0.5357142857142857},53.571428571428569]
["POL","Baltic Sea, North Sea and Eastern Arctic, and North Atlantic","Demersal trawlers","18-<24 m","Demersal trawlers 18-24 m","S","FTE National","questionnaires","A","Every Year",1,null,28,15,{"$f":"N204/M204","v":0.5357142857142857},{"$f":"N204/M204","v":0.5357142857142857},53.571428571428569]
["POL","Baltic Sea, North Sea and Eastern Arctic, and North Atlantic","Pelagic trawlers","18-<24 m","Pelagic trawlers 18-24 m","E","Gross value of landings","questionnaires/first sale document","A","Every Year",1,null,27,27,{"$f":"N205/M205","v":1},{"$f":"N205/M205","v":1},100]
["POL","Baltic Sea, North Sea and Eastern Arctic, and North Atlantic","Pelagic trawlers","18-<24 m","Pelagic trawlers 18-24 m","E","Income from leasing out quota or other fishing rights","not relevant",null,null,null,null,"N/A","N/A","N/A","N/A","N/A"]
["POL","Baltic Sea, North Sea and Eastern Arctic, and North Atlantic","Pelagic trawlers","18-<24 m","Pelagic trawlers 18-24 m","E","Other income","questionnaires","A","Every Year",1,null,27,13,{"$f":"N207/M207","v":0.48148148148148145},{"$f":"N207/M207","v":0.48148148148148145},48.148148148148145]
["POL","Baltic Sea, North Sea and Eastern Arctic, and North Atlantic","Pelagic trawlers","18-<24 m","Pelagic trawlers 18-24 m","E","Wages and salaries of crew","questionnaires","A","Every Year",1,null,27,13,{"$f":"N208/M208","v":0.48148148148148145},{"$f":"N208/M208","v":0.48148148148148145},48.148148148148145]
["POL","Baltic Sea, North Sea and Eastern Arctic, and North Atlantic","Pelagic trawlers","18-<24 m","Pelagic trawlers 18-24 m","E","Imputed value of unpaid labour","estimation","D","Every Year",1,null,27,13,0.48148148148148145,0.48148148148148145,48.148148148148145]
["POL","Baltic Sea, North Sea and Eastern Arctic, and North Atlantic","Pelagic trawlers","18-<24 m","Pelagic trawlers 18-24 m","E","Energy costs","questionnaires","A","Every Year",1,null,27,13,0.48148148148148145,0.48148148148148145,48.148148148148145]
["POL","Baltic Sea, North Sea and Eastern Arctic, and North Atlantic","Pelagic trawlers","18-<24 m","Pelagic trawlers 18-24 m","E","Repair and maintenance costs","questionnaires","A","Every Year",1,null,27,13,0.48148148148148145,0.48148148148148145,48.148148148148145]
["POL","Baltic Sea, North Sea and Eastern Arctic, and North Atlantic","Pelagic trawlers","18-<24 m","Pelagic trawlers 18-24 m","E","Variable costs","questionnaires","A","Every Year",1,null,27,13,0.48148148148148145,0.48148148148148145,48.148148148148145]
["POL","Baltic Sea, North Sea and Eastern Arctic, and North Atlantic","Pelagic trawlers","18-<24 m","Pelagic trawlers 18-24 m","E","Non-variable costs","questionnaires","A","Every Year",1,null,27,13,0.48148148148148145,0.48148148148148145,48.148148148148145]
["POL","Baltic Sea, North Sea and Eastern Arctic, and North Atlantic","Pelagic trawlers","18-<24 m","Pelagic trawlers 18-24 m","E","Lease/rental payments for quota or other fishing rights","questionnaires","A","Every Year",1,null,27,13,0.48148148148148145,0.48148148148148145,48.148148148148145]
["POL","Baltic Sea, North Sea and Eastern Arctic, and North Atlantic","Pelagic trawlers","18-<24 m","Pelagic trawlers 18-24 m","E","Operating Subsidies","questionnaires","A","Every Year",1,null,27,13,0.48148148148148145,0.48148148148148145,48.148148148148145]
["POL","Baltic Sea, North Sea and Eastern Arctic, and North Atlantic","Pelagic trawlers","18-<24 m","Pelagic trawlers 18-24 m","E","Subsidies on investments","questionnaires","A","Every Year",1,null,27,13,0.48148148148148145,0.48148148148148145,48.148148148148145]
["POL","Baltic Sea, North Sea and Eastern Arctic, and North Atlantic","Pelagic trawlers","18-<24 m","Pelagic trawlers 18-24 m","E","Lease/rental payments for quota or other fishing rights","not relevant",null,null,null,null,"N/A","N/A","N/A","N/A","N/A"]
["POL","Baltic Sea, North Sea and Eastern Arctic, and North Atlantic","Pelagic trawlers","18-<24 m","Pelagic trawlers 18-24 m","E","Consumption of fixed capital","questionnaires","A","Every Year",1,null,27,13,{"$f":"N218/M218","v":0.48148148148148145},{"$f":"N218/M218","v":0.48148148148148145},48.148148148148145]
["POL","Baltic Sea, North Sea and Eastern Arctic, and North Atlantic","Pelagic trawlers","18-<24 m","Pelagic trawlers 18-24 m","E","Value of physical capital","questionnaires","A","Every Year",1,null,27,13,{"$f":"N219/M219","v":0.48148148148148145},{"$f":"N219/M219","v":0.48148148148148145},48.148148148148145]
["POL","Baltic Sea, North Sea and Eastern Arctic, and North Atlantic","Pelagic trawlers","18-<24 m","Pelagic trawlers 18-24 m","E","Value of quota and other fishing rights","not relevant",null,null,null,null,"N/A","N/A","N/A","N/A","N/A"]
["POL","Baltic Sea, North Sea and Eastern Arctic, and North Atlantic","Pelagic trawlers","18-<24 m","Pelagic trawlers 18-24 m","E","Investments of tangible assets, net","questionnaires","A","Every Year",1,null,27,13,{"$f":"N221/M221","v":0.48148148148148145},{"$f":"N221/M221","v":0.48148148148148145},48.148148148148145]
["POL","Baltic Sea, North Sea and Eastern Arctic, and North Atlantic","Pelagic trawlers","18-<24 m","Pelagic trawlers 18-24 m","E","Long/short debts","questionnaires","A","Every Year",1,null,27,13,0.48148148148148145,0.48148148148148145,48.148148148148145]
["POL","Baltic Sea, North Sea and Eastern Arctic, and North Atlantic","Pelagic trawlers","18-<24 m","Pelagic trawlers 18-24 m","E","Total assets","questionnaires","A","Every Year",1,null,27,13,0.48148148148148145,0.48148148148148145,48.148148148148145]
["POL","Baltic Sea, North Sea and Eastern Arctic, and North Atlantic","Pelagic trawlers","18-<24 m","Pelagic trawlers 18-24 m","E","Engaged crew","questionnaires","A","Every Year",1,null,27,13,0.48148148148148145,0.48148148148148145,48.148148148148145]
["POL","Baltic Sea, North Sea and Eastern Arctic, and North Atlantic","Pelagic trawlers","18-<24 m","Pelagic trawlers 18-24 m","E","Unpaid labour","questionnaires","A","Every Year",1,null,27,13,0.48148148148148145,0.48148148148148145,48.148148148148145]
["POL","Baltic Sea, North Sea and Eastern Arctic, and North Atlantic","Pelagic trawlers","18-<24 m","Pelagic trawlers 18-24 m","E","Total hours worked per year","questionnaires","A","Every Year",1,null,27,13,0.48148148148148145,0.48148148148148145,48.148148148148145]
["POL","Baltic Sea, North Sea and Eastern Arctic, and North Atlantic","Pelagic trawlers","18-<24 m","Pelagic trawlers 18-24 m","E","Number of vessels","questionnaires, Register","A","Every Year",1,null,27,27,1,1,100]
["POL","Baltic Sea, North Sea and Eastern Arctic, and North Atlantic","Pelagic trawlers","18-<24 m","Pelagic trawlers 18-24 m","E","Mean LOA of vessels","questionnaires, Register","A","Every Year",1,null,27,27,1,1,100]
["POL","Baltic Sea, North Sea and Eastern Arctic, and North Atlantic","Pelagic trawlers","18-<24 m","Pelagic trawlers 18-24 m","E","Total vessels tonnage","questionnaires, Register","A","Every Year",1,null,27,27,1,1,100]
["POL","Baltic Sea, North Sea and Eastern Arctic, and North Atlantic","Pelagic trawlers","18-<24 m","Pelagic trawlers 18-24 m","E","Total vessels power","questionnaires, Register","A","Every Year",1,null,27,27,1,1,100]
["POL","Baltic Sea, North Sea and Eastern Arctic, and North Atlantic","Pelagic trawlers","18-<24 m","Pelagic trawlers 18-24 m","E","Mean age of vessels","questionnaires, Register","A","Every Year",1,null,27,27,1,1,100]
["POL","Baltic Sea, North Sea and Eastern Arctic, and North Atlantic","Pelagic trawlers","18-<24 m","Pelagic trawlers 18-24 m","E","Days at sea","questionnaires, logbooks","A","Every Year",1,null,27,27,1,1,100]
["POL","Baltic Sea, North Sea and Eastern Arctic, and North Atlantic","Pelagic trawlers","18-<24 m","Pelagic trawlers 18-24 m","E","Energy consuption","questionnaires","A","Every Year",1,null,27,13,0.48148148148148145,0.48148148148148145,48.148148148148145]
["POL","Baltic Sea, North Sea and Eastern Arctic, and North Atlantic","Pelagic trawlers","18-<24 m","Pelagic trawlers 18-24 m","E","Number of fishing enterprises/units","Register","A","Every Year",1,null,27,27,1,1,100]
["POL","Baltic Sea, North Sea and Eastern Arctic, and North Atlantic","Pelagic trawlers","18-<24 m","Pelagic trawlers 18-24 m","E","Value of landings per species","First sale document","A","Every Year",1,null,27,27,1,1,100]
["POL","Baltic Sea, North Sea and Eastern Arctic, and North Atlantic","Pelagic trawlers","18-<24 m","Pelagic trawlers 18-24 m","E","Average price per spices","First sale document","A","Every Year",1,null,27,27,1,1,100]
["POL","Baltic Sea, North Sea and Eastern Arctic, and North Atlantic","Pelagic trawlers","18-<24 m","Pelagic trawlers 18-24 m","S","Employment by gender","questionnaires","A","Every Year",1,null,27,13,0.48148148148148145,0.48148148148148145,48.148148148148145]
["POL","Baltic Sea, North Sea and Eastern Arctic, and North Atlantic","Pelagic trawlers","18-<24 m","Pelagic trawlers 18-24 m","S","FTE by gender","questionnaires","A","Every Year",1,null,27,13,0.48148148148148145,0.48148148148148145,48.148148148148145]
["POL","Baltic Sea, North Sea and Eastern Arctic, and North Atlantic","Pelagic trawlers","18-<24 m","Pelagic trawlers 18-24 m","S","Unpaid labour by gender","questionnaires","A","Every Year",1,null,27,13,0.48148148148148145,0.48148148148148145,48.148148148148145]
["POL","Baltic Sea, North Sea and Eastern Arctic, and North Atlantic","Pelagic trawlers","18-<24 m","Pelagic trawlers 18-24 m","S","Employment by age","questionnaires","A","Every Year",1,null,27,13,0.48148148148148145,0.48148148148148145,48.148148148148145]
["POL","Baltic Sea, North Sea and Eastern Arctic, and North Atlantic","Pelagic trawlers","18-<24 m","Pelagic trawlers 18-24 m","S","Employment by education level","questionnaires","A","Every Year",1,null,27,13,0.48148148148148145,0.48148148148148145,48.148148148148145]
["POL","Baltic Sea, North Sea and Eastern Arctic, and North Atlantic","Pelagic trawlers","18-<24 m","Pelagic trawlers 18-24 m","S","Employment by nationality","not collected this year",null,null,null,null,"N/A","N/A","N/A","N/A","N/A"]
["POL","Baltic Sea, North Sea and Eastern Arctic, and North Atlantic","Pelagic trawlers","18-<24 m","Pelagic trawlers 18-24 m","S","Employment by employment status","questionnaires","A","Every Year",1,null,27,13,{"$f":"N243/M243","v":0.48148148148148145},{"$f":"N243/M243","v":0.48148148148148145},48.148148148148145]
["POL","Baltic Sea, North Sea and Eastern Arctic, and North Atlantic","Pelagic trawlers","18-<24 m","Pelagic trawlers 18-24 m","S","FTE National","questionnaires","A","Every Year",1,null,27,13,{"$f":"N244/M244","v":0.48148148148148145},{"$f":"N244/M244","v":0.48148148148148145},48.148148148148145]
["POL","Baltic Sea, North Sea and Eastern Arctic, and North Atlantic","Pelagic trawlers","24-<40 m","Pelagic trawlers 24-40 m","E","Gross value of landings","questionnaires/first sale document","A","Every Year",1,null,44,44,{"$f":"N245/M245","v":1},{"$f":"N245/M245","v":1},100]
["POL","Baltic Sea, North Sea and Eastern Arctic, and North Atlantic","Pelagic trawlers","24-<40 m","Pelagic trawlers 24-40 m","E","Income from leasing out quota or other fishing rights","not relevant",null,null,null,null,"N/A","N/A","N/A","N/A","N/A"]
["POL","Baltic Sea, North Sea and Eastern Arctic, and North Atlantic","Pelagic trawlers","24-<40 m","Pelagic trawlers 24-40 m","E","Other income","questionnaires","A","Every Year",1,null,44,28,{"$f":"N247/M247","v":0.63636363636363635},{"$f":"N247/M247","v":0.63636363636363635},63.636363636363633]
["POL","Baltic Sea, North Sea and Eastern Arctic, and North Atlantic","Pelagic trawlers","24-<40 m","Pelagic trawlers 24-40 m","E","Wages and salaries of crew","questionnaires","A","Every Year",1,null,44,28,{"$f":"N248/M248","v":0.63636363636363635},{"$f":"N248/M248","v":0.63636363636363635},63.636363636363633]
["POL","Baltic Sea, North Sea and Eastern Arctic, and North Atlantic","Pelagic trawlers","24-<40 m","Pelagic trawlers 24-40 m","E","Imputed value of unpaid labour","estimation","D","Every Year",1,null,44,28,0.63636363636363635,0.63636363636363635,63.636363636363633]
["POL","Baltic Sea, North Sea and Eastern Arctic, and North Atlantic","Pelagic trawlers","24-<40 m","Pelagic trawlers 24-40 m","E","Energy costs","questionnaires","A","Every Year",1,null,44,28,0.63636363636363635,0.63636363636363635,63.636363636363633]
["POL","Baltic Sea, North Sea and Eastern Arctic, and North Atlantic","Pelagic trawlers","24-<40 m","Pelagic trawlers 24-40 m","E","Repair and maintenance costs","questionnaires","A","Every Year",1,null,44,28,0.63636363636363635,0.63636363636363635,63.636363636363633]
["POL","Baltic Sea, North Sea and Eastern Arctic, and North Atlantic","Pelagic trawlers","24-<40 m","Pelagic trawlers 24-40 m","E","Variable costs","questionnaires","A","Every Year",1,null,44,28,0.63636363636363635,0.63636363636363635,63.636363636363633]
["POL","Baltic Sea, North Sea and Eastern Arctic, and North Atlantic","Pelagic trawlers","24-<40 m","Pelagic trawlers 24-40 m","E","Non-variable costs","questionnaires","A","Every Year",1,null,44,28,0.63636363636363635,0.63636363636363635,{"$f":"N253/(M253*K253/100)","v":63.636363636363633}]
["POL","Baltic Sea, North Sea and Eastern Arctic, and North Atlantic","Pelagic trawlers","24-<40 m","Pelagic trawlers 24-40 m","E","Lease/rental payments for quota or other fishing rights","questionnaires","A","Every Year",1,null,44,28,0.63636363636363635,0.63636363636363635,63.636363636363633]
["POL","Baltic Sea, North Sea and Eastern Arctic, and North Atlantic","Pelagic trawlers","24-<40 m","Pelagic trawlers 24-40 m","E","Operating Subsidies","questionnaires","A","Every Year",1,null,44,28,0.63636363636363635,0.63636363636363635,63.636363636363633]
["POL","Baltic Sea, North Sea and Eastern Arctic, and North Atlantic","Pelagic trawlers","24-<40 m","Pelagic trawlers 24-40 m","E","Subsidies on investments","questionnaires","A","Every Year",1,null,44,28,0.63636363636363635,0.63636363636363635,63.636363636363633]
["POL","Baltic Sea, North Sea and Eastern Arctic, and North Atlantic","Pelagic trawlers","24-<40 m","Pelagic trawlers 24-40 m","E","Lease/rental payments for quota or other fishing rights","not relevant",null,null,null,null,"N/A","N/A","N/A","N/A","N/A"]
["POL","Baltic Sea, North Sea and Eastern Arctic, and North Atlantic","Pelagic trawlers","24-<40 m","Pelagic trawlers 24-40 m","E","Consumption of fixed capital","questionnaires","A","Every Year",1,null,44,28,{"$f":"N258/M258","v":0.63636363636363635},{"$f":"N258/M258","v":0.63636363636363635},63.636363636363633]
["POL","Baltic Sea, North Sea and Eastern Arctic, and North Atlantic","Pelagic trawlers","24-<40 m","Pelagic trawlers 24-40 m","E","Value of physical capital","questionnaires","A","Every Year",1,null,44,28,{"$f":"N259/M259","v":0.63636363636363635},{"$f":"N259/M259","v":0.63636363636363635},63.636363636363633]
["POL","Baltic Sea, North Sea and Eastern Arctic, and North Atlantic","Pelagic trawlers","24-<40 m","Pelagic trawlers 24-40 m","E","Value of quota and other fishing rights","not relevant",null,null,null,null,"N/A","N/A","N/A","N/A","N/A"]
["POL","Baltic Sea, North Sea and Eastern Arctic, and North Atlantic","Pelagic trawlers","24-<40 m","Pelagic trawlers 24-40 m","E","Investments of tangible assets, net","questionnaires","A","Every Year",1,null,44,28,{"$f":"N261/M261","v":0.63636363636363635},{"$f":"N261/M261","v":0.63636363636363635},63.636363636363633]
["POL","Baltic Sea, North Sea and Eastern Arctic, and North Atlantic","Pelagic trawlers","24-<40 m","Pelagic trawlers 24-40 m","E","Long/short debts","questionnaires","A","Every Year",1,null,44,28,0.63636363636363635,0.63636363636363635,63.636363636363633]
["POL","Baltic Sea, North Sea and Eastern Arctic, and North Atlantic","Pelagic trawlers","24-<40 m","Pelagic trawlers 24-40 m","E","Total assets","questionnaires","A","Every Year",1,null,44,28,0.63636363636363635,0.63636363636363635,63.636363636363633]
["POL","Baltic Sea, North Sea and Eastern Arctic, and North Atlantic","Pelagic trawlers","24-<40 m","Pelagic trawlers 24-40 m","E","Engaged crew","questionnaires","A","Every Year",1,null,44,28,0.63636363636363635,0.63636363636363635,63.636363636363633]
["POL","Baltic Sea, North Sea and Eastern Arctic, and North Atlantic","Pelagic trawlers","24-<40 m","Pelagic trawlers 24-40 m","E","Unpaid labour","questionnaires","A","Every Year",1,null,44,28,0.63636363636363635,0.63636363636363635,63.636363636363633]
["POL","Baltic Sea, North Sea and Eastern Arctic, and North Atlantic","Pelagic trawlers","24-<40 m","Pelagic trawlers 24-40 m","E","Total hours worked per year","questionnaires","A","Every Year",1,null,44,28,0.63636363636363635,0.63636363636363635,63.636363636363633]
["POL","Baltic Sea, North Sea and Eastern Arctic, and North Atlantic","Pelagic trawlers","24-<40 m","Pelagic trawlers 24-40 m","E","Number of vessels","questionnaires, Register","A","Every Year",1,null,44,44,1,1,100]
["POL","Baltic Sea, North Sea and Eastern Arctic, and North Atlantic","Pelagic trawlers","24-<40 m","Pelagic trawlers 24-40 m","E","Mean LOA of vessels","questionnaires, Register","A","Every Year",1,null,44,44,1,1,100]
["POL","Baltic Sea, North Sea and Eastern Arctic, and North Atlantic","Pelagic trawlers","24-<40 m","Pelagic trawlers 24-40 m","E","Total vessels tonnage","questionnaires, Register","A","Every Year",1,null,44,44,1,1,100]
["POL","Baltic Sea, North Sea and Eastern Arctic, and North Atlantic","Pelagic trawlers","24-<40 m","Pelagic trawlers 24-40 m","E","Total vessels power","questionnaires, Register","A","Every Year",1,null,44,44,1,1,100]
["POL","Baltic Sea, North Sea and Eastern Arctic, and North Atlantic","Pelagic trawlers","24-<40 m","Pelagic trawlers 24-40 m","E","Mean age of vessels","questionnaires, Register","A","Every Year",1,null,44,44,1,1,100]
["POL","Baltic Sea, North Sea and Eastern Arctic, and North Atlantic","Pelagic trawlers","24-<40 m","Pelagic trawlers 24-40 m","E","Days at sea","questionnaires, logbooks","A","Every Year",1,null,44,44,1,1,100]
["POL","Baltic Sea, North Sea and Eastern Arctic, and North Atlantic","Pelagic trawlers","24-<40 m","Pelagic trawlers 24-40 m","E","Energy consuption","questionnaires","A","Every Year",1,null,44,28,0.63636363636363635,0.63636363636363635,63.636363636363633]
["POL","Baltic Sea, North Sea and Eastern Arctic, and North Atlantic","Pelagic trawlers","24-<40 m","Pelagic trawlers 24-40 m","E","Number of fishing enterprises/units","Register","A","Every Year",1,null,44,44,1,1,100]
["POL","Baltic Sea, North Sea and Eastern Arctic, and North Atlantic","Pelagic trawlers","24-<40 m","Pelagic trawlers 24-40 m","E","Value of landings per species","First sale document","A","Every Year",1,null,44,44,1,1,100]
["POL","Baltic Sea, North Sea and Eastern Arctic, and North Atlantic","Pelagic trawlers","24-<40 m","Pelagic trawlers 24-40 m","E","Average price per spices","First sale document","A","Every Year",1,null,44,44,1,1,100]
["POL","Baltic Sea, North Sea and Eastern Arctic, and North Atlantic","Pelagic trawlers","24-<40 m","Pelagic trawlers 24-40 m","S","Employment by gender","questionnaires","A","Every Year",1,null,44,28,0.63636363636363635,0.63636363636363635,63.636363636363633]
["POL","Baltic Sea, North Sea and Eastern Arctic, and North Atlantic","Pelagic trawlers","24-<40 m","Pelagic trawlers 24-40 m","S","FTE by gender","questionnaires","A","Every Year",1,null,44,28,0.63636363636363635,0.63636363636363635,63.636363636363633]
["POL","Baltic Sea, North Sea and Eastern Arctic, and North Atlantic","Pelagic trawlers","24-<40 m","Pelagic trawlers 24-40 m","S","Unpaid labour by gender","questionnaires","A","Every Year",1,null,44,28,0.63636363636363635,0.63636363636363635,63.636363636363633]
["POL","Baltic Sea, North Sea and Eastern Arctic, and North Atlantic","Pelagic trawlers","24-<40 m","Pelagic trawlers 24-40 m","S","Employment by age","questionnaires","A","Every Year",1,null,44,28,0.63636363636363635,0.63636363636363635,63.636363636363633]
["POL","Baltic Sea, North Sea and Eastern Arctic, and North Atlantic","Pelagic trawlers","24-<40 m","Pelagic trawlers 24-40 m","S","Employment by education level","questionnaires","A","Every Year",1,null,44,28,0.63636363636363635,0.63636363636363635,63.636363636363633]
["POL","Baltic Sea, North Sea and Eastern Arctic, and North Atlantic","Pelagic trawlers","24-<40 m","Pelagic trawlers 24-40 m","S","Employment by nationality","not collected this year",null,null,null,null,"N/A","N/A","N/A","N/A","N/A"]
["POL","Baltic Sea, North Sea and Eastern Arctic, and North Atlantic","Pelagic trawlers","24-<40 m","Pelagic trawlers 24-40 m","S","Employment by employment status","questionnaires","A","Every Year",1,null,44,28,{"$f":"N283/M283","v":0.63636363636363635},{"$f":"N283/M283","v":0.63636363636363635},63.636363636363633]
["POL","Baltic Sea, North Sea and Eastern Arctic, and North Atlantic","Pelagic trawlers","24-<40 m","Pelagic trawlers 24-40 m","S","FTE National","questionnaires","A","Every Year",1,null,44,28,{"$f":"N284/M284","v":0.63636363636363635},{"$f":"N284/M284","v":0.63636363636363635},63.636363636363633]
["POL","Baltic Sea, North Sea and Eastern Arctic, and North Atlantic","Demersal trawlers","40 < m","Demersal trawlers 40-XX m","E","Gross value of landings","questionnaires/first sale document","A","Every Year",1,null,1,1,{"$f":"N285/M285","v":1},{"$f":"N285/M285","v":1},100]
["POL","Baltic Sea, North Sea and Eastern Arctic, and North Atlantic","Demersal trawlers","40 < m","Demersal trawlers 40-XX m","E","Income from leasing out quota or other fishing rights","not relevant",null,null,null,null,"N/A","N/A","N/A","N/A","N/A"]
["POL","Baltic Sea, North Sea and Eastern Arctic, and North Atlantic","Demersal trawlers","40 < m","Demersal trawlers 40-XX m","E","Other income","questionnaires","A","Every Year",1,null,1,1,{"$f":"N287/M287","v":1},{"$f":"N287/M287","v":1},100]
["POL","Baltic Sea, North Sea and Eastern Arctic, and North Atlantic","Demersal trawlers","40 < m","Demersal trawlers 40-XX m","E","Wages and salaries of crew","questionnaires","A","Every Year",1,null,1,1,{"$f":"N288/M288","v":1},{"$f":"N288/M288","v":1},100]
["POL","Baltic Sea, North Sea and Eastern Arctic, and North Atlantic","Demersal trawlers","40 < m","Demersal trawlers 40-XX m","E","Imputed value of unpaid labour","estimation","D","Every Year",1,null,1,1,1,1,100]
["POL","Baltic Sea, North Sea and Eastern Arctic, and North Atlantic","Demersal trawlers","40 < m","Demersal trawlers 40-XX m","E","Energy costs","questionnaires","A","Every Year",1,null,1,1,1,1,100]
["POL","Baltic Sea, North Sea and Eastern Arctic, and North Atlantic","Demersal trawlers","40 < m","Demersal trawlers 40-XX m","E","Repair and maintenance costs","questionnaires","A","Every Year",1,null,1,1,1,1,100]
["POL","Baltic Sea, North Sea and Eastern Arctic, and North Atlantic","Demersal trawlers","40 < m","Demersal trawlers 40-XX m","E","Variable costs","questionnaires","A","Every Year",1,null,1,1,1,1,100]
["POL","Baltic Sea, North Sea and Eastern Arctic, and North Atlantic","Demersal trawlers","40 < m","Demersal trawlers 40-XX m","E","Non-variable costs","questionnaires","A","Every Year",1,null,1,1,1,1,100]
["POL","Baltic Sea, North Sea and Eastern Arctic, and North Atlantic","Demersal trawlers","40 < m","Demersal trawlers 40-XX m","E","Lease/rental payments for quota or other fishing rights","questionnaires","A","Every Year",1,null,1,1,1,1,100]
["POL","Baltic Sea, North Sea and Eastern Arctic, and North Atlantic","Demersal trawlers","40 < m","Demersal trawlers 40-XX m","E","Operating Subsidies","questionnaires","A","Every Year",1,null,1,1,1,1,100]
["POL","Baltic Sea, North Sea and Eastern Arctic, and North Atlantic","Demersal trawlers","40 < m","Demersal trawlers 40-XX m","E","Subsidies on investments","questionnaires","A","Every Year",1,null,1,1,1,1,100]
["POL","Baltic Sea, North Sea and Eastern Arctic, and North Atlantic","Demersal trawlers","40 < m","Demersal trawlers 40-XX m","E","Lease/rental payments for quota or other fishing rights","not relevant",null,null,null,null,"N/A","N/A","N/A","N/A","N/A"]
["POL","Baltic Sea, North Sea and Eastern Arctic, and North Atlantic","Demersal trawlers","40 < m","Demersal trawlers 40-XX m","E","Consumption of fixed capital","questionnaires","A","Every Year",1,null,1,1,{"$f":"N298/M298","v":1},{"$f":"N298/M298","v":1},100]
["POL","Baltic Sea, North Sea and Eastern Arctic, and North Atlantic","Demersal trawlers","40 < m","Demersal trawlers 40-XX m","E","Value of physical capital","questionnaires","A","Every Year",1,null,1,1,{"$f":"N299/M299","v":1},{"$f":"N299/M299","v":1},100]
["POL","Baltic Sea, North Sea and Eastern Arctic, and North Atlantic","Demersal trawlers","40 < m","Demersal trawlers 40-XX m","E","Value of quota and other fishing rights","not relevant",null,null,null,null,"N/A","N/A","N/A","N/A","N/A"]
["POL","Baltic Sea, North Sea and Eastern Arctic, and North Atlantic","Demersal trawlers","40 < m","Demersal trawlers 40-XX m","E","Investments of tangible assets, net","questionnaires","A","Every Year",1,null,1,1,{"$f":"N301/M301","v":1},{"$f":"N301/M301","v":1},100]
["POL","Baltic Sea, North Sea and Eastern Arctic, and North Atlantic","Demersal trawlers","40 < m","Demersal trawlers 40-XX m","E","Long/short debts","questionnaires","A","Every Year",1,null,1,1,1,1,100]
["POL","Baltic Sea, North Sea and Eastern Arctic, and North Atlantic","Demersal trawlers","40 < m","Demersal trawlers 40-XX m","E","Total assets","questionnaires","A","Every Year",1,null,1,1,1,1,100]
["POL","Baltic Sea, North Sea and Eastern Arctic, and North Atlantic","Demersal trawlers","40 < m","Demersal trawlers 40-XX m","E","Engaged crew","questionnaires","A","Every Year",1,null,1,1,1,1,100]
["POL","Baltic Sea, North Sea and Eastern Arctic, and North Atlantic","Demersal trawlers","40 < m","Demersal trawlers 40-XX m","E","Unpaid labour","questionnaires","A","Every Year",1,null,1,1,1,1,100]
["POL","Baltic Sea, North Sea and Eastern Arctic, and North Atlantic","Demersal trawlers","40 < m","Demersal trawlers 40-XX m","E","Total hours worked per year","questionnaires","A","Every Year",1,null,1,1,1,1,100]
["POL","Baltic Sea, North Sea and Eastern Arctic, and North Atlantic","Demersal trawlers","40 < m","Demersal trawlers 40-XX m","E","Number of vessels","questionnaires, Register","A","Every Year",1,null,1,1,1,1,100]
["POL","Baltic Sea, North Sea and Eastern Arctic, and North Atlantic","Demersal trawlers","40 < m","Demersal trawlers 40-XX m","E","Mean LOA of vessels","questionnaires, Register","A","Every Year",1,null,1,1,1,1,100]
["POL","Baltic Sea, North Sea and Eastern Arctic, and North Atlantic","Demersal trawlers","40 < m","Demersal trawlers 40-XX m","E","Total vessels tonnage","questionnaires, Register","A","Every Year",1,null,1,1,1,1,100]
["POL","Baltic Sea, North Sea and Eastern Arctic, and North Atlantic","Demersal trawlers","40 < m","Demersal trawlers 40-XX m","E","Total vessels power","questionnaires, Register","A","Every Year",1,null,1,1,1,1,100]
["POL","Baltic Sea, North Sea and Eastern Arctic, and North Atlantic","Demersal trawlers","40 < m","Demersal trawlers 40-XX m","E","Mean age of vessels","questionnaires, Register","A","Every Year",1,null,1,1,1,1,100]
["POL","Baltic Sea, North Sea and Eastern Arctic, and North Atlantic","Demersal trawlers","40 < m","Demersal trawlers 40-XX m","E","Days at sea","questionnaires, logbooks","A","Every Year",1,null,1,1,1,1,100]
["POL","Baltic Sea, North Sea and Eastern Arctic, and North Atlantic","Demersal trawlers","40 < m","Demersal trawlers 40-XX m","E","Energy consuption","questionnaires","A","Every Year",1,null,1,1,1,1,100]
["POL","Baltic Sea, North Sea and Eastern Arctic, and North Atlantic","Demersal trawlers","40 < m","Demersal trawlers 40-XX m","E","Number of fishing enterprises/units","Register","A","Every Year",1,null,1,1,1,1,100]
["POL","Baltic Sea, North Sea and Eastern Arctic, and North Atlantic","Demersal trawlers","40 < m","Demersal trawlers 40-XX m","E","Value of landings per species","First sale document","A","Every Year",1,null,1,1,1,1,100]
["POL","Baltic Sea, North Sea and Eastern Arctic, and North Atlantic","Demersal trawlers","40 < m","Demersal trawlers 40-XX m","E","Average price per spices","First sale document","A","Every Year",1,null,1,1,1,1,100]
["POL","Baltic Sea, North Sea and Eastern Arctic, and North Atlantic","Demersal trawlers","40 < m","Demersal trawlers 40-XX m","S","Employment by gender","questionnaires","A","Every Year",1,null,1,1,1,1,{"$f":"N317/(M317*K317/100)","v":100}]
["POL","Baltic Sea, North Sea and Eastern Arctic, and North Atlantic","Demersal trawlers","40 < m","Demersal trawlers 40-XX m","S","FTE by gender","questionnaires","A","Every Year",1,null,1,1,1,1,100]
["POL","Baltic Sea, North Sea and Eastern Arctic, and North Atlantic","Demersal trawlers","40 < m","Demersal trawlers 40-XX m","S","Unpaid labour by gender","questionnaires","A","Every Year",1,null,1,1,1,1,100]
["POL","Baltic Sea, North Sea and Eastern Arctic, and North Atlantic","Demersal trawlers","40 < m","Demersal trawlers 40-XX m","S","Employment by age","questionnaires","A","Every Year",1,null,1,1,1,1,100]
["POL","Baltic Sea, North Sea and Eastern Arctic, and North Atlantic","Demersal trawlers","40 < m","Demersal trawlers 40-XX m","S","Employment by education level","questionnaires","A","Every Year",1,null,1,1,1,1,100]
["POL","Baltic Sea, North Sea and Eastern Arctic, and North Atlantic","Demersal trawlers","40 < m","Demersal trawlers 40-XX m","S","Employment by nationality","not collected this year",null,null,null,null,"N/A","N/A","N/A","N/A","N/A"]
["POL","Baltic Sea, North Sea and Eastern Arctic, and North Atlantic","Demersal trawlers","40 < m","Demersal trawlers 40-XX m","S","Employment by employment status","questionnaires","A","Every Year",1,null,1,1,{"$f":"N323/M323","v":1},{"$f":"N323/M323","v":1},100]
["POL","Baltic Sea, North Sea and Eastern Arctic, and North Atlantic","Demersal trawlers","40 < m","Demersal trawlers 40-XX m","S","FTE National","questionnaires","A","Every Year",1,null,1,1,{"$f":"N324/M324","v":1},{"$f":"N324/M324","v":1},100]
["POL","Other regions","Pelagic trawlers","40 < m","Pelagic trawlers 40-XX m","E","Gross value of landings","questionnaires/first sale document","A","Every Year",1,null,3,3,{"$f":"N325/M325","v":1},{"$f":"N325/M325","v":1},100]
["POL","Other regions","Pelagic trawlers","40 < m","Pelagic trawlers 40-XX m","E","Income from leasing out quota or other fishing rights","not relevant",null,null,null,null,"N/A","N/A","N/A","N/A","N/A"]
["POL","Other regions","Pelagic trawlers","40 < m","Pelagic trawlers 40-XX m","E","Other income","questionnaires","A","Every Year",1,null,3,3,{"$f":"N327/M327","v":1},{"$f":"N327/M327","v":1},100]
["POL","Other regions","Pelagic trawlers","40 < m","Pelagic trawlers 40-XX m","E","Wages and salaries of crew","questionnaires","A","Every Year",1,null,3,3,{"$f":"N328/M328","v":1},{"$f":"N328/M328","v":1},100]
["POL","Other regions","Pelagic trawlers","40 < m","Pelagic trawlers 40-XX m","E","Imputed value of unpaid labour","estimation","D","Every Year",1,null,3,3,1,1,100]
["POL","Other regions","Pelagic trawlers","40 < m","Pelagic trawlers 40-XX m","E","Energy costs","questionnaires","A","Every Year",1,null,3,3,1,1,100]
["POL","Other regions","Pelagic trawlers","40 < m","Pelagic trawlers 40-XX m","E","Repair and maintenance costs","questionnaires","A","Every Year",1,null,3,3,1,1,100]
["POL","Other regions","Pelagic trawlers","40 < m","Pelagic trawlers 40-XX m","E","Variable costs","questionnaires","A","Every Year",1,null,3,3,1,1,100]
["POL","Other regions","Pelagic trawlers","40 < m","Pelagic trawlers 40-XX m","E","Non-variable costs","questionnaires","A","Every Year",1,null,3,3,1,1,100]
["POL","Other regions","Pelagic trawlers","40 < m","Pelagic trawlers 40-XX m","E","Lease/rental payments for quota or other fishing rights","questionnaires","A","Every Year",1,null,3,3,1,1,100]
["POL","Other regions","Pelagic trawlers","40 < m","Pelagic trawlers 40-XX m","E","Operating Subsidies","questionnaires","A","Every Year",1,null,3,3,1,1,100]
["POL","Other regions","Pelagic trawlers","40 < m","Pelagic trawlers 40-XX m","E","Subsidies on investments","questionnaires","A","Every Year",1,null,3,3,1,1,100]
["POL","Other regions","Pelagic trawlers","40 < m","Pelagic trawlers 40-XX m","E","Lease/rental payments for quota or other fishing rights","not relevant",null,null,null,null,"N/A","N/A","N/A","N/A","N/A"]
["POL","Other regions","Pelagic trawlers","40 < m","Pelagic trawlers 40-XX m","E","Consumption of fixed capital","questionnaires","A","Every Year",1,null,3,3,{"$f":"N338/M338","v":1},{"$f":"N338/M338","v":1},100]
["POL","Other regions","Pelagic trawlers","40 < m","Pelagic trawlers 40-XX m","E","Value of physical capital","questionnaires","A","Every Year",1,null,3,3,{"$f":"N339/M339","v":1},{"$f":"N339/M339","v":1},100]
["POL","Other regions","Pelagic trawlers","40 < m","Pelagic trawlers 40-XX m","E","Value of quota and other fishing rights","not relevant",null,null,null,null,"N/A","N/A","N/A","N/A","N/A"]
["POL","Other regions","Pelagic trawlers","40 < m","Pelagic trawlers 40-XX m","E","Investments of tangible assets, net","questionnaires","A","Every Year",1,null,3,3,{"$f":"N341/M341","v":1},{"$f":"N341/M341","v":1},100]
["POL","Other regions","Pelagic trawlers","40 < m","Pelagic trawlers 40-XX m","E","Long/short debts","questionnaires","A","Every Year",1,null,3,3,1,1,100]
["POL","Other regions","Pelagic trawlers","40 < m","Pelagic trawlers 40-XX m","E","Total assets","questionnaires","A","Every Year",1,null,3,3,1,1,100]
["POL","Other regions","Pelagic trawlers","40 < m","Pelagic trawlers 40-XX m","E","Engaged crew","questionnaires","A","Every Year",1,null,3,3,1,1,100]
["POL","Other regions","Pelagic trawlers","40 < m","Pelagic trawlers 40-XX m","E","Unpaid labour","questionnaires","A","Every Year",1,null,3,3,1,1,100]
["POL","Other regions","Pelagic trawlers","40 < m","Pelagic trawlers 40-XX m","E","Total hours worked per year","questionnaires","A","Every Year",1,null,3,3,1,1,100]
["POL","Other regions","Pelagic trawlers","40 < m","Pelagic trawlers 40-XX m","E","Number of vessels","questionnaires, Register","A","Every Year",1,null,3,3,1,1,100]
["POL","Other regions","Pelagic trawlers","40 < m","Pelagic trawlers 40-XX m","E","Mean LOA of vessels","questionnaires, Register","A","Every Year",1,null,3,3,1,1,100]
["POL","Other regions","Pelagic trawlers","40 < m","Pelagic trawlers 40-XX m","E","Total vessels tonnage","questionnaires, Register","A","Every Year",1,null,3,3,1,1,100]
["POL","Other regions","Pelagic trawlers","40 < m","Pelagic trawlers 40-XX m","E","Total vessels power","questionnaires, Register","A","Every Year",1,null,3,3,1,1,100]
["POL","Other regions","Pelagic trawlers","40 < m","Pelagic trawlers 40-XX m","E","Mean age of vessels","questionnaires, Register","A","Every Year",1,null,3,3,1,1,100]
["POL","Other regions","Pelagic trawlers","40 < m","Pelagic trawlers 40-XX m","E","Days at sea","questionnaires, logbooks","A","Every Year",1,null,3,3,1,1,100]
["POL","Other regions","Pelagic trawlers","40 < m","Pelagic trawlers 40-XX m","E","Energy consuption","questionnaires","A","Every Year",1,null,3,3,1,1,100]
["POL","Other regions","Pelagic trawlers","40 < m","Pelagic trawlers 40-XX m","E","Number of fishing enterprises/units","Register","A","Every Year",1,null,3,3,1,1,100]
["POL","Other regions","Pelagic trawlers","40 < m","Pelagic trawlers 40-XX m","E","Value of landings per species","First sale document","A","Every Year",1,null,3,3,1,1,100]
["POL","Other regions","Pelagic trawlers","40 < m","Pelagic trawlers 40-XX m","E","Average price per spices","First sale document","A","Every Year",1,null,3,3,1,1,100]
["POL","Other regions","Pelagic trawlers","40 < m","Pelagic trawlers 40-XX m","S","Employment by gender","questionnaires","A","Every Year",1,null,3,3,1,1,100]
["POL","Other regions","Pelagic trawlers","40 < m","Pelagic trawlers 40-XX m","S","FTE by gender","questionnaires","A","Every Year",1,null,3,3,1,1,100]
["POL","Other regions","Pelagic trawlers","40 < m","Pelagic trawlers 40-XX m","S","Unpaid labour by gender","questionnaires","A","Every Year",1,null,3,3,1,1,100]
["POL","Other regions","Pelagic trawlers","40 < m","Pelagic trawlers 40-XX m","S","Employment by age","questionnaires","A","Every Year",1,null,3,3,1,1,100]
["POL","Other regions","Pelagic trawlers","40 < m","Pelagic trawlers 40-XX m","S","Employment by education level","questionnaires","A","Every Year",1,null,3,3,1,1,100]
["POL","Other regions","Pelagic trawlers","40 < m","Pelagic trawlers 40-XX m","S","Employment by nationality","not collected this year",null,null,null,null,"N/A","N/A","N/A","N/A","N/A"]
["POL","Other regions","Pelagic trawlers","40 < m","Pelagic trawlers 40-XX m","S","Employment by employment status","questionnaires","A","Every Year",1,null,3,3,{"$f":"N363/M363","v":1},{"$f":"N363/M363","v":1},100]
["POL","Other regions","Pelagic trawlers","40 < m","Pelagic trawlers 40-XX m","S","FTE National","questionnaires","A","Every Year",1,null,3,3,{"$f":"N364/M364","v":1},{"$f":"N364/M364","v":1},100]
["POL",null,"Inactive",null,"Inactive","E","Gross value of landings","questionnaires/first sale document","A","Every Year",1,null,"N/A","N/A","N/A","N/A","N/A"]
["POL",null,"Inactive",null,"Inactive","E","Income from leasing out quota or other fishing rights","not relevant",null,null,null,null,"N/A","N/A","N/A","N/A","N/A"]
["POL",null,"Inactive",null,"Inactive","E","Other income","questionnaires","A","Every Year",1,null,"N/A","N/A","N/A","N/A","N/A"]
["POL",null,"Inactive",null,"Inactive","E","Wages and salaries of crew","questionnaires","A","Every Year",1,null,"N/A","N/A","N/A","N/A","N/A"]
["POL",null,"Inactive",null,"Inactive","E","Imputed value of unpaid labour","estimation","D","Every Year",1,null,"N/A","N/A","N/A","N/A","N/A"]
["POL",null,"Inactive",null,"Inactive","E","Energy costs","questionnaires","A","Every Year",1,null,"N/A","N/A","N/A","N/A","N/A"]
["POL",null,"Inactive",null,"Inactive","E","Repair and maintenance costs","questionnaires","A","Every Year",1,null,"N/A","N/A","N/A","N/A","N/A"]
["POL",null,"Inactive",null,"Inactive","E","Variable costs","questionnaires","A","Every Year",1,null,"N/A","N/A","N/A","N/A","N/A"]
["POL",null,"Inactive",null,"Inactive","E","Non-variable costs","questionnaires","A","Every Year",1,null,"N/A","N/A","N/A","N/A","N/A"]
["POL",null,"Inactive",null,"Inactive","E","Lease/rental payments for quota or other fishing rights","questionnaires","A","Every Year",1,null,"N/A","N/A","N/A","N/A","N/A"]
["POL",null,"Inactive",null,"Inactive","E","Operating Subsidies","questionnaires","A","Every Year",1,null,"N/A","N/A","N/A","N/A","N/A"]
["POL",null,"Inactive",null,"Inactive","E","Subsidies on investments","questionnaires","A","Every Year",1,null,"N/A","N/A","N/A","N/A","N/A"]
["POL",null,"Inactive",null,"Inactive","E","Lease/rental payments for quota or other fishing rights","not relevant",null,null,null,null,"N/A","N/A","N/A","N/A","N/A"]
["POL",null,"Inactive",null,"Inactive","E","Consumption of fixed capital","questionnaires","A","Every Year",1,null,"N/A","N/A","N/A","N/A","N/A"]
["POL",null,"Inactive",null,"Inactive","E","Value of physical capital","questionnaires","A","Every Year",1,null,"N/A","N/A","N/A","N/A","N/A"]
["POL",null,"Inactive",null,"Inactive","E","Value of quota and other fishing rights","not relevant",null,null,null,null,"N/A","N/A","N/A","N/A","N/A"]
["POL",null,"Inactive",null,"Inactive","E","Investments of tangible assets, net","questionnaires","A","Every Year",1,null,"N/A","N/A","N/A","N/A","N/A"]
["POL",null,"Inactive",null,"Inactive","E","Long/short debts","questionnaires","A","Every Year",1,null,"N/A","N/A","N/A","N/A","N/A"]
["POL",null,"Inactive",null,"Inactive","E","Total assets","questionnaires","A","Every Year",1,null,"N/A","N/A","N/A","N/A","N/A"]
["POL",null,"Inactive",null,"Inactive","E","Engaged crew","questionnaires","A","Every Year",1,null,"N/A","N/A","N/A","N/A","N/A"]
["POL",null,"Inactive",null,"Inactive","E","Unpaid labour","questionnaires","A","Every Year",1,null,"N/A","N/A","N/A","N/A","N/A"]
["POL",null,"Inactive",null,"Inactive","E","Total hours worked per year","questionnaires","A","Every Year",1,null,"N/A","N/A","N/A","N/A","N/A"]
["POL",null,"Inactive",null,"Inactive","E","Number of vessels","questionnaires, Register","A","Every Year",1,null,"N/A","N/A","N/A","N/A","N/A"]
["POL",null,"Inactive",null,"Inactive","E","Mean LOA of vessels","questionnaires, Register","A","Every Year",1,null,"N/A","N/A","N/A","N/A","N/A"]
["POL",null,"Inactive",null,"Inactive","E","Total vessels tonnage","questionnaires, Register","A","Every Year",1,null,"N/A","N/A","N/A","N/A","N/A"]
["POL",null,"Inactive",null,"Inactive","E","Total vessels power","questionnaires, Register","A","Every Year",1,null,"N/A","N/A","N/A","N/A","N/A"]
["POL",null,"Inactive",null,"Inactive","E","Mean age of vessels","questionnaires, Register","A","Every Year",1,null,"N/A","N/A","N/A","N/A","N/A"]
["POL",null,"Inactive",null,"Inactive","E","Days at sea","questionnaires, logbooks","A","Every Year",1,null,"N/A","N/A","N/A","N/A","N/A"]
["POL",null,"Inactive",null,"Inactive","E","Energy consuption","questionnaires","A","Every Year",1,null,"N/A","N/A","N/A","N/A","N/A"]
["POL",null,"Inactive",null,"Inactive","E","Number of fishing enterprises/units","Register","A","Every Year",1,null,"N/A","N/A","N/A","N/A","N/A"]
["POL",null,"Inactive",null,"Inactive","E","Value of landings per species","First sale document","A","Every Year",1,null,"N/A","N/A","N/A","N/A","N/A"]
["POL",null,"Inactive",null,"Inactive","E","Average price per spices","First sale document","A","Every Year",1,null,"N/A","N/A","N/A","N/A","N/A"]
["POL",null,"Inactive",null,"Inactive","S","Employment by gender","questionnaires","A","Every Year",1,null,"N/A","N/A","N/A","N/A","N/A"]
["POL",null,"Inactive",null,"Inactive","S","FTE by gender","questionnaires","A","Every Year",1,null,"N/A","N/A","N/A","N/A","N/A"]
["POL",null,"Inactive",null,"Inactive","S","Unpaid labour by gender","questionnaires","A","Every Year",1,null,"N/A","N/A","N/A","N/A","N/A"]
["POL",null,"Inactive",null,"Inactive","S","Employment by age","questionnaires","A","Every Year",1,null,"N/A","N/A","N/A","N/A","N/A"]
["POL",null,"Inactive",null,"Inactive","S","Employment by education level","questionnaires","A","Every Year",1,null,"N/A","N/A","N/A","N/A","N/A"]
["POL",null,"Inactive",null,"Inactive","S","Employment by nationality","not collected this year",null,null,null,null,"N/A","N/A","N/A","N/A","N/A"]
["POL",null,"Inactive",null,"Inactive","S","Employment by employment status","questionnaires","A","Every Year",1,null,"N/A","N/A","N/A","N/A","N/A"]
["POL",null,"Inactive",null,"Inactive","S","FTE National","questionnaires","A","Every Year",1,null,"N/A","N/A","N/A","N/A","N/A"]

{"sheet":"Table3B Pop segments aquacultur","index":10,"n_rows":5,"n_cols":18,"rows_kept":5,"cut":false,"hidden":false,"merged":[]}
["Table 3B: Population segments for collection of economic and social data for aquaculture"]
[null,null,null,null,null,null,null,null,null,null,null,null,null,null,null,null,"WP  years","2017-2019"]
[null,null,null,null,null,null,null,null,null,null,null,null,null,null,null,null,"AR year",2017]
["MS","Techniques","Species group","Type of variables (E/S)","Variable","Data source","Type of data collection scheme ","Threshold (Y/N)","Threshold Type","Frequency","Planned sample rate % ","Comments","Frame population","Achieved sample number","Achieved Sample Rate %","Response Rate %","Achieved Sample no/Planned sample no.","AR Comment"]
["POL","NA","NA","NA","NA","NA","NA","NA",null,"NA","NA","Based on the data until 2015, according to  classification of aquaculture activities by Eurostat statistics, Poland has no marine aquaculture sector. Hence, no sampling is planned"]

{"sheet":"Table3C Pop segments proces","index":11,"n_rows":107,"n_cols":15,"rows_kept":107,"cut":false,"hidden":false,"merged":[]}
["Table 3C: Population segments for collection of economic and social data for the processing industry"]
[null,null,null,null,null,null,null,null,null,null,null,null,null,"WP  years","2017-2019"]
[null,null,null,null,null,null,null,null,null,null,null,null,null,"AR year",2017]
["MS","Segment","Type of variables (E/S)","Variables ","Data sources","Type of data collection scheme ","Frequency","Planned sample rate % ","Comments","Frame population","Achieved sample number","Achieved Sample Rate %","Response Rate %","Achieved Sample no/Planned sample no.","AR Comments"]
["POL","Companies <= 10","E","Turnover","questionnaires","A - Census","every year",1,null,35,27,null,0.77139999999999997,{"$f":"K5/(J5*H5/100)","v":77.142857142857153}]
["POL","Companies <= 10","E","Other income","questionnaires","A - Census","every year",1,null,35,27,null,0.77139999999999997,{"$f":"K6/(J6*H6/100)","v":77.142857142857153}]
["POL","Companies <= 10","E","Personnel costs","questionnaires","A - Census","every year",1,null,35,27,null,0.77139999999999997,77.142857142857153]
["POL","Companies <= 10","E"," Value of unpaied labour","questionnaires","A - Census","every year",1,null,35,27,null,0.77139999999999997,77.142857142857153]
["POL","Companies <= 10","E","Energy costs","questionnaires","A - Census","every year",1,null,35,27,null,0.77139999999999997,77.142857142857153]
["POL","Companies <= 10","E","Purchase of fish and other raw material for production","questionnaires","A - Census","every year",1,null,35,27,null,0.77139999999999997,77.142857142857153]
["POL","Companies <= 10","E","Other operational costs","questionnaires","A - Census","every year",1,null,35,27,null,0.77139999999999997,77.142857142857153]
["POL","Companies <= 10","E","Operating subsidies","questionnaires","A - Census","every year",1,null,35,27,null,0.77139999999999997,77.142857142857153]
["POL","Companies <= 10","E","Subsidies on investments","questionnaires","A - Census","every year",1,null,35,27,null,0.77139999999999997,77.142857142857153]
["POL","Companies <= 10","E","Consumption of fixed capital","questionnaires","A - Census","every year",1,null,35,27,null,0.77139999999999997,77.142857142857153]
["POL","Companies <= 10","E","Total value of assets","questionnaires","A - Census","every year",1,null,35,27,null,0.77139999999999997,77.142857142857153]
["POL","Companies <= 10","E","Financial income","questionnaires","A - Census","every year",1,null,35,27,null,0.77139999999999997,77.142857142857153]
["POL","Companies <= 10","E","Financial expenditures","questionnaires","A - Census","every year",1,null,35,27,null,0.77139999999999997,77.142857142857153]
["POL","Companies <= 10","E","Net investments","questionnaires","A - Census","every year",1,null,35,27,null,0.77139999999999997,77.142857142857153]
["POL","Companies <= 10","E","Debt","questionnaires","A - Census","every year",1,null,35,27,null,0.77139999999999997,77.142857142857153]
["POL","Companies <= 10","E","Number of presons employed","questionnaires","A - Census","every year",1,null,35,27,null,0.77139999999999997,77.142857142857153]
["POL","Companies <= 10","E","FTE National","questionnaires","A - Census","every year",1,null,35,27,null,0.77139999999999997,77.142857142857153]
["POL","Companies <= 10","E","Unpaied labour","questionnaires","A - Census","every year",1,null,35,27,null,0.77139999999999997,77.142857142857153]
["POL","Companies <= 10","E","Number of hours worked by employees","questionnaires","A - Census","every year",1,null,35,27,null,0.77139999999999997,77.142857142857153]
["POL","Companies <= 10","E","No of eterprises","questionnaires","A - Census","every year",1,null,35,27,null,0.77139999999999997,77.142857142857153]
["POL","Companies <= 10","E","Weight of raw material per species and origin (optional)","questionnaires","A - Census","every year",1,null,35,27,null,0.77139999999999997,77.142857142857153]
["POL","Companies <= 10","S","Employment by gender","questionnaires","A - Census","every year",1,null,35,27,null,0.77139999999999997,77.142857142857153]
["POL","Companies <= 10","S","Employment by edge","questionnaires","A - Census","every year",1,null,35,27,null,0.77139999999999997,77.142857142857153]
["POL","Companies <= 10","S","Employment by education level","questionnaires","B - Probability Sample Survey","every 3 years starting in 2018",1,null,"NA","NA","NA","NA"]
["POL","Companies <= 10","S","Employment by nationality","questionnaires","B - Probability Sample Survey","every 3 years starting in 2018",1,null,"NA","NA","NA","NA"]
["POL","Companies <= 10","S","FTE National","questionnaires","A - Census","every year",1,null,35,27,null,0.77139999999999997,77.142857142857153]
["POL","Companies 11-49","E","Turnover","questionnaires","A - Census","every year",1,null,77,63,null,0.81820000000000004,81.818181818181813]
["POL","Companies 11-49","E","Other income","questionnaires","A - Census","every year",1,null,77,63,null,0.81820000000000004,81.818181818181813]
["POL","Companies 11-49","E","Personnel costs","questionnaires","A - Census","every year",1,null,77,63,null,0.81820000000000004,81.818181818181813]
["POL","Companies 11-49","E"," Value of unpaied labour","questionnaires","A - Census","every year",1,null,77,63,null,0.81820000000000004,81.818181818181813]
["POL","Companies 11-49","E","Energy costs","questionnaires","A - Census","every year",1,null,77,63,null,0.81820000000000004,81.818181818181813]
["POL","Companies 11-49","E","Purchase of fish and other raw material for production","questionnaires","A - Census","every year",1,null,77,63,null,0.81820000000000004,81.818181818181813]
["POL","Companies 11-49","E","Other operational costs","questionnaires","A - Census","every year",1,null,77,63,null,0.81820000000000004,81.818181818181813]
["POL","Companies 11-49","E","Operating subsidies","questionnaires","A - Census","every year",1,null,77,63,null,0.81820000000000004,81.818181818181813]
["POL","Companies 11-49","E","Subsidies on investments","questionnaires","A - Census","every year",1,null,77,63,null,0.81820000000000004,81.818181818181813]
["POL","Companies 11-49","E","Consumption of fixed capital","questionnaires","A - Census","every year",1,null,77,63,null,0.81820000000000004,81.818181818181813]
["POL","Companies 11-49","E","Total value of assets","questionnaires","A - Census","every year",1,null,77,63,null,0.81820000000000004,81.818181818181813]
["POL","Companies 11-49","E","Financial income","questionnaires","A - Census","every year",1,null,77,63,null,0.81820000000000004,81.818181818181813]
["POL","Companies 11-49","E","Financial expenditures","questionnaires","A - Census","every year",1,null,77,63,null,0.81820000000000004,81.818181818181813]
["POL","Companies 11-49","E","Net investments","questionnaires","A - Census","every year",1,null,77,63,null,0.81820000000000004,81.818181818181813]
["POL","Companies 11-49","E","Debt","questionnaires","A - Census","every year",1,null,77,63,null,0.81820000000000004,81.818181818181813]
["POL","Companies 11-49","E","Number of presons employed","questionnaires","A - Census","every year",1,null,77,63,null,0.81820000000000004,81.818181818181813]
["POL","Companies 11-49","E","FTE National","questionnaires","A - Census","every year",1,null,77,63,null,0.81820000000000004,81.818181818181813]
["POL","Companies 11-49","E","Unpaied labour","questionnaires","A - Census","every year",1,null,77,63,null,0.81820000000000004,{"$f":"K48/(J48*H48/100)","v":81.818181818181813}]
["POL","Companies 11-49","E","Number of hours worked by employees","questionnaires","A - Census","every year",1,null,77,63,null,0.81820000000000004,81.818181818181813]
["POL","Companies 11-49","E","No of eterprises","questionnaires","A - Census","every year",1,null,77,63,null,0.81820000000000004,81.818181818181813]
["POL","Companies 11-49","E","Weight of raw material per species and origin (optional)","questionnaires","A - Census","every year",1,null,77,63,null,0.81820000000000004,81.818181818181813]
["POL","Companies 11-49","S","Employment by gender","questionnaires","A - Census","every year",1,null,77,63,null,0.81820000000000004,81.818181818181813]
["POL","Companies 11-49","S","Employment by edge","questionnaires","A - Census","every year",1,null,77,63,null,0.81820000000000004,81.818181818181813]
["POL","Companies 11-49","S","Employment by education level","questionnaires","B - Probability Sample Survey","every 3 years starting in 2018",1,null,"NA","NA","NA","NA"]
["POL","Companies 11-49","S","Employment by nationality","questionnaires","B - Probability Sample Survey","every 3 years starting in 2018",1,null,"NA","NA","NA","NA"]
["POL","Companies 11-49","S","FTE National","questionnaires","A - Census","every year",1,null,77,63,null,0.81820000000000004,{"$f":"K56/(J56*H56/100)","v":81.818181818181813}]
["POL","Companies 50-250","E","Turnover","questionnaires","A - Census","every year",1,null,57,52,null,0.9123,91.228070175438603]
["POL","Companies 50-250","E","Other income","questionnaires","A - Census","every year",1,null,57,52,null,0.9123,91.228070175438603]
["POL","Companies 50-250","E","Personnel costs","questionnaires","A - Census","every year",1,null,57,52,null,0.9123,91.228070175438603]
["POL","Companies 50-250","E"," Value of unpaied labour","questionnaires","A - Census","every year",1,null,57,52,null,0.9123,91.228070175438603]
["POL","Companies 50-250","E","Energy costs","questionnaires","A - Census","every year",1,null,57,52,null,0.9123,91.228070175438603]
["POL","Companies 50-250","E","Purchase of fish and other raw material for production","questionnaires","A - Census","every year",1,null,57,52,null,0.9123,91.228070175438603]
["POL","Companies 50-250","E","Other operational costs","questionnaires","A - Census","every year",1,null,57,52,null,0.9123,91.228070175438603]
["POL","Companies 50-250","E","Operating subsidies","questionnaires","A - Census","every year",1,null,57,52,null,0.9123,91.228070175438603]
["POL","Companies 50-250","E","Subsidies on investments","questionnaires","A - Census","every year",1,null,57,52,null,0.9123,91.228070175438603]
["POL","Companies 50-250","E","Consumption of fixed capital","questionnaires","A - Census","every year",1,null,57,52,null,0.9123,91.228070175438603]
["POL","Companies 50-250","E","Total value of assets","questionnaires","A - Census","every year",1,null,57,52,null,0.9123,91.228070175438603]
["POL","Companies 50-250","E","Financial income","questionnaires","A - Census","every year",1,null,57,52,null,0.9123,91.228070175438603]
["POL","Companies 50-250","E","Financial expenditures","questionnaires","A - Census","every year",1,null,57,52,null,0.9123,91.228070175438603]
["POL","Companies 50-250","E","Net investments","questionnaires","A - Census","every year",1,null,57,52,null,0.9123,91.228070175438603]
["POL","Companies 50-250","E","Debt","questionnaires","A - Census","every year",1,null,57,52,null,0.9123,91.228070175438603]
["POL","Companies 50-250","E","Number of presons employed","questionnaires","A - Census","every year",1,null,57,52,null,0.9123,91.228070175438603]
["POL","Companies 50-250","E","FTE National","questionnaires","A - Census","every year",1,null,57,52,null,0.9123,91.228070175438603]
["POL","Companies 50-250","E","Unpaied labour","questionnaires","A - Census","every year",1,null,57,52,null,0.9123,91.228070175438603]
["POL","Companies 50-250","E","Number of hours worked by employees","questionnaires","A - Census","every year",1,null,57,52,null,0.9123,91.228070175438603]
["POL","Companies 50-250","E","No of eterprises","questionnaires","A - Census","every year",1,null,57,52,null,0.9123,{"$f":"K76/(J76*H76/100)","v":91.228070175438603}]
["POL","Companies 50-250","E","Weight of raw material per species and origin (optional)","questionnaires","A - Census","every year",1,null,57,52,null,0.9123,91.228070175438603]
["POL","Companies 50-250","S","Employment by gender","questionnaires","A - Census","every year",1,null,57,52,null,0.9123,91.228070175438603]
["POL","Companies 50-250","S","Employment by edge","questionnaires","A - Census","every year",1,null,57,52,null,0.9123,91.228070175438603]
["POL","Companies 50-250","S","Employment by education level","questionnaires","B - Probability Sample Survey","every 3 years starting in 2018",1,null,"NA","NA","NA","NA"]
["POL","Companies 50-250","S","Employment by nationality","questionnaires","B - Probability Sample Survey","every 3 years starting in 2018",1,null,"NA","NA","NA","NA"]
["POL","Companies 50-250","S","FTE National","questionnaires","A - Census","every year",1,null,57,52,null,0.9123,{"$f":"K82/(J82*H82/100)","v":91.228070175438603}]
["POL","Companies > 250 ","E","Turnover","questionnaires","A - Census","every year",1,null,12,12,null,1,100]
["POL","Companies > 250 ","E","Other income","questionnaires","A - Census","every year",1,null,12,12,null,1,100]
["POL","Companies > 250 ","E","Personnel costs","questionnaires","A - Census","every year",1,null,12,12,null,1,100]
["POL","Companies > 250 ","E"," Value of unpaied labour","questionnaires","A - Census","every year",1,null,12,12,null,1,100]
["POL","Companies > 250 ","E","Energy costs","questionnaires","A - Census","every year",1,null,12,12,null,1,100]
["POL","Companies > 250 ","E","Purchase of fish and other raw material for production","questionnaires","A - Census","every year",1,null,12,12,null,1,100]
["POL","Companies > 250 ","E","Other operational costs","questionnaires","A - Census","every year",1,null,12,12,null,1,100]
["POL","Companies > 250 ","E","Operating subsidies","questionnaires","A - Census","every year",1,null,12,12,null,1,100]
["POL","Companies > 250 ","E","Subsidies on investments","questionnaires","A - Census","every year",1,null,12,12,null,1,100]
["POL","Companies > 250 ","E","Consumption of fixed capital","questionnaires","A - Census","every year",1,null,12,12,null,1,100]
["POL","Companies > 250 ","E","Total value of assets","questionnaires","A - Census","every year",1,null,12,12,null,1,100]
["POL","Companies > 250 ","E","Financial income","questionnaires","A - Census","every year",1,null,12,12,null,1,100]
["POL","Companies > 250 ","E","Financial expenditures","questionnaires","A - Census","every year",1,null,12,12,null,1,100]
["POL","Companies > 250 ","E","Net investments","questionnaires","A - Census","every year",1,null,12,12,null,1,100]
["POL","Companies > 250 ","E","Debt","questionnaires","A - Census","every year",1,null,12,12,null,1,100]
["POL","Companies > 250 ","E","Number of presons employed","questionnaires","A - Census","every year",1,null,12,12,null,1,100]
["POL","Companies > 250 ","E","FTE National","questionnaires","A - Census","every year",1,null,12,12,null,1,100]
["POL","Companies > 250 ","E","Unpaied labour","questionnaires","A - Census","every year",1,null,12,12,null,1,100]
["POL","Companies > 250 ","E","Number of hours worked by employees","questionnaires","A - Census","every year",1,null,12,12,null,1,100]
["POL","Companies > 250 ","E","No of eterprises","questionnaires","A - Census","every year",1,null,12,12,null,1,100]
["POL","Companies > 250 ","E","Weight of raw material per species and origin (optional)","questionnaires","A - Census","every year",1,null,12,12,null,1,100]
["POL","Companies > 250 ","S","Employment by gender","questionnaires","A - Census","every year",1,null,12,12,null,1,100]
["POL","Companies > 250 ","S","Employment by edge","questionnaires","A - Census","every year",1,null,12,12,null,1,100]
["POL","Companies > 250 ","S","Employment by education level","questionnaires","B - Probability Sample Survey","every 3 years starting in 2018",1,null,"NA","NA","NA","NA"]
["POL","Companies > 250 ","S","Employment by nationality","questionnaires","B - Probability Sample Survey","every 3 years starting in 2018",1,null,"NA","NA","NA","NA"]

{"sheet":"Table4A Sampling plan descripti","index":12,"n_rows":25,"n_cols":25,"rows_kept":25,"cut":false,"hidden":false,"merged":[[14,14,15,14],[18,14,19,14],[3,15,3,17],[3,18,3,24],[5,14,6,14],[7,14,8,14],[9,14,10,14],[12,14,13,14]]}
["Table 4A: Sampling plan description for biological data"]
[null,null,null,null,null,null,null,null,null,null,null,null,null,null,null,null,null,null,null,null,null,null,null,"WP  years","2017-2019"]
[null,null,null,null,null,null,null,null,null,null,null,null,null,null,null,null,null,null,null,null,null,null,null,"AR year",2017]
[null,null,null,null,null,null,null,null,null,null,null,null,null,null,null,"Conformity",null,null,"Informative Data"]
["MS","MS participating in sampling","Region","RFMO/RFO/IO","Sub-area / Fishing ground","Scheme","Stratum ID code","PSU type","Catch fractions covered","Species/ Stocks covered for estimation of volume and length of catch fractions","Seasonality (Temporal strata)","Reference years","Average Number of PSU during the reference years         ","Planned number of PSUs","Comments","Total number of PSU in the sampling year","Achieved number of PSU in the sampling year","% of achievement (100*Q/N)","Number of unique vessels with activity in the stratum","Number of unique vessels sampled ","Number of fishing trips in the stratum","Number of fishing trips sampled ","Number of species with length measurements","Total number of length measurements","AR Comments "]
["POL","POL","Baltic","ICES","22-24","Demersal at sea and on shore","POL DCT1","vessel trip","landings + discards","all species and stocks","quarterly","2013-2015",93,4,"coverage  85%",152,5,125,23,5,118,5,7,3800]
["POL","POL","Baltic","ICES","22-24","Demersal at sea and on shore","POL GNSC1","vessel trip","landings + discards","all species and stocks","quarterly","2013-2015",480,6,null,247,1,16.666666666666668,27,1,184,1,3,85]
["POL","POL","Baltic","ICES","25-32","Demersal at sea and on shore","POL DCT2","vessel trip","landings + discards","all species and stocks","quarterly","2013-2015",3100,21,"coverage  71%",1836,13,61.904761904761905,100,7,1750,13,7,5592]
["POL","POL","Baltic","ICES","25-32","Demersal at sea and on shore","POL GNSC2","vessel trip","landings + discards","all species and stocks","quarterly","2013-2015",8891,14,null,5589,5,35.714285714285715,176,3,3935,5,4,1100]
["POL","POL","Baltic","ICES","22-32","Demersal at sea and on shore","POL DTF","vessel trip","landings + discards","all species and stocks","quarterly","2013-2015",1374,26,"coverage  82%",1224,6,23.076923076923077,62,3,1001,6,5,2376]
["POL","POL","Baltic","ICES","22-32","Demersal at sea and on shore","POL GNSF","vessel trip","landings + discards","all species and stocks","quarterly","2013-2015",7997,9,null,9020,9,100,238,8,6713,9,8,1292]
["POL","POL","Baltic","ICES","22-32","Pelagic at sea and on shore","POL PST","vessel trip","landings + discards","all species and stocks","quarterly","2013-2015",2546,34,"coverage  97%",2675,33,97.058823529411768,85,15,2483,33,11,14183]
["POL","POL","Baltic","ICES","22-24","Pelagic at sea and on shore","POL PHT1","vessel trip","landings + discards","all species and stocks","quarterly","2013-2015",60,9,"coverage  81%",91,5,55.555555555555557,13,4,72,5,6,4205]
["POL","POL","Baltic","ICES","22-24","Pelagic at sea and on shore","POL BH1","vessel trip","landings + discards","all species and stocks","quarterly","2013-2015",189,3,null,235,6,200,16,2,226,6,2,1177,"3 x  trip  HER FPO included"]
["POL","POL","Baltic","ICES","25-32","Pelagic at sea and on shore","POL PHT2","vessel trip","landings + discards","all species and stocks","quarterly","2013-2015",1166,25,"coverage  61%",2344,22,88,80,11,2175,22,10,15262]
["POL","POL","Baltic","ICES","25-32","Pelagic at sea and on shore","POL BH2","vessel trip","landings + discards","all species and stocks","quarterly","2013-2015",630,5,null,2366,3,60,51,2,732,3,2,582,"2 x  trip  HER FPO included"]
["POL","POL","Baltic","ICES","22-24","Freshwater and eel at sea and on shore","POL BFWS1","vessel trip","landings + discards","all species and stocks","annual ","2013-2015",3800,14,"coverage  70%",3926,9,64.285714285714292,87,6,3526,9,17,2643,"2 x trip FBM FPO included"]
["POL","POL","Baltic","ICES","25-32","Freshwater and eel at sea and on shore","POL BFWS2","vessel trip","landings + discards","all species and stocks","annual ","2013-2015",2836,14,"coverage  77%",3429,14,100,169,11,2867,14,16,2280]
["POL","POL","Baltic","ICES","22-32","Salmonids at sea and on shore","POL GNSSAL","vessel trip","landings + discards","all species and stocks","annual ","2013-2015",1777,14,"coverage  67%",2093,10,71.428571428571431,91,1,1365,10,1,15]
["POL","POL","Baltic","ICES","22-32","Salmonids at sea and on shore","POL LLDSAL","vessel trip","landings + discards","all species and stocks","annual ","2013-2015",314,10,null,543,8,80,35,4,352,8,4,622]
["POL","POL","North Sea and Eastern Arctic","ICES","I, II","at sea","LDF1","vessel trip","landings + discards","all species and stocks","annual ","2013-2015",5,1,"coverage 100%",4,1,100,2,1,4,1,20,13386]
["POL","DEU - LTU -LVA - NLD - POL","other regions","CECAF","34.1.3; 34.3.1","at sea","LDF2","vessel trip","landings + discards","all species and stocks","annual ","2013-2015",9,"NA","Multilateral agreement on joint sampling programme -",7,0,null,1,0,7,0,0,0,"Joint sampling programme coordinated by NLD - see Table 7C"]
["POL","DEU - LTU - NLD - POL","other regions","SPRFMO","SPRFMO Convention Area","at sea","LDF3","vessel trip","landings + discards","all species and stocks","annual ","2013-2015",0,"NA","Multilateral agreement on joint sampling programme",10,3,null,2,1,10,3,9,14575,"Not planned in WP. However, from 2017 POL is coordinating joint sampling programme (see Table 7C). Sampling programme set in line with the SPRFMO Data Standards (CMM 02-2017). Scientific observer coverage of 10% of trips of the EU vessels meets the requirements of the SPRFMO Conservation and Managemnt Measure for Trachurus murphyi (CMM 01-2017)."]
["POL","POL","Baltic","ICES","22-32","Demersal at sea and on shore","POL SAN","vessel trip","landings + discards","all species and stocks","quarterly","2013-2015",0,0,null,22,1,null,6,1,22,1,3,1443,"New row - Sandeel fishery was not selected as a sampling frame in the WP, but one trip was sampled  in order to have some picture of this fishery"]
["POL","POL","Baltic","ICES","25-23","Demersal at sea and on shore","POL COD LLS","vessel trip","landings + discards","all species and stocks","quarterly","2013-2015",799,0,null,601,1,null,64,1,601,1,1,95,"New row - Cod fishery using set longlines was not selected as a sampling frame in the WP, but one trip was sampled  in order to have some picture of this fishery"]

{"sheet":"Table4B Sampling frame descrip","index":13,"n_rows":22,"n_cols":6,"rows_kept":22,"cut":false,"hidden":false,"merged":[]}
["Table 4B: Sampling frame description for biological data"]
[null,null,null,null,"WP  years","2017-2019"]
[null,null,null,null,"AR year",2017]
["MS","Stratum ID number","Stratum","Sampling frame description ","Method of PSU selection ","Comments"]
["POL","POL DCT1","Baltic demersal trawlers targeting western cod","Vessel list of 48  DTS landing cod in 3 ranked ports","random draw  "]
["POL","POL GNSC1","Balctic  gillnetters targeting western cod","Vessel list of 57  GNTS landing cod in 5 ranked ports","random draw "]
["POL","POL DCT2","Baltic demersal trawlers targeting eastern cod","Vessel list of 154  DTS landing cod in 6 ranked ports","random draw "]
["POL","POL GNSC2","Balctic  gillnetters targeting eastern cod","Vessel list of 251  GNTS landing cod in 12 ranked ports","random draw "]
["POL","POL DTF","Baltic demersal trawlers targeting flatfish","Vessel list of 101 DTS landing flatfish in 5 ranked ports","random draw "]
["POL","POL GNSF","Balctic  gillnetters targeting flatfish","Vessel list of 361  GNTS landing cod in 23 ranked ports","random draw "]
["POL","POL PST","Baltic sprat trawlers","Vessel list of 121  PTS landing sprat in 6 ranked ports","random draw "]
["POL","POL PHT1","Batlic  herring trawlers of SD 22-24","Vessel list of 15  PTS landing herring in 1 ranked port","random draw "]
["POL","POL BH1","Batlic onshore boats targeting herring of SD 22-24","Vessel list of 18  boats landing herring in 3 ranked port","random draw "]
["POL","POL PHT2","Batlic  herring trawlers of SD 25-32","Vessel list of 100  PTS landing herring in 4 ranked port","random draw "]
["POL","POL BH2","Batlic onshore boats targeting herring of SD 25-32","Vessel list of 90  boats landing herring in 14 ranked port","random draw "]
["POL","POL BFWS1","Baltic boats targeting freshwater species of SD 22-24","Vessel list of 94  boats landing freshwater species and eel in 8 ranked port","random draw "]
["POL","POL BFWS2","Baltic boats targeting freshwater species of SD 25-32","Vessel list of 239  boats landing freshwater species and eel in 20 ranked port","random draw "]
["POL","POL GNSSAL","Baltic onshore boats targeting salmonids","Vessel list of 165  boats landing salmonids species  in 10 ranked port","random draw "]
["POL","POL LLDSAL","Baltic offshore longliners targeting salmon","Vessel list of 51  longliners landing salmon  in 4 ranked port","random draw "]
["POL","LDF1","Freezer trawler targetting cod in NS&EA","1 trawler targeting cod","NA","NS&EA - one vessel only - no selection needed"]
["POL","LDF2","Pelagic trawlers fishing in CECAF","Pelagic trawlers fishing in CECAF","NA","Multilateral agreement on joint sampling programme"]
["POL","LDF3","Pelagic trawlers fishing in SPRFMO","Pelagic trawlers fishing in SPRFMO","NA","Multilateral agreement on joint sampling programme"]

{"sheet":"Table4C Data on the fisheries","index":14,"n_rows":22,"n_cols":22,"rows_kept":22,"cut":false,"hidden":false,"merged":[[4,13,18,13]]}
["Table 4C: Data on the fisheries by member state"]
[null,null,null,null,null,null,null,null,null,null,null,null,null,null,null,null,null,null,null,null,"WP  years","2017-2019"]
[null,null,null,null,null,null,null,null,null,null,null,null,null,null,null,null,null,null,null,null,"AR year",2017]
["MS","Region","RFMO/RFO/IO","Sub-area / Fishing ground","Reference years","Fleet segment / Metier","Targeted species / species assemblage","Average number of vessels","Average number of fishing trips ","Average number of fishing days ","Average landings (tons) ","Average landings (tons) in national ports","Average landings (tons) in foreign ports","Comments","Number of vessels","Number of fishing trips","Number of fishing days","Is the fleet segment/ metier covered by any stratum (Y/N)","Landings (tons)","Landings (tons) in national ports","Landings (tons) in foreign ports","AR  Comments"]
["POL","Baltic Sea","ICES","SD 22-24","2013-2015","demersal trawlers","cod",34,101,235,{"$f":"L5+M5","v":323.07010000000002},320.27143333333333,2.7986666666666666,"Table 4C was filled in by metier and the sum of vessels of all metiers is higher than the total number of registered Polish fishing vessels. This is because many vessels use more than one gear type / metier. Moreover, the sampling scheme is stock based and as the fishing vessels can target more than one stock within one metier same vessels are included in many groups.\n",31,152,298,"Y",{"$f":"T5+U5","v":535.82470000000001},532.27869999999996,3.5459999999999998]
["POL","Baltic Sea","ICES","SD 25-32","2013-2015","demersal trawlers","cod",148,3310,5646,{"$f":"L6+M6","v":8033.24334},8030.65434,2.589,null,110,1836,2962,"Y",{"$f":"T6+U6","v":4826.9160000000002},4826.2160000000003,0.7]
["POL","Baltic Sea","ICES","SD 22-24","2013-2015","gillnetters","cod",51,574,756,361.65683333333328,360.8868333333333,0.77,null,42,247,465,"Y",278.42619999999999,278.42619999999999,0]
["POL","Baltic Sea","ICES","SD 25-32","2013-2015","gillnetters","cod",349,12972,14050,3074.1567333333328,3074.1567333333328,0,null,282,5589,5965,"Y",1266.9059999999999,1266.636,0.27]
["POL","Baltic Sea","ICES","SD 22-32","2013-2015","demersal trawlers","flounder, plaice, turbot",125,1586,3253,8934.1191466666678,8929.136480000001,4.9826666666666668,null,94,1224,2454,"Y",7864.4030000000002,7826.5510000000004,37.851999999999997]
["POL","Baltic Sea","ICES","SD 22-32","2013-2015","gillnetters","flounder, plaice, turbot",370,10115,10318,2841.3853899999999,2841.3480566666667,3.7333333333333336E-2,null,339,9020,9190,"Y",2927.9479999999999,2927.348,0.6]
["POL","Baltic Sea","ICES","SD 22-32","2013-2015","pelagic trawlers","sprat",99,2617,3555,63152.515416666669,42908.730083333336,20243.785333333333,null,94,2675,3406,"Y",72424.850000000006,49057.93,23366.92]
["POL","Baltic Sea","ICES","SD 22-24","2013-2015","pelagic trawlers","herring",15,66,133,1922.009,1808.9173333333333,113.09166666666667,null,18,91,169,"Y",2002.9580000000001,1912.7080000000001,90.25]
["POL","Baltic Sea","ICES","SD 25-32","2013-2015","pelagic trawlers","herring",82,1222,1950,21161.969416666667,19309.84275,1852.1266666666668,null,96,2344,3550,"Y",33540.980000000003,30444.880000000001,3096.1]
["POL","Baltic Sea","ICES","SD 22-24","2013-2015","gillnetters","herring",19,193,139,355.15300000000002,355.15300000000002,0,null,20,235,235,"Y",387.66,387.66,0]
["POL","Baltic Sea","ICES","SD 25-32","2013-2015","gillnetters","herring",168,2015,2016,1128.79105,1128.7410500000001,0.05,null,227,2366,2367,"Y",1136.0319999999999,1136.0319999999999,0]
["POL","Baltic Sea","ICES","SD 22-24","2013-2015","passive gears","perch, pike-perch",130,4323,4323,840.94827999999995,840.94827999999995,0,null,124,3926,3926,"Y",802.20640000000003,802.20640000000003,0]
["POL","Baltic Sea","ICES","SD 25-32","2013-2015","passive gears","perch, pike-perch",225,3210,3210,216.5909833333333,216.5909833333333,0,null,219,3429,3430,"Y",210.625,210.625,0]
["POL","Baltic Sea","ICES","SD 22-32","2013-2015","gillnetters","salmon, sea trout",176,2148,2160,78.306766666666661,78.306766666666661,0,null,195,2093,2144,"Y",89.037900000000008,88.965900000000005,7.1999999999999995E-2]
["POL","Baltic Sea","ICES","SD 22-32","2013-2015","longliners","salmon, sea trout",45,335,541,44.050650000000005,44.050650000000005,0,null,64,543,997,"Y",102.577,102.577,0]
["POL","North Sea and Eastern Arctic","ICES","I, II","2013-2015","demersal trawlers","cod",1,5,176,5700.0640000000003,0,5700.0640000000003,null,2,4,158,"Y",3962.5630000000001,0,3962.5630000000001]
["POL","other regions","CECAF","34.1.3; 34.3.1","2013-2015","pelagic trawlers","pelagic species",2,9,324,26189,0,26189,null,1,7,150,"Y",12531.12,0,12531.12]
["POL","other regions","SPRFMO","SPRFMO Convention Area","2013-2015","pelagic trawlers","pelagic species",0,0,0,0,0,0,null,0,0,0,"Y",0,0,0]

{"sheet":"Table4D Landing locations","index":15,"n_rows":10,"n_cols":11,"rows_kept":10,"cut":false,"hidden":false,"merged":[]}
["Table 4D: Landing locations"]
[null,null,null,null,null,null,null,null,null,"WP  years","2017-2019"]
[null,null,null,null,null,null,null,null,null,"AR year",2017]
["MS","Region","Sub-area / Fishing ground","Reference years","Landing locations(s)","Average number of locations","Average number of registered landings ","Average landed tonnage ","Average landed tonnage of national fleet","Average landed tonnage of foreign fleet","Comments"]
["POL","Baltic Sea (ICES areas III b-d)","27.3.d","2013-2015","Major ports",9,25371.666666666668,{"$f":"I5+J5","v":99943.104333333322},96262.391086666656,3680.7132466666662]
["POL","Baltic Sea (ICES areas III b-d)","27.3.d","2013-2015","Other ports SD 24",6,2886.6666666666665,913.17326666666656,913.17326666666656,0]
["POL","Baltic Sea (ICES areas III b-d)","27.3.d","2013-2015","Other ports SD 25",11,5208.666666666667,1962.7799533333334,1962.7799533333334,0]
["POL","Baltic Sea (ICES areas III b-d)","27.3.d","2013-2015","Other ports SD 26",27,13542.666666666666,1624.1161100000004,1624.1161100000004,0]
["POL","Baltic Sea (ICES areas III b-d)","27.3.d","2013-2015","Szczecin Lagoon ports",6,6112.333333333333,1561.2856333333332,1561.2856333333332,0]
["POL","Baltic Sea (ICES areas III b-d)","27.3.d","2013-2015","Vistula Lagoon ports",8,6508.333333333333,2746.3168999999998,2746.3168999999998,0]

{"sheet":"Table5A Quality assurance frame","index":16,"n_rows":10,"n_cols":20,"rows_kept":10,"cut":false,"hidden":false,"merged":[[3,0,3,6],[3,7,3,8],[3,10,3,11],[3,12,3,13],[3,14,3,17]]}
["Table 5A: Quality assurance framework for biological data"]
[null,null,null,null,null,null,null,null,null,null,null,null,null,null,null,null,null,null,"WP  years","2017-2019"]
[null,null,null,null,null,null,null,null,null,null,null,null,null,null,null,null,null,null,"AR year",2017]
[null,null,null,null,null,null,null,"Sampling design",null,"Sampling implementation","Data capture",null,"Data Storage",null,"Data processing"]
["MS","MS participating in sampling","Sampling year/ period ","Region","RFMO/RFO/IO","Name of sampling scheme","Sampling frame ","Is the sampling design documented?","Where can documentation on sampling design be found? ","Are non-responses and refusals recorded?","Are quality checks to validate detailed data documented?","Where can documentation on quality checks for data capture be found?","In which national database are data stored?","In which international database(s) are data stored?","Are processes to evaluate data accuracy (bias and precision) documented?","Where can documentation on processes to evaluate accuracy be found? ","Are the editing and imputation methods documented?","Where can documentation on editing and imputation be found? ","Comments ","AR Comments"]
["POL","POL",2017,"Baltic","ICES","all schemes","all frames","Y","Polish Work Plan for data collection in the fisheries and aquaculture sectors 2017 - 2019","Y","Y","Coded in the national DCF database and application; Included in the Data Quality Check software - accessible only via intranet; R and SQL scripts stored in the Insitute's repository","NPZDRpl","RDB-FishFrame, Intercatch, JRC","Y","Included in the Data Accuracy Check application - accessible only via intranet","N","NA","Software for data quality and accuracy checks is still under development ","Imputation is not performed at national level but at Stock Data Coordination level. Data are provided to end user \"as-is\" (as collected,validated and recorded in national database)."]
["POL","POL",2017,"Baltic","ICES","At sea cod recreational fishery","Angling with LHP on boats","Y","ICES WGRFS Report 2014;  Poland_Annual_Report_2015_Text__31-May_2016  (http://dcf.mir.gdynia.pl/?page_id=363)","Y","Y","Coded in the national DCF database and application; Included in the Data Quality Check software - accessible only via intranet","NPZDRpl","NA","N","NA","N","NA","Software for data quality and accuracy checks is still under development ","Imputation is not performed at national level. Data delivered to the ICS WGRFS.  See Text Box 1D for comments"]
["POL","POL",2017,"North Sea and Eastern Arctic","ICES","at sea","1 trawler targeting cod","Y","http://dcf.mir.gdynia.pl/wp-content/uploads/2015/07/Poland_NP-Proposal_2011-2013_Text_Amended-for-2012.pdf","N","Y","Coded in the national DCF database and application; Included in the Data Quality Check software - accessible only via intranet; R and SQL scripts stored in the Insitute's repository","NPZDRpl","RDB-FishFrame, Intercatch, JRC","Y","Included in the Data Accuracy Check application - accessible only via intranet","N","NA","Software for data quality and accuracy checks is still under development ","Non-responses and refusal are not applicable (one vessel involved). Imputation is not performed at national level but at Stock Data Coordination level. Data are provided to end user \"as-is\" (as collected,validated and recorded in national database)."]
["POL","POL",2017,"other regions","CECAF","at sea","Pelagic trawlers fishing in CECAF","Y","http://dcf.mir.gdynia.pl/wp-content/uploads/2016/10/Sampling-Protocol_Pelagic_DCF_in_Cecaf_version-31-5-2011.pdf","NA","NA","Coded in the national DCF database and application; Included in the Data Quality Check software - accessible only via intranet; R and SQL scripts stored in the Insitute's repository","NA","NA","NA","NA","NA","NA",null,"Data collection and provision coordinated by NLD under joint sampling programme (see Table 7C)"]
["POL","POL",2017,"other regions","SPRFMO","at sea","Pelagic trawlers fishing in SPRFMO","Y","http://dcf.mir.gdynia.pl/wp-content/uploads/2016/10/CMR-2015-01-Observer-manual-Pacific-v6.pdf","N","Y","Coded in the national DCF database and application; Included in the Data Quality Check software - accessible only via intranet; R and SQL scripts stored in the Insitute's repository","Temporary database in Excel","Internal SPRFMO database","Y","Included in the Data Accuracy Check application - accessible only via intranet","N","NA","Software for data quality and accuracy checks is still under development ","Non-responses and refusal are not applicable for the SPRMFO area. Imputation is not performed at national level. Data delivered to the SPRFMO Secretariat and Scientific Committee. National database during modification to enable storage of data from SPRFMO."]

{"sheet":"Table5B Quality assurance frame","index":17,"n_rows":8,"n_cols":33,"rows_kept":8,"cut":false,"hidden":false,"merged":[[6,31,7,31],[3,0,4,6],[3,7,3,11],[3,12,3,21],[3,22,3,30],[4,7,4,8],[4,9,4,11],[4,12,4,14],[6,30,7,30],[4,32,5,32],[4,15,4,19],[4,23,4,24],[4,26,4,27],[4,28,4,30],[4,31,5,31]]}
["Table 5B: Quality assurance framework for socio-economic data"]
[null,null,null,null,null,null,null,null,null,null,null,null,null,null,null,null,null,null,null,null,null,null,null,null,null,null,null,null,null,null,null,"WP  years","2017-2019"]
[null,null,null,null,null,null,null,null,null,null,null,null,null,null,null,null,null,null,null,null,null,null,null,null,null,null,null,null,null,null,null,"AR year",2017]
[null,null,null,null,null,null,null,"Institutional environment",null,null,null,null,"Statistical processes",null,null,null,null,null,null,null,null,null,"Statistical Outputs"]
[null,null,null,null,null,null,null,"P3 Impartiality and objectiveness",null,"P4 Confidentiality",null,null,"P5 Sound methodology",null,null,"P6 Appropriate statistical procedures",null,null,null,null,"P7 Non-excessive burden on respondents","P8 Cost effectiveness","P9 Relevance","P10 Accuracy and reliability",null,"P11 Timeliness and punctuality","P12 coherence and comparability",null,"P13 Accessibility and Clarity",null,null,"Comments","AR Comments"]
["MS","Sector Name","Sampling year/ period","Region","RFMO/RFO/IO/NSB","Type of data collection scheme","Data Sources","Statistically sound sources and methods","Error checking","Are procedures for confidential data handling in place and documented?","Are protocols to enforce confidentiality between DCF partners in place and documented?","Are protocols to enforce confidentiality with external users in place and documented?","Is sound methodology documented ?","Does it follow international standards, guidelines and best practices?","Are methodologies consistent at MS, regional and EU level?","Is there consistency between administrative and other statistical data?","Are there agreements for access and quality of administrative data between partners?","Are data collection, entry and coding checked?","Are editing and imputation methods used and checked?","Are revisions documented and available?","Is duplication of data collection avoided?","Do automatic techniques for data capture, data coding and validation exist?","Are end-users listed and updated?","Are sources, intermediate results and outputs regularly assessed and validated?","Are errors measured and documented? ","Are procedures in place to ensure timely execution?","Are procedures in place to monitor internal coherence?","Are statistics comparable over time?","Are methodological documents publicly available?","Are data stored in databases?","Where can documentation be found? "]
["POL","Fishing","2017-2019","All regions","Institutions dealing with socioeconomic statistics","Census, estimation","questionairres, logbooks, first sale documents, Fleet register","Y","Y","Y","Y","Y","Y","Y","Y","Y","Y","Y","Y","Y","Y","Y","Y","Y","Y","Y","Y","Y","Y","Y","National law on public statistics and statistical surveys (http://isap.sejm.gov.pl/isap.nsf/download.xsp/WDU20160001426/O/D20161426.pdf);  National regulation on the formats of reporting and statistical questionairres and rules of reporting data (http://prawo.sejm.gov.pl/isap.nsf/DocDetails.xsp?id=WDU20170000837);   National formats and rules on reporting catch, landings, effort (http://www.cmr.gov.pl/index.html#header3-4)"]
["POL","Processing","2017-2019","All regions","Institutions dealing with socioeconomic statistics","Census, estimation","questionairres","Y","Y","Y","NA","Y","Y","Y","Y","Y","NA","Y","Y","Y","Y","Y","Y","Y","Y","Y","Y","Y","Y","Y"]

{"sheet":"Table6A_Data_availability","index":18,"n_rows":9,"n_cols":10,"rows_kept":9,"cut":false,"hidden":false,"merged":[]}
["Table 6A: Data availability"]
[null,null,null,null,null,null,null,null,"WP  years","2017-2019"]
[null,null,null,null,null,null,null,null,"AR year",2017]
["MS","Data set","Section","Variable group","Year(s) of WP implementation","Reference year ","Final data available after","Comments","Date when data was available","AR Comments"]
["POL","Fleet economic","3A","Revenue/costs","2017-2019","N-1","N+1, November 30",null,"February 15, 2018"]
["POL","Aquaculture economic",null,null,null,null,null,"Based on the data until 2015, according to  classification of aquaculture activities by Eurostat statistics, Poland has no marine aquaculture sector. Hence, no sampling is planned","NA"]
["POL","Fishing Activity Variable","3A","capacity","2017-2019","N","N+1, January 31",null,"February 15, 2018"]
["POL","Fishing Activity Variable","3A","landings","2017-2019","N","N+1, March 31",null,"February 15, 2018"]
["POL","Fish processing economic","3C","all","2017-2019","N-1","N+1, November 30",null,"February 15, 2018"]

{"sheet":"Table7A_Planned Regional_coord","index":19,"n_rows":34,"n_cols":8,"rows_kept":34,"cut":false,"hidden":false,"merged":[]}
["Table 7A: Planned regional and international coordination"]
[null,null,null,null,null,null,"WP  years","2017-2019"]
[null,null,null,null,null,null,"AR year",2017]
["MS","Acronym","Name of meeting","RFMO/RFO/IO","Planned MS participation","Comments","Number of participants","AR Comments"]
["POL","RCM Baltic","Regional Coordination Meeting for the Baltic Sea",null,"X",null,4]
["POL","RCM NS&EA","Regional Coordination Meeting for the North Sea and Eastern Arctic",null,"X",null,1]
["POL","RCM LDF","Regional Coordination Meeting for the Long Distance Fisheries",null,"X",null,1,"two meetings in 2017"]
["POL","EGFDC","Expert Group on Fisheries Data Collection",null,"X",null,1]
["POL","PGECON","Planning Group on Economic Issues ",null,"X",null,1]
["POL","PGDATA","Planning Group on Data Needs for Assessment and Advice","ICES","X",null,0,"Not attended due to the experienced staff shortage at the time of the meeting."]
["POL","WGBIOP","Working Group on Biological Parameters ","ICES","X",null,1]
["POL","WGEEL","Working Group on Eel","ICES","X",null,2]
["POL","WGBAST","Working Group on Baltic Salmon and Trout","ICES","X",null,4]
["POL","WGRFS","Working Group on Recreational Fisheries Surveys","ICES","X",null,2]
["POL","WGCATCH","Working Group on Commercial Catches","ICES","X",null,2]
["POL","WGBIFS","Working Group on Baltic International Fish Survey ","ICES","X",null,3]
["POL","WGBFAS","Baltic Fisheries Assessment Working Group","ICES","X",null,4]
["POL","WGCHAIRS","Annual Meeting of Advisory Working Groups Chairs","ICES","X",null,1]
["POL","WGBYC","Working Group on Bycatch of Protected Species","ICES","X",null,1]
["POL","WGBIOP","Working Group on Biological Parameters ","ICES","X",null,1]
["POL","WGSFD","Working Group on Spatial Fisheries Data ","ICES","X",null,0,"Not planned in 2017 due to shortage of the experienced staff  at the time of the meeting, but required data delivered to the WG."]
["POL","DIG","Data and Information Group","ICES","X",null,0,"Not planned in 2017 due to shortage of the experienced staff  at the time of the meeting - participating through e-mail contacts."]
["POL","WKRDB","Workshop on Regional Data Base","ICES","X",null,1,"No Workshop in 2017. Participation in RDB Steering Committee meeting instead."]
["POL","WKBaltSalmon","Baltic salmon Benchmark WKBaltSalmon","ICES","X",null,2]
["POL","WKEELDATA","Working Group on Eel Data","ICES",null,null,1,"Not listed in WP"]
["POL","WGZE","ICES Working Group on Zooplankton Ecology","ICES",null,null,1,"Not listed in WP"]
["POL","WGOH","ICES Working Group on Oceanic Hydrography","ICES",null,null,1,"Not listed in WP"]
["POL","WGTRUTTA","ICES Working Group with the Aim to Develop Assessment Models and Establish Biological Reference Points for Sea Trout (Anadromous Salmo trutta) Populations","ICES",null,null,2,"Not listed in WP"]
["POL","PGECON Worshop","Workshop - Pilot on reporting economic data using activity thresholds",null,null,null,2,"Not listed in WP"]
["POL","WKPELA","Benchmark Workshop on Pelagic Stocks","ICES",null,null,1,"Not listed in WP"]
["POL","WKBEBCA ","Workshop on Biological Input to Eastern Baltic Cod Assessment","ICES",null,null,1,"Not listed in WP"]
["POL",null,"Training Workshop on sampling intensity - use of tool developed by MARE/2014/19 project (follow up of recommendation of the RCM Med&BS)",null,null,null,2,"Not listed in WP"]
["POL",null,"ICES training on VMS and logbook data","ICES",null,null,1,"Not listed in WP"]
["POL",null,"ICES training - Introduction to the R environment","ICES",null,null,2,"Not listed in WP"]

{"sheet":"Table7B_Follow up of Recommenda","index":20,"n_rows":17,"n_cols":11,"rows_kept":17,"cut":false,"hidden":false,"merged":[]}
["Table 7B: Follow-up of recommendations and agreements"]
[null,null,null,null,null,null,null,null,null,"WP  years","2017-2019"]
[null,null,null,null,null,null,null,null,null,"AR year",2017]
["MS","Region","RFMO/RFO/IO","Source","Section ","Topic","Recommendation number","Recommendation/ Agreement","Follow-up action","Comments","MS action taken "]
["POL","Baltic Sea","ICES","LM 2012","VII.C","Metier related variables","RCM Baltic 2012 ","MS should upload all landing data into the Regional Data Base allow-ing the RCM to analyse the possible needs for bilateral agreements.\nThe RCMs should each year perform an analysis on landings in for-eign countries and conclude where bilateral agreements need to be made. MS should set up agreements, fixing the details of sampling, compilation and submission of data in each case when it is indicated by the RCM that a bilateral agreement is needed. To include the agreed analysis in FishFrame would be very convenient and time saving.\nMS should set up agreements, fixing the details of sampling, compi-lation and submission of data in each case it is concluded by the RCM that a bilateral agreement is needed.\n","Poland follows the recommendation.\nBilateral agreements were set in 2011 with Sweden and in 2013 with Denmark.\n",null,"Fulfilled. No action needed"]
["POL","Baltic Sea","ICES","LM 2012","IV","Metier related variables","RCM Baltic 2012 ","To ensure possibilities for adequate sampling of biological and métier related data including landings in foreign MS, national institutes need to have online access to national logbook data and national VMS data.","Fulfilled",null,"No action needed"]
["POL","Other regions","CECAF","RCM LDF 2011","VII.C","Sampling programme","RCM LDF 2011","To implement a joint observer program in the fishery of small pelagic in the CECAF area during the years 2012 and 2013.","Fulfilled",null,"Obsolete - No action needed"]
["POL","Other regions","SPRFMO","RCM LDF 2013","VII.C","Sampling programme","RCM LDF 2013","To renew a joint observer program in the pelagic trawl fishery for small pelagic species in the CECAF area for another two years period.","Fulfilled – Amendment extending the joint sampling program for 2014-2015 was signed",null,"New Amendments were signed in 2015 and 2016 extending the joint sampling program in CECAF area for years 2016 and 2017 respectively.  (http://dcf.mir.gdynia.pl/?page_id=365)"]
["POL","Other regions","SPRFMO","RCM LDF 2013","VII.C","Sampling programme","RCM LDF 2013","To implementation of the multilateral agreement on a joint sampling program of fisheries activity in the SPRMFO area","Fulfilled – Agreement signed in 2015",null,"A new Agreement was sign to implement the joint sampling program in SPRFMO area for 2017 and 2018. (http://dcf.mir.gdynia.pl/?page_id=365)"]
["POL","All regions (all RCMs)",null,"LM 2013","V ","Quality assurance","LM 12","MS to document Quality Control and Quality Approach procedures in summary for review at the next RCM. ","Fulfilled",null,"Obsolete - No action needed"]
["POL","All regions",null,"LM 2014","V ","Implications of the landing obligation ‑ Scientific data collection and at‑sea sampling","LM 2","RCM NS&EA recommends that MS maintain scientific schemes for the collection of scientific data for stock assessment and advice. Additionally that the role of scientific observer is not conflated with any monitoring role. Appropriate modifications to at‑sea sampling protocols and recording should be devised for sampling the retained discard fraction.","Partly fulfilled","At‑sea sampling schemes and protocols in place. Recording, storage and estimation process in national database to be solved once RDB is modified ","Fulfilled. No action needed"]
["POL","All regions",null,"LM 2014","V ","Implications of the landing obligation ‑ Scientific data storage, IT systems and estimation","LM 3","RCM NS&EA recommends that scientific institutions and ICES ensure that data recording systems, IT systems and estimation routines are able to appropriately deal with the retained discard fraction. Also, authorities should adjust logbooks and IT systems to Accommodate the accurate recordings of all catch components, including the part that can be released under the de minimis exemptions\n","Ongoing","Modification of the RDB (ICES) were initated  in 2015. The national DB can be modified accordingly once RDB is set-up ","Fulfilled. No action needed"]
["POL","All regions",null,"LM 2014","V ","Quality assurance","LM 10","MS reload all their data in reference to the restricted lists.\n","Fulfilled","Data for 2011-2014 reloaded in 2015.                                                      Data for 2009-2010 reloaded in 2016.","Obsolete - No action needed"]
["POL","Baltic","ICES","LM 2014","V ","Quality assurance ","LM A1","All MS to ensure that all historical data (including data in salmon and eel) for the period 2009‑2013 are uploaded to RDB FishFrame\n","Agreement fulfilled",null,"Obsolete - No action needed"]
["POL","North Sea and Eastern Arctic","ICES","LM 2014","V ","Quality control","LM A2","All MS attending the RCM NS&EA will document their data checks and quality control procedures in reference to the data capture and data processing stages of their national sampling programmes ","Agreement fulfilled",null,"Obsolete - No action needed"]
["POL","North Sea and Eastern Arctic","ICES","LM 2015","V ","Quality assurance ","LM 11","All MS to upload their data in time for the RCM.","Fulfilled",null,"Fulfilled and Ongoing"]
["POL","Other regions","CECAF, SPRFMO","LM 2016 ","VII.C","Sampling programme","RCM LDF 2016 - 4","The current multi-annual and multi-lateral agreements for biological sampling in CECAF (partners: GER, LAT, LIT, NED, POL) and SPFRMO area (partners: GER, LIT, NED, POL) terminate as of 31st December 2016. Given that the current arrangements with a subcontractor can’t continue, a new set-up for the multi-lateral agreements is required. Poland and The Netherlands agreed to investigate possibilities to arrange a joint sampling plan. RCM LDF recommends Poland and The Netherlands to liaise and draft an agreement for the respective areas and to propose this draft to the other MS involved","Ongoing","Extention of sampling agreements for both regions (CECAF and SPRFMO) expecte by the end of 2016 or early 2017.","Fulfilled (ses information in rows 8 and 9 above)"]

{"sheet":"Table7C_Bi- and multilateral ","index":21,"n_rows":20,"n_cols":10,"rows_kept":20,"cut":false,"hidden":false,"merged":[[5,9,6,9],[16,7,19,7],[16,8,19,8],[7,9,8,9],[9,9,10,9],[11,9,15,9],[16,9,19,9],[9,5,10,5],[16,0,19,0],[16,2,19,2],[16,3,19,3],[16,4,19,4],[16,5,19,5],[5,5,6,5],[16,6,19,6],[9,7,10,7],[9,8,10,8],[11,0,15,0],[11,2,15,2],[11,3,15,3],[11,4,15,4],[11,5,15,5],[11,6,15,6],[11,7,15,7],[11,8,15,8],[9,0,10,0],[9,2,10,2],[9,3,10,3],[9,4,10,4],[5,6,6,6],[9,6,10,6],[5,7,6,7],[5,8,6,8],[7,0,8,0],[7,2,8,2],[7,3,8,3],[7,4,8,4],[7,5,8,5],[7,6,8,6],[7,7,8,7],[7,8,8,8],[5,0,6,0],[5,2,6,2],[5,3,6,3],[5,4,6,4]]}
["Table7C: Bi- and multilateral agreements"]
[]
[null,null,null,null,null,null,null,null,"WP  years","2017-2019"]
[null,null,null,null,null,null,null,null,"AR year",2017]
["MSs","Contact persons","Content","Coordination","Description of sampling / sampling protocol / sampling intensity","Data transmission  ","Access to vessels ","Validity ","Comments","AR Comments"]
["POL - DEU","POL - Tomasz Nermer (nermer@mir.gdynia.pl); ","Biological sampling of yellow and silver eels from commercial fisheries in the Oder River Basin District will be covered by POL.","NA","Target sample size: 100 yellow and 100 silver eel from commercial fisheries in the Oder River Basin District (sample size might be adjusted to a lower level depending on the availability of eel from POL commercial fisheries).","POL is responsible for submitting data to relevant ICES Expert Groups and to the EC. POL will provide data to DEU when requested.","NA","from 2013 onwards","http://dcf.mir.gdynia.pl/?page_id=365","Obsolete"]
[null," DEU - Jan-Dag Pohlmann (jan.pohlmann@thuenen.de)"]
["POL - DNK","POL - Irek Wojcik (iwojcik@mir.gdynia.pl)","Vessels fishing under the Polish register, which land for first sale into Denmark, will be sampled as part of the Polish National Programme under the requirements of the EC Data Collection Framework (199/2008). ","NA","Length and age of discards and landings","DNK responsible for submitting data from DNK vessels, and POL from POL vessels, to the respective end-users.","NA","from 2013 onwards","http://dcf.mir.gdynia.pl/?page_id=365","Ongoing"]
[null,"DNK - Marie Storr-Paulsen (msp@aqua.dtu.dk)"]
["POL - SWE","SWE - Anna Haslow  (anna.haslow@havochvatten.se)","Vessels fishing under the Polish register, which land for first sale into Sweden, will be sampled as part of the Polish Annual Workplan 2017. ","NA","Length and age of discards and landings, in  accordance with Polish Annual Workplan.","SWE responsible for submitting data from SWE vessels, and POL from POL vessels, to the respective end-users.","NA","until 31 Dec 2017","(http://dcf.mir.gdynia.pl/?page_id=365)","Terminated on 31 Dec 2017"]
[null," POL - Irek Wojcik (iwojcik@mir.gdynia.pl)"]
["DEU - LTU  - LVA - NLD - POL","LTU - Vilda Griuniene (Vilda.Griuniene@zum.lt)","DEU, LVA, LTU, NLD, POL to cooperate in the biological data collection on pelagic fisheries in CECAF waters in  2014-2015 and 2016-2017 (new extension).\n","NL to coordinate the execution of this multi-lateral agreement. NL will contract independent contractor 'Corten Marine Research' (CMR) as agent between NL and IMROP, the Mauritanian Fisheries Research Institute. CMR will hire Mauritanian observers from IMROP to carry out the actual sampling. CMR and IMROP will have an agreement in which the mutual obligations will be formalized; among others that only the additional costs for this specific task will be priced.","Biological sampling carried on board fishing vessels in CECAF area by Mauritanian observers. Observers introduced by CMR and follow the sampling protocol as described in \"Biological Data Collection of pelagic fisheries in CECAF waters in compliance with the DCF\", version 31-05-2011.","CMR is responsible for data collection, quality control and delivery to the CECAF pelagic working group of all data collected under this agreement. CMR also reports all data to CVO and CVO will distribute the data to the partners.","Each Partner ensures access to its fleet for Mauritanian observers under this agreement. Denied access to vessels does not exempt a Partner from legal or financial obligations.","This agreement commenced on January 1, 2012. It is subject to dissolve in case the pelagic fishery in the CECAF area by EU vessels closes. The agreement was extended to a new end date: 31 December 2016. It is planned to sign by the end of 2016 a new Amendment, extending the Agreement for 2017.","(http://dcf.mir.gdynia.pl/?page_id=365)","Extended until end of 2017 and terminated on 31 Dec 2017"]
[null,"DEU - Christoph Stransky (christoph.stransky@thuenen.de)"]
[null,"LVA - Georgs Kornilovs (georgs.kornilovs@bior.gov.lv)"]
[null,"NLD - Sieto Verver (sieto.verver@wur.nl)"]
[null,"POL - Irek Wojcik (iwojcik@mir.gdynia.pl)"]
["DEU - LTU  - NLD - POL","LTU - Vilda Griuniene (Vilda.Griuniene@zum.lt)","DEU, LTU, NLD and POL to cooperate in the biological data collection on pelagic fisheries in SPRMFO waters.\n","POL is planned to be responsible for placement observers onboard, in coordination with NLD in respect of the expected vessels' movements.","Biological sampling will be carried out on board EU fishing vessels in SPRFMO area by observers arranged by POL in coordination with NLD in respect of the expected vessels' movements. These observers will follow the sampling protocol as described in “Observer Manual for biological data collection in SPRFMO waters”, based on data collection requirements set out in “SPRFMO. CMM 4.02. Conservation and Management Measure on Standards for the Collection, Reporting, Verification and Exchange of Data (SPRFMO Data Standards)”.","POL is planned to be responsible for data collection, quality control and delivery to the SPRFMO scientific working group of all data collected under this agreement. POL will distribute the data to Partners upon request. ","Each Partner ensures access to its fleet for observers under this agreement. Denied access to vessels does not exempt a Partner from legal or financial obligations.","2017 - 2018","Agreement planned to be finalized and sign by the end of 2016 or early 2017.","Agreement signed and Ongoing  (http://dcf.mir.gdynia.pl/?page_id=365)"]
[null,"DEU - Christoph Stransky (christoph.stransky@thuenen.de)"]
[null,"NLD - Sieto Verver (sieto.verver@wur.nl)"]
[null,"POL - Irek Wojcik (iwojcik@mir.gdynia.pl)"]

{"sheet":"Sheet1","index":22,"n_rows":0,"n_cols":0,"rows_kept":0,"cut":false,"hidden":false,"merged":[]}